Workbook

Sheet 表紙
A14: 2025年後期
A15: 新聞折込広告紙数表

Sheet 取扱基準
A2: 新聞折込広告取扱基準
A5: 当社は日本新聞協会の「折込広告の取扱基準」および、新聞社の「広告掲載基準」を参考として、折込広告取扱基準を設けております。
A7: つぎのような折込チラシはお引き受けできかねます。
A10: （1） 広告の内容がはっきりしないもの。および、広告主の所在地、事業所名、ＨＰアドレス等のいずれの記載もなく、広告責任者が明確でないもの。
A12: （2） 虚偽または誇大表現により、誤認されるおそれのあるもの。「日本一」「業界一」等の最高・最大級の表現、「絶対に」「確実に」等、商品の性能、
A14: 効能、効果を保証する断定的表現を用いたもの。
A16: （3） 景表法（不当景品付販売・不当表示の禁止）、不正競争防止法（コピー商品等の販売宣伝の禁止）などのほか、薬事法、医療法など法律や条例に
A18: 触れると思われるもの。（医薬品等を否定する内容や迷信に類する非科学的な内容のもの等）
A20: （4） 広告主の主観的意見、意図、表現がみられ、他者を誹謗中傷し、結果的に他者の名誉、信用を傷つけるおそれがある表現のもの。（誹謗中傷広告等）
A22: （5）「新聞業における公正競争規約」に触れる抽選券・金券などを刷り込んだもの、クーポン付き広告に関する規則、運営細則に違反するもの。
A24: （6） 政治問題や係争中（もしくは係争が予想される）問題について、一方的な主張を述べたものや、立候補が予定されている人物の名称を記載するなど、
A26: 選挙の事前運動と推量されるもの。
A28: （7） 煽情的な言葉や、写真、イラスト等を用いた表現で、暴力・犯罪を肯定・礼讃するなど、公序良俗に反する表現のもの。
A30: （8） 不動産広告で、広告主の名称、所在地、販売物件の所在地、地目、建築の可否、建ぺい率、交通アクセス、価格、管理費、維持費、販売条件、
A32: 宅建業法による免許証番号などが明確に記載されてないもの。
A34: （9） 貸金業広告で、貸金業規制法で定められている必要事項が表示されていないもの。 （商号、名称、氏名、登録番号、住所、利率等）
A36: （10）発行本社の新聞と混同、誤認されると思われるものや、他紙の社名、題字、記事、催事などが掲載、引用されているもの。
A38: その他、著作権・肖像権・商標権等を侵害するおそれのあるもの。
A40: （11）新聞社がそれぞれ定めた広告掲載基準に照らして、新聞折込が不適当と認められるもの。
A42: （12）新聞販売店の営業活動に支障をきたし、不利益になると判断されるもの。
A46: ■ 上記に限らず、判断がむずかしいものは、新聞発行本社、関係諸機関の指導・協議によって決めさせていただきます。
A48: なお、ご不明な点がございましたら当社へご相談下さい。

Sheet 災害時注意事項
A2: 大規模災害発生時における新聞折込広告の取り扱いについて
B5: 大規模な災害（大地震、津波、洪水、豪雪、大火災、大規模停電、火山噴火、原子力発電所の事故、新型感染症の大流行、他国からの攻撃など）に見舞われた
B7: 場合、中日新聞折込広告協同組合加盟の折込会社と中日新聞販売店は被災の状況を的確に判断し、折込広告をご愛読者へお届けするために全力を傾注します。
B9: しかしながらライフラインや通信網、輸送ルートなどが遮断され、被災地の新聞販売店や従業員に甚大な被害が及んだ場合は、クライアント様のご要望にお応
B11: えできない場合もあります。
B13: この様に事前の予測と回避が不可能な事態が発生し、折込会社と新聞販売店の努力にも関わらず指定日に新聞折込が出来なかった場合、折込会社と新聞販売店
B15: は一切の責任を負う事ができません。あらかじめご容赦いただきますようお願い申しあげます。
B24: 東海地震に関する「警戒宣言」発令時の折込広告の取り扱いについて
B26: 『大地震への警戒宣言や注意情報が発令された場合、新聞折込広告は中止になります』
B29: 愛知県、三重県の大部分の市町村と岐阜県中津川市は大規模地震対策措置法により、地震防災対策強化地域に指定されています。指定された地域で大規
B31: 模な地震の発生が予知されますと、内閣総理大臣から警戒宣言が発令されることになっています。また東海地震の前兆現象が高まると、気象庁から注意
B33: 情報が発表されます。
B35: 警戒宣言発令後は交通規制が始まり、指定地域内へ車両の進入が禁止されるほか、一般の道路も時速20㎞に速度制限されるため大渋滞の発生が予想され
B37: ます。
B39: このため東海地震の注意情報や警戒宣言の発令と同時に、お客様からお預かりした新聞折込広告の配送作業は「中止」させていただきます。配送中の車
B41: 両に対しては折込広告をお預かりした状態ですみやかに帰社するように指示しますが、交通事情と警察官の指示によって止むを得ず路上に駐車し避難し
B43: なければならない事も想定されます。
B45: すでに配送が完了した新聞折込広告も、新聞販売店での組み込み作業が「中止」になり新聞折込ができなくなります。幸い注意情報や警戒宣言が解除
B47: された場合も、混乱が解消するまでしばらくの間は新聞折込ができない場合もあります。
B49: 何卒ご理解とご了承をいただけますようお願いいたします。

Sheet 広告主様へのお願い
A2: 広告主様へのお願い
A4: 1. 配布明細の連絡について
A6: 折込先配布明細のご指示は、ＦＡＸまたはメールで必ずチラシの搬入期日以前にご連絡下さい。
A8: 折込広告は、発送配布の都合上、50枚を単位として扱います。
A10: 配布指定部数と実際の部数が異なるときは、当社において一部配布数の変更、隣接地区への配布など、調整を行わせて頂く場合があります。
A12: 配布明細連絡をいただく際、正確なサイズをご指示願います。
A14: ※ 特に普通紙と厚紙の紙区別は注意して下さい。（四六版 110㎏より厚紙扱いとなります）
A16: ※ 新聞に収まる形状が原則ですが、例えばＢ４二ツ折の場合は二ツ折（Ｂ３）単価の適用となります。
B18: 合売記号の見方
B21: C…中日 N…日経 A…朝日 M…毎日 Y…読売 G…岐阜 I…伊勢 S…産経
B24: 合売店については、取扱い部数が多い媒体の欄に記載となります。
B26: ☆…月曜日折込不可
B28: △…折込日が休刊日翌日の場合、先送り地区
A31: 2. 折込広告の搬入時間について
A33: ※ 折込日2日前ＡＭ10時（日・祝日除く）までに搬入して下さい。但し下記地区は3日前ＡＭ10時（日・祝日除く）までに搬入して下さい。
A35: 田原市、新城市（設楽地区）、北設楽郡、三重県南勢地区
A37: （上記以外の場合は随時お問い合わせ下さい。）
A39: ※ 搬入時間を外れた持込みおよび、配布明細の事前連絡のない場合、折込指定日の責は負いかねます。
A41: ※ 折込広告の各新聞店への発送後の中止、変更等は出来かねます。
A43: ※ 年末年始、ゴールデンウィーク、お盆期間等については変則となります。
A46: 3. 行政区表示について
A48: 紙数表は実際の行政区と異なる地区もあります。資料は参考として掲載してありますので行政区へ指定・限定とした場合、
A50: 一部区域が入らない時と指定以外の地区に入ったりする場合が生じますので事前に当社までご相談下さい。

Sheet 広告主様へのお願い (2)
A2: 4. 月曜日および新聞休刊日の翌日は、一部地域において、折込できないところがあります。（下記一覧表参照）
A4: また選挙の開票報道等の都合で、新聞が遅れるときは、折込できません。
A6: ※下記の地区または販売店は地域事情などにより折込の条件が異なります。ご注意ください。
B8: ①月曜日折込不可
B10: 該当販売店
B11: 岐阜県郡上市：正ヶ洞 岐阜県高山市：国府
B14: ②休刊日翌日折込が先送りとなる地区
B16: 該当地区
B17: 愛知県新城市（設楽地区） 北設楽郡
A20: 5. パンフレット・小冊子に類するもの等は、その形状・内容により判断させて頂きます。
A23: 6. 二つ以上の事業所が連合（連名）して行う広告は、連合広告となり、一部地区で料金が異なったり、取り扱い不可となる場合があります。
A25: 必ず事前にご相談下さい。内容により判断させて頂きます。
A28: 〈適用外〉
A30: ・実在する商店街、夏祭り等実行委員会、テナント、ショッピングモール等。
A32: ・パチンコ・映画館・サウナなど、同じ敷地にある複合施設。
A34: ・オーナーが同一の企業グループ広告。
A36: ・複数企業が業務提携や同一テーマに基づき共同制作したコラボレーション広告。
A38: （但し、連絡先などの記載は広告責任者1社に限る。）
A40: ・雑誌・情報誌が、自誌ＰＲを目的に実際の誌面を使用再構成した広告。
A42: ・落成広告（企業名を掲載する企業が協賛企業であり、営利目的でないこと）
A45: 7. 折込広告の在庫管理に関して
A47: 次回以降の折込広告も同時に持ち込まれるお客様に対しましては、弊社配送センターにて
A49: 預かりを承りますが、保管期間は原則１ヶ月とさせて頂きます。
A52: 8. 全国取り次ぎを行っております。ご用の際はご相談下さい。

Sheet 名古屋市
A1: 折込日 | F1: 広告主 | O1: サイズ | S1: 取次店
F2: チラシ銘柄 | O2: 部数 | P2: =S27 -> 0
A3: 名古屋市 | U3: 2025年後期（8月1日以降）
A4: 地区 | B4: 中日新聞 | E4: 朝日新聞 | H4: 毎日新聞 | K4: 読売新聞 | Q4: 合 計 | T4: 備考
A5: 中区 | B5: =VALUE(TRIM(LEFT(中区・東区!E26,2))) -> 8 | C5: =中区・東区!F26 -> 11650 | D5: =中区・東区!G26 -> 0 | E5: =VALUE(TRIM(LEFT(中区・東区!I26,2))) -> 5 | F5: =中区・東区!J26 -> 2650 | G5: =中区・東区!K26 -> 0 | H5: =VALUE(TRIM(LEFT(中区・東区!M26,2))) -> 4 | I5: =中区・東区!N26 -> 1600 | J5: =中区・東区!O26 -> 0 | K5: =VALUE(TRIM(LEFT(中区・東区!Q26,2))) -> 5 | L5: =中区・東区!R26 -> 2350 | M5: =中区・東区!S26 -> 0 | N5: =VALUE(TRIM(LEFT(中区・東区!U26,2))) -> 0 | O5: =中区・東区!V26 -> 0 | P5: =中区・東区!W26 -> 0 | Q5: =SUM(B5,E5,H5,K5,N5) -> 22 | R5: =SUM(C5,F5,I5,L5,O5) -> 18250 | S5: =IFERROR((SUM(D5,G5,J5,M5,P5))," ") -> 0
A6: 東区 | B6: =VALUE(TRIM(LEFT(中区・東区!E48,2))) -> 8 | C6: =中区・東区!F48 -> 11350 | D6: =中区・東区!G48 -> 0 | E6: =VALUE(TRIM(LEFT(中区・東区!I48,2))) -> 3 | F6: =中区・東区!J48 -> 1450 | G6: =中区・東区!K48 -> 0 | H6: =VALUE(TRIM(LEFT(中区・東区!M48,2))) -> 1 | I6: =中区・東区!N48 -> 400 | J6: =中区・東区!O48 -> 0 | K6: =VALUE(TRIM(LEFT(中区・東区!Q48,2))) -> 3 | L6: =中区・東区!R48 -> 1350 | M6: =中区・東区!S48 -> 0 | N6: =VALUE(TRIM(LEFT(中区・東区!U48,2))) -> 0 | O6: =中区・東区!V48 -> 0 | P6: =中区・東区!W48 -> 0 | Q6: 15 | R6: 14550 | S6: =IFERROR((SUM(D6,G6,J6,M6,P6))," ") -> 0
A7: 中村区 | B7: =VALUE(TRIM(LEFT(中村区!E48,2))) -> 11 | C7: =中村区!F48 -> 22100 | D7: =中村区!G48 -> 0 | E7: =VALUE(TRIM(LEFT(中村区!I48,2))) -> 4 | F7: =中村区!J48 -> 2300 | G7: =中村区!K48 -> 0 | H7: =VALUE(TRIM(LEFT(中村区!M48,2))) -> 2 | I7: =中村区!N48 -> 500 | J7: =中村区!O48 -> 0 | K7: =VALUE(TRIM(LEFT(中村区!Q48,2))) -> 5 | L7: =中村区!R48 -> 2350 | M7: =中村区!S48 -> 0 | N7: =VALUE(TRIM(LEFT(中村区!U48,2))) -> 0 | O7: =中村区!V48 -> 0 | P7: =中村区!W48 -> 0 | Q7: 22 | R7: 27250 | S7: 0
A8: 西区 | B8: =VALUE(TRIM(LEFT(西区!E48,2))) -> 14 | C8: =西区!F48 -> 23100 | D8: =西区!G48 -> 0 | E8: =VALUE(TRIM(LEFT(西区!I48,2))) -> 4 | F8: =西区!J48 -> 2100 | G8: =西区!K48 -> 0 | H8: =VALUE(TRIM(LEFT(西区!M48,2))) -> 0 | I8: =西区!N48 -> 0 | J8: =西区!O48 -> 0 | K8: =VALUE(TRIM(LEFT(西区!Q48,2))) -> 5 | L8: =西区!R48 -> 1950 | M8: =西区!S48 -> 0 | N8: =VALUE(TRIM(LEFT(西区!U48,2))) -> 0 | O8: =西区!V48 -> 0 | P8: =西区!W48 -> 0 | Q8: 23 | R8: 27150 | S8: 0
A9: 北区 | B9: =VALUE(TRIM(LEFT(北区!E48,2))) -> 16 | C9: =北区!F48 -> 25900 | D9: =北区!G48 -> 0 | E9: =VALUE(TRIM(LEFT(北区!I48,2))) -> 3 | F9: =北区!J48 -> 2050 | G9: =北区!K48 -> 0 | H9: =VALUE(TRIM(LEFT(北区!M48,2))) -> 0 | I9: =北区!N48 -> 0 | J9: =北区!O48 -> 0 | K9: =VALUE(TRIM(LEFT(北区!Q48,2))) -> 4 | L9: =北区!R48 -> 1900 | M9: =北区!S48 -> 0 | N9: =VALUE(TRIM(LEFT(北区!U48,2))) -> 0 | O9: =北区!V48 -> 0 | P9: =北区!W48 -> 0 | Q9: 23 | R9: 29850 | S9: 0
A10: 千種区 | B10: =VALUE(TRIM(LEFT(千種区!E48,2))) -> 11 | C10: =千種区!F48 -> 22250 | D10: =千種区!G48 -> 0 | E10: =VALUE(TRIM(LEFT(千種区!I48,2))) -> 4 | F10: =千種区!J48 -> 4100 | G10: =千種区!K48 -> 0 | H10: =VALUE(TRIM(LEFT(千種区!M48,2))) -> 0 | I10: =千種区!N48 -> 0 | J10: =千種区!O48 -> 0 | K10: =VALUE(TRIM(LEFT(千種区!Q48,2))) -> 5 | L10: =千種区!R48 -> 2050 | M10: =千種区!S48 -> 0 | N10: =VALUE(TRIM(LEFT(千種区!U48,2))) -> 0 | O10: =千種区!V48 -> 0 | P10: =千種区!W48 -> 0 | Q10: 20 | R10: 28400 | S10: 0
A11: 名東区 | B11: =VALUE(TRIM(LEFT(名東区!E48,2))) -> 13 | C11: =名東区!F48 -> 25250 | D11: =名東区!G48 -> 0 | E11: =VALUE(TRIM(LEFT(名東区!I48,2))) -> 4 | F11: =名東区!J48 -> 4900 | G11: =名東区!K48 -> 0 | H11: =VALUE(TRIM(LEFT(名東区!M48,2))) -> 0 | I11: =名東区!N48 -> 0 | J11: =名東区!O48 -> 0 | K11: =VALUE(TRIM(LEFT(名東区!Q48,2))) -> 4 | L11: =名東区!R48 -> 2400 | M11: =名東区!S48 -> 0 | N11: =VALUE(TRIM(LEFT(名東区!U48,2))) -> 0 | O11: =名東区!V48 -> 0 | P11: =名東区!W48 -> 0 | Q11: 21 | R11: 32550 | S11: 0
A12: 守山区 | B12: =VALUE(TRIM(LEFT(守山区!E48,2))) -> 8 | C12: =守山区!F48 -> 25600 | D12: =守山区!G48 -> 0 | E12: =VALUE(TRIM(LEFT(守山区!I48,2))) -> 5 | F12: =守山区!J48 -> 1700 | G12: =守山区!K48 -> 0 | H12: =VALUE(TRIM(LEFT(守山区!M48,2))) -> 0 | I12: =守山区!N48 -> 0 | J12: =守山区!O48 -> 0 | K12: =VALUE(TRIM(LEFT(守山区!Q48,2))) -> 5 | L12: =守山区!R48 -> 1800 | M12: =守山区!S48 -> 0 | N12: =VALUE(TRIM(LEFT(守山区!U48,2))) -> 0 | O12: =守山区!V48 -> 0 | P12: =守山区!W48 -> 0 | Q12: 18 | R12: 29100 | S12: 0
A13: 昭和区 | B13: =VALUE(TRIM(LEFT(昭和区!E48,2))) -> 8 | C13: =昭和区!F48 -> 16650 | D13: =昭和区!G48 -> 0 | E13: =VALUE(TRIM(LEFT(昭和区!I48,2))) -> 5 | F13: =昭和区!J48 -> 2300 | G13: =昭和区!K48 -> 0 | H13: =VALUE(TRIM(LEFT(昭和区!M48,2))) -> 0 | I13: =昭和区!N48 -> 0 | J13: =昭和区!O48 -> 0 | K13: =VALUE(TRIM(LEFT(昭和区!Q48,2))) -> 3 | L13: =昭和区!R48 -> 1200 | M13: =昭和区!S48 -> 0 | N13: =VALUE(TRIM(LEFT(昭和区!U48,2))) -> 0 | O13: =昭和区!V48 -> 0 | P13: =昭和区!W48 -> 0 | Q13: 16 | R13: 20150 | S13: 0
A14: 天白区 | B14: =VALUE(TRIM(LEFT(天白区!E48,2))) -> 11 | C14: =天白区!F48 -> 23900 | D14: =天白区!G48 -> 0 | E14: =VALUE(TRIM(LEFT(天白区!I48,2))) -> 6 | F14: =天白区!J48 -> 2800 | G14: =天白区!K48 -> 0 | H14: =VALUE(TRIM(LEFT(天白区!M48,2))) -> 1 | I14: =天白区!N48 -> 50 | J14: =天白区!O48 -> 0 | K14: =VALUE(TRIM(LEFT(天白区!Q48,2))) -> 4 | L14: =天白区!R48 -> 2250 | M14: =天白区!S48 -> 0 | N14: =VALUE(TRIM(LEFT(天白区!U48,2))) -> 0 | O14: =天白区!V48 -> 0 | P14: =天白区!W48 -> 0 | Q14: 22 | R14: 29000 | S14: 0
A15: 瑞穂区 | B15: =VALUE(TRIM(LEFT(瑞穂区!E48,2))) -> 9 | C15: =瑞穂区!F48 -> 16450 | D15: =瑞穂区!G48 -> 0 | E15: =VALUE(TRIM(LEFT(瑞穂区!I48,2))) -> 3 | F15: =瑞穂区!J48 -> 2350 | G15: =瑞穂区!K48 -> 0 | H15: =VALUE(TRIM(LEFT(瑞穂区!M48,2))) -> 0 | I15: =瑞穂区!N48 -> 0 | J15: =瑞穂区!O48 -> 0 | K15: =VALUE(TRIM(LEFT(瑞穂区!Q48,2))) -> 2 | L15: =瑞穂区!R48 -> 700 | M15: =瑞穂区!S48 -> 0 | N15: =VALUE(TRIM(LEFT(瑞穂区!U48,2))) -> 0 | O15: =瑞穂区!V48 -> 0 | P15: =瑞穂区!W48 -> 0 | Q15: 14 | R15: 19500 | S15: 0
A16: 南区 | B16: =VALUE(TRIM(LEFT(南区!E48,2))) -> 13 | C16: =南区!F48 -> 22700 | D16: =南区!G48 -> 0 | E16: =VALUE(TRIM(LEFT(南区!I48,2))) -> 4 | F16: =南区!J48 -> 1850 | G16: =南区!K48 -> 0 | H16: =VALUE(TRIM(LEFT(南区!M48,2))) -> 1 | I16: =南区!N48 -> 450 | J16: =南区!O48 -> 0 | K16: =VALUE(TRIM(LEFT(南区!Q48,2))) -> 6 | L16: =南区!R48 -> 2600 | M16: =南区!S48 -> 0 | N16: =VALUE(TRIM(LEFT(南区!U48,2))) -> 0 | O16: =南区!V48 -> 0 | P16: =南区!W48 -> 0 | Q16: 24 | R16: 27600 | S16: 0
A17: 緑区 | B17: =VALUE(TRIM(LEFT(緑区!E48,2))) -> 20 | C17: =緑区!F48 -> 36150 | D17: =緑区!G48 -> 0 | E17: =VALUE(TRIM(LEFT(緑区!I48,2))) -> 6 | F17: =緑区!J48 -> 5100 | G17: =緑区!K48 -> 0 | H17: =VALUE(TRIM(LEFT(緑区!M48,2))) -> 3 | I17: =緑区!N48 -> 1300 | J17: =緑区!O48 -> 0 | K17: =VALUE(TRIM(LEFT(緑区!Q48,2))) -> 2 | L17: =緑区!R48 -> 1300 | M17: =緑区!S48 -> 0 | N17: =VALUE(TRIM(LEFT(緑区!U48,2))) -> 0 | O17: =緑区!V48 -> 0 | P17: =緑区!W48 -> 0 | Q17: 31 | R17: 43850 | S17: 0
A18: 熱田区 | B18: =VALUE(TRIM(LEFT(熱田区・港区!E21,2))) -> 5 | C18: =熱田区・港区!F21 -> 10150 | D18: =熱田区・港区!G21 -> 0 | E18: =VALUE(TRIM(LEFT(熱田区・港区!I21,2))) -> 2 | F18: =熱田区・港区!J21 -> 950 | G18: =熱田区・港区!K21 -> 0 | H18: =VALUE(TRIM(LEFT(熱田区・港区!M21,2))) -> 0 | I18: =熱田区・港区!N21 -> 0 | J18: =熱田区・港区!O21 -> 0 | K18: =VALUE(TRIM(LEFT(熱田区・港区!Q21,2))) -> 3 | L18: =熱田区・港区!R21 -> 2150 | M18: =熱田区・港区!S21 -> 0 | N18: =VALUE(TRIM(LEFT(熱田区・港区!U21,2))) -> 0 | O18: =熱田区・港区!V21 -> 0 | P18: =熱田区・港区!W21 -> 0 | Q18: 10 | R18: 13250 | S18: 0
A19: 港区 | B19: =VALUE(TRIM(LEFT(熱田区・港区!E48,2))) -> 12 | C19: =熱田区・港区!F48 -> 19700 | D19: =熱田区・港区!G48 -> 0 | E19: =VALUE(TRIM(LEFT(熱田区・港区!I48,2))) -> 2 | F19: =熱田区・港区!J48 -> 650 | G19: =熱田区・港区!K48 -> 0 | H19: =VALUE(TRIM(LEFT(熱田区・港区!M48,2))) -> 0 | I19: =熱田区・港区!N48 -> 0 | J19: =熱田区・港区!O48 -> 0 | K19: =VALUE(TRIM(LEFT(熱田区・港区!Q48,2))) -> 4 | L19: =熱田区・港区!R48 -> 1600 | M19: =熱田区・港区!S48 -> 0 | N19: =VALUE(TRIM(LEFT(熱田区・港区!U48,2))) -> 0 | O19: =熱田区・港区!V48 -> 0 | P19: =熱田区・港区!W48 -> 0 | Q19: 18 | R19: 21950 | S19: 0
A20: 中川区 | B20: =VALUE(TRIM(LEFT(中川区!E48,2))) -> 19 | C20: =中川区!F48 -> 32550 | D20: =中川区!G48 -> 0 | E20: =VALUE(TRIM(LEFT(中川区!I48,2))) -> 3 | F20: =中川区!J48 -> 1200 | G20: =中川区!K48 -> 0 | H20: =VALUE(TRIM(LEFT(中川区!M48,2))) -> 0 | I20: =中川区!N48 -> 0 | J20: =中川区!O48 -> 0 | K20: =VALUE(TRIM(LEFT(中川区!Q48,2))) -> 4 | L20: =中川区!R48 -> 2850 | M20: =中川区!S48 -> 0 | N20: =VALUE(TRIM(LEFT(中川区!U48,2))) -> 0 | O20: =中川区!V48 -> 0 | P20: =中川区!W48 -> 0 | Q20: 26 | R20: 36600 | S20: 0
A21: 合計 | B21: =SUM(B5:B20) -> 186 | C21: 345450 | D21: 0 | E21: 63 | F21: 38450 | G21: 0 | H21: 12 | I21: 4300 | J21: 0 | K21: 64 | L21: 30800 | M21: 0 | N21: =SUM(N5:N20) -> 0 | O21: =SUM(O5:O20) -> 0 | Q21: =SUM(Q5:Q20) -> 325 | R21: =SUM(R5:R20) -> 419000 | S21: =SUM(S5:S20) -> 0
A23: 愛知県合計 | B23: 中日新聞 | E23: 朝日新聞 | H23: 毎日新聞 | K23: 読売新聞 | Q23: 合 計 | T23: 備 考
A24: 名古屋市 | B24: =B21 -> 186 | C24: 345450 | D24: 0 | E24: 63 | F24: 38450 | G24: 0 | H24: 12 | I24: 4300 | J24: 0 | K24: =SUM(K21) -> 64 | L24: 30800 | M24: 0 | N24: 0 | O24: 0 | P24: 0 | Q24: 325 | R24: 419000 | S24: 0
A25: 尾張地区 | B25: =尾張地区!B37 -> 231 | C25: =尾張地区!C37 -> 451300 | D25: =尾張地区!D37 -> 0 | E25: =尾張地区!E37 -> 69 | F25: =尾張地区!F37 -> 44500 | G25: =尾張地区!G37 -> 0 | H25: =尾張地区!H37 -> 10 | I25: =尾張地区!I37 -> 3950 | J25: =尾張地区!J37 -> 0 | K25: =尾張地区!K37 -> 54 | L25: =尾張地区!L37 -> 25050 | M25: =尾張地区!M37 -> 0 | N25: =尾張地区!N37 -> 0 | O25: =尾張地区!O37 -> 0 | P25: =尾張地区!P37 -> 0 | Q25: =尾張地区!Q37 -> 364 | R25: =尾張地区!R37 -> 524800 | S25: =W25 -> 0 | W25: =IFERROR(尾張地区!S37," ") -> 0
A26: 三河地区 | B26: =三河地区!B26 -> 178 | C26: =三河地区!C26 -> 356550 | D26: =三河地区!D26 -> 0 | E26: =三河地区!E26 -> 39 | F26: =三河地区!F26 -> 30100 | G26: =三河地区!G26 -> 0 | H26: =三河地区!H26 -> 3 | I26: =三河地区!I26 -> 2050 | J26: =三河地区!J26 -> 0 | K26: =三河地区!K26 -> 48 | L26: =三河地区!L26 -> 20600 | M26: =三河地区!M26 -> 0 | N26: =三河地区!N26 -> 0 | O26: =三河地区!O26 -> 0 | P26: =三河地区!P26 -> 0 | Q26: =三河地区!Q26 -> 268 | R26: =三河地区!R26 -> 409300 | S26: =W26 -> 0 | W26: =IFERROR(三河地区!S26," ") -> 0
A27: 合計 | B27: =SUM(B24:B26) -> 595 | C27: =SUM(C24:C26) -> 1153300 | D27: =SUM(D24:D26) -> 0 | E27: 171 | F27: 113050 | G27: 0 | H27: 25 | I27: 10300 | J27: 0 | K27: =SUM(K24:K26) -> 166 | L27: 76450 | M27: 0 | N27: 0 | O27: 0 | P27: 0 | Q27: 957 | R27: 1353100 | S27: 0
U28: ㈱中日総合サービス

Sheet 地図（名古屋市）

Sheet 中区・東区
A1: 折込日 | F1: 広告主 | Q1: サイズ | V1: 取次店
F2: チラシ銘柄 | Q2: 部数 | R2: =A6+A30 -> 0
A4: 地区 | D4: 中日新聞 | G4: 枚数 | H4: 朝日新聞 | K4: 枚数 | L4: 毎日新聞 | O4: 枚数 | P4: 読売新聞 | S4: 枚数 | X4: 備考
A5: 中区 | C5: *1 | D5: 230165113101 | E5: 新栄NS | F5: 1000 | H5: 230165213201 | I5: 瓦町 | J5: 300 | L5: 230165313301 | M5: 中区名城 | N5: 250 | P5: 230165413501 | Q5: 栄中央 | R5: 1350 | T5: 230165513601 | X5: 中区全域の場合
A6: =SUM(G26,K26,O26,S26,W26) -> 0 | B6: =SUM(F26,J26,N26,R26,V26) -> 18250 | C6: 0 | D6: 230165113102 | E6: 中部NS | F6: 900 | H6: 230165213202 | I6: 大須 | J6: 650 | L6: 230165313302 | M6: 栄町 | N6: 550 | P6: 230165413502 | Q6: 女子大小路 | R6: 250 | X6: 東区葵250枚
C7: *2 | D7: 230165113104 | E7: 久屋大通NS | F7: 3300 | H7: 230165213203 | I7: 広小路 | J7: 450 | L7: 230165313303 | M7: 新栄 | N7: 500 | P7: 230165413504 | Q7: 飯田町 | R7: 300 | X7: 東区高岳50枚
D8: 230165113106 | E8: 瓦町N | F8: 1000 | H8: 230165213205 | I8: 市内金山 | J8: 250 | L8: 230165313305 | M8: 名駅南・丸の内 | N8: 300 | P8: 230165413505 | Q8: 大須 | R8: 400 | X8: 中村区名駅1,700枚
C9: 0 | D9: 230165113109 | E9: 上前津NS | F9: 1550 | H9: 230165213204 | I9: 中栄 | J9: 1000 | P9: 230165413506 | Q9: 新栄 | R9: 50 | X9: 西区浅間町600枚
C10: 0 | D10: 230165113110 | E10: 橘N | F10: 1200 | X10: をプラス
C11: 0 | D11: 230165113111 | E11: 正木N | F11: 850
D12: 230165113112 | E12: 市内金山NMS | F12: 1850 | X12: *1千種区50枚含む
C13: 0 | X13: 0
X14: *2東区1,550枚含む
X16: 0
X20: 0
X21: 0
X22: 0
X23: 0
X24: 0
X25: 0
E26: =CONCATENATE(FIXED(COUNTA(E5:E25),0,0)," 店") -> 8 店 | F26: =SUM(F5:F25) -> 11650 | G26: =SUM(G5:G25) -> 0 | I26: =CONCATENATE(FIXED(COUNTA(I5:I25),0,0)," 店") -> 5 店 | J26: =SUM(J5:J25) -> 2650 | K26: =SUM(K5:K25) -> 0 | M26: =CONCATENATE(FIXED(COUNTA(M5:M25),0,0)," 店") -> 4 店 | N26: =SUM(N5:N25) -> 1600 | O26: =SUM(O5:O25) -> 0 | Q26: =CONCATENATE(FIXED(COUNTA(Q5:Q25),0,0)," 店") -> 5 店 | R26: =SUM(R5:R25) -> 2350 | S26: =SUM(S5:S25) -> 0 | U26: =CONCATENATE(FIXED(COUNTA(U5:U25),0,0)," 店") -> 0 店 | V26: =SUM(V5:V25) -> 0 | W26: =SUM(W5:W25) -> 0 | X26: =SUM(X5:X25) -> 0
A28: 地区 | D28: 中日新聞 | G28: 枚数 | H28: 朝日新聞 | K28: 枚数 | L28: 毎日新聞 | O28: 枚数 | P28: 読売新聞 | S28: 枚数 | X28: 備考
A29: 東区 | C29: *1 | D29: 230160112101 | E29: 大曽根NMS | F29: 1400 | H29: 230160212201 | I29: 主税町 | J29: 350 | L29: 230160312302 | M29: 東区名城 | N29: 400 | P29: 230160412501 | Q29: 矢田 | R29: 600 | X29: 東区全域の場合
A30: =SUM(G48,K48,O48,S48,W48) -> 0 | B30: =SUM(F48,J48,N48,R48,V48) -> 14550 | C30: *2 | D30: 230160112102 | E30: 赤塚N | F30: 1300 | H30: 230160212202 | I30: 徳川 | J30: 450 | P30: 230160412502 | Q30: 泉・栄 | R30: 550 | X30: 中区久屋大通1,550枚
C31: 0 | D31: 230160112105 | E31: 矢田NMS | F31: 1400 | H31: 230160212203 | I31: 大松 | J31: 650 | P31: 230160412503 | Q31: 大幸町 | R31: 200 | X31: 北区杉村550枚
C32: *3 | D32: 230160112106 | E32: 葵NM | F32: 1400 | X32: 北区柳原・主税町300枚
C33: 0 | D33: 230160112107 | E33: 布池NMS | F33: 1550 | X33: をプラス
C34: *4 | D34: 230160112109 | E34: 高岳N | F34: 1050 | X34: *1北区700枚含む
C35: 0 | D35: 230160112110 | E35: 大幸NMS | F35: 1500 | X35: 0
C36: 0 | D36: 230160112111 | E36: 明倫NMS | F36: 1750 | X36: *2北区50枚含む
X37: 0
X38: *3中区250枚含む
X39: 0
X40: *4中区50枚含む
X42: 0
E48: =CONCATENATE(FIXED(COUNTA(E29:E47),0,0)," 店") -> 8 店 | F48: =SUM(F29:F47) -> 11350 | G48: =SUM(G29:G47) -> 0 | I48: =CONCATENATE(FIXED(COUNTA(I29:I47),0,0)," 店") -> 3 店 | J48: =SUM(J29:J47) -> 1450 | K48: =SUM(K29:K47) -> 0 | M48: =CONCATENATE(FIXED(COUNTA(M29:M47),0,0)," 店") -> 1 店 | N48: =SUM(N29:N47) -> 400 | O48: =SUM(O29:O47) -> 0 | Q48: =CONCATENATE(FIXED(COUNTA(Q29:Q47),0,0)," 店") -> 3 店 | R48: =SUM(R29:R47) -> 1350 | S48: =SUM(S29:S47) -> 0 | U48: =CONCATENATE(FIXED(COUNTA(U29:U47),0,0)," 店") -> 0 店 | V48: =SUM(V29:V47) -> 0 | W48: =SUM(W29:W47) -> 0 | X48: =SUM(X29:X47) -> 0
A49: 2025年後期（8月1日以降） | X49: ㈱中日総合サービス

Sheet 中村区
A1: 折込日 | F1: 広告主 | Q1: サイズ | V1: 取次店
F2: チラシ銘柄 | Q2: 部数 | R2: =A6 -> 0
A4: 地区 | D4: 中日新聞 | G4: 枚数 | H4: 朝日新聞 | K4: 枚数 | L4: 毎日新聞 | O4: 枚数 | P4: 読売新聞 | S4: 枚数 | X4: 備考
A5: 中村区 | C5: 0 | D5: 230145109104 | E5: 駅前NMS | F5: 2050 | H5: 230145209201 | I5: 駅前 | J5: 600 | L5: 230145309303 | M5: 駅前 | N5: 250 | P5: 230145409501 | Q5: 名古屋駅前 | R5: 400 | X5: 中村区全域の場合
A6: =SUM(G48,K48,O48,S48,W48) -> 0 | B6: =SUM(F48,J48,N48,R48,V48) -> 27250 | C6: *1 | D6: 230145109120 | E6: 名駅NS | F6: 3900 | H6: 230145209202 | I6: 中村公園 | J6: 500 | L6: 230145309304 | M6: 駅西 | N6: 250 | P6: 230145409502 | Q6: 名駅西 | R6: 800 | X6: 中川区野田500枚
C7: 0 | D7: 230145109108 | E7: 黄金NMS | F7: 2700 | H7: 230145209204 | I7: 本陣 | J7: 650 | P7: 230145409505 | Q7: 本陣 | R7: 400 | X7: をプラス
C8: 0 | D8: 230145109109 | E8: 大鳥居NMS | F8: 2050 | H8: 230145209205 | I8: 豊国通 | J8: 550 | P8: 230145409506 | Q8: 鳥居西 | R8: 500
C9: 0 | D9: 230145109111 | E9: 日比津NMS | F9: 1650 | P9: 230145409507 | Q9: 岩塚 | R9: 250
C10: 0 | D10: 230145109113 | E10: 市内諏訪NMS | F10: 1000 | X10: *1西区800枚含む
C11: 0 | D11: 230145109115 | E11: 太閤NMS | F11: 1800 | X11: 中区1,700枚含む
C12: 0 | D12: 230145109116 | E12: 稲葉地NM | F12: 1350 | X12: 0
C13: 0 | D13: 230145109117 | E13: 豊国通NMS | F13: 1600 | X13: 0
C14: 0 | D14: 230145109118 | E14: 烏森NMS | F14: 3800 | X14: 0
C15: 0 | D15: 230145109119 | E15: 中村常磐NM | F15: 200 | X15: 0
X16: 0
C17: 0 | X17: 0
C18: 0 | X18: 0
X19: 0
X20: 0
X21: 0
X22: 0
X23: 0
X24: 0
X25: 0
X26: 0
X27: 0
X28: 0
X29: 0
X30: 0
X31: 0
X32: 0
X33: 0
X34: 0
X35: 0
X36: 0
X37: 0
X38: 0
X39: 0
X40: 0
X41: 0
X42: 0
X43: 0
X44: 0
X45: 0
X46: 0
X47: 0
E48: =CONCATENATE(FIXED(COUNTA(E5:E47),0,0)," 店") -> 11 店 | F48: =SUM(F5:F47) -> 22100 | G48: =SUM(G5:G47) -> 0 | I48: =CONCATENATE(FIXED(COUNTA(I5:I47),0,0)," 店") -> 4 店 | J48: =SUM(J5:J47) -> 2300 | K48: =SUM(K5:K47) -> 0 | M48: =CONCATENATE(FIXED(COUNTA(M5:M47),0,0)," 店") -> 2 店 | N48: =SUM(N5:N47) -> 500 | O48: =SUM(O5:O47) -> 0 | Q48: =CONCATENATE(FIXED(COUNTA(Q5:Q47),0,0)," 店") -> 5 店 | R48: =SUM(R5:R47) -> 2350 | S48: =SUM(S5:S47) -> 0 | U48: =CONCATENATE(FIXED(COUNTA(U5:U47),0,0)," 店") -> 0 店 | V48: =SUM(V5:V47) -> 0 | W48: =SUM(W5:W47) -> 0 | X48: =SUM(X5:X47) -> 0
A49: 2025年後期（8月1日以降） | X49: ㈱中日総合サービス

Sheet 西区
A1: 折込日 | F1: 広告主 | Q1: サイズ | V1: 取次店
F2: チラシ銘柄 | Q2: 部数 | R2: =A6 -> 0
A4: 地区 | D4: 中日新聞 | G4: 枚数 | H4: 朝日新聞 | K4: 枚数 | L4: 毎日新聞 | O4: 枚数 | P4: 読売新聞 | S4: 枚数 | X4: 備考
A5: 西区 | C5: 0 | D5: 230150110102 | E5: 榎NM | F5: 1850 | H5: 230150210205 | I5: 浄心 | J5: 250 | P5: 230150410501 | Q5: 比良 | R5: 300 | X5: 西区全域の場合
A6: =SUM(G48,K48,O48,S48,W48) -> 0 | B6: =SUM(F48,J48,N48,R48,V48) -> 27150 | C6: 0 | D6: 230150110103 | E6: 栄生NM | F6: 650 | H6: 230150210203 | I6: 城西 | J6: 850 | P6: 230150410502 | Q6: 小田井 | R6: 600 | X6: 中村区名駅800枚
C7: 0 | D7: 230150110104 | E7: 東枇杷島NMS | F7: 1150 | H7: 230150210210 | I7: 小田井 | J7: 900 | P7: 230150410503 | Q7: 稲生 | R7: 200 | X7: をプラス
C8: 0 | D8: 230150110106 | E8: 浄心NMS | F8: 2250 | H8: 230150210206 | I8: 平田橋 | J8: 100 | P8: 230150410504 | Q8: 庄内 | R8: 200
C9: 0 | D9: 230150110107 | E9: 名西NMS | F9: 1900 | P9: 230150410505 | Q9: 江川端 | R9: 650 | X9: 0
C10: 0 | D10: 230150110109 | E10: 庄内通NMS | F10: 1700 | X10: 0
C11: 0 | D11: 230150110110 | E11: 又穂NMS | F11: 1050 | X11: 0
C12: *1 | D12: 230150110113 | E12: 上名古屋NMS | F12: 1850 | X12: *1北区250枚含む
C13: *2 | D13: 230150110115 | E13: 浅間町NS | F13: 1750 | X13: *2中区600枚含む
D14: 230150110120 | E14: 中小田井NMS | F14: 2100
C15: 0 | D15: 230150110122 | E15: 大野木NMS | F15: 1700
C16: 0 | D16: 230150110123 | E16: 比良NMS | F16: 1200
C17: 0 | D17: 230150110125 | E17: 山田NMS | F17: 1700
C18: *3 | D18: 230150110127 | E18: 平田NM | F18: 2250 | X18: *3清須市200枚含む
X21: 0
X22: 0
X26: 0
X27: 0
X28: 0
X29: 0
X30: 0
X31: 0
X32: 0
X33: 0
X34: 0
X35: 0
X36: 0
X37: 0
X38: 0
X39: 0
X40: 0
X41: 0
X42: 0
X43: 0
X44: 0
X45: 0
X46: 0
X47: 0
E48: =CONCATENATE(FIXED(COUNTA(E5:E47),0,0)," 店") -> 14 店 | F48: =SUM(F5:F47) -> 23100 | G48: =SUM(G5:G47) -> 0 | I48: =CONCATENATE(FIXED(COUNTA(I5:I47),0,0)," 店") -> 4 店 | J48: =SUM(J5:J47) -> 2100 | K48: =SUM(K5:K47) -> 0 | M48: =CONCATENATE(FIXED(COUNTA(M5:M47),0,0)," 店") -> 0 店 | N48: =SUM(N5:N47) -> 0 | O48: =SUM(O5:O47) -> 0 | Q48: =CONCATENATE(FIXED(COUNTA(Q5:Q47),0,0)," 店") -> 5 店 | R48: =SUM(R5:R47) -> 1950 | S48: =SUM(S5:S47) -> 0 | U48: =CONCATENATE(FIXED(COUNTA(U5:U47),0,0)," 店") -> 0 店 | V48: =SUM(V5:V47) -> 0 | W48: =SUM(W5:W47) -> 0 | X48: =SUM(X5:X47) -> 0
A49: 2025年後期（8月1日以降） | X49: ㈱中日総合サービス

Sheet 北区
A1: 折込日 | F1: 広告主 | Q1: サイズ | V1: 取次店
F2: チラシ銘柄 | Q2: 部数 | R2: =A6 -> 0
A4: 地区 | D4: 中日新聞 | G4: 枚数 | H4: 朝日新聞 | K4: 枚数 | L4: 毎日新聞 | O4: 枚数 | P4: 読売新聞 | S4: 枚数 | X4: 備考
A5: 北区 | C5: 0 | D5: 230155111101 | E5: 光城NMS | F5: 1400 | H5: 230155211202 | I5: 大曽根 | J5: 650 | P5: 230155411501 | Q5: 味鋺 | R5: 400 | X5: 北区全域の場合
A6: =SUM(G48,K48,O48,S48,W48) -> 0 | B6: =SUM(F48,J48,N48,R48,V48) -> 29850 | C6: 0 | D6: 230155111102 | E6: 城北NMS | F6: 1250 | H6: 230155211203 | I6: 黒川東 | J6: 700 | P6: 230155411503 | Q6: 萩野通 | R6: 750 | X6: 東区大曽根700枚
C7: 0 | D7: 230155111103 | E7: 城見通NMS | F7: 1350 | H7: 230155211204 | I7: 城北 | J7: 700 | P7: 230155411505 | Q7: 平安通 | R7: 600 | X7: 東区赤塚50枚
C8: 0 | D8: 230155111107 | E8: 志賀NMS | F8: 1700 | P8: 230155411506 | Q8: 如意 | R8: 150 | X8: 西区上名古屋250枚
C9: 0 | D9: 230155111109 | E9: 北陵NM | F9: 1100 | X9: 守山区瀬古100枚
C10: 0 | D10: 230155111110 | E10: お福NMS | F10: 1900 | X10: をプラス
C11: 0 | D11: 230155111112 | E11: 上飯田NMS | F11: 2050
C12: 0 | D12: 230155111114 | E12: 若葉通NMS | F12: 1800
C13: 0 | D13: 230155111115 | E13: 市内飯田NMS | F13: 1400 | X13: 0
C14: 0 | D14: 230155111116 | E14: 金城NMS | F14: 1500 | X14: 0
C15: *1 | D15: 230155111117 | E15: 杉村NMS | F15: 1850 | X15: *1東区550枚含む
C16: *2 | D16: 230155111121 | E16: 柳原・主税町NMS | F16: 1750 | X16: *2東区300枚含む
C17: 0 | D17: 230155111130 | E17: 味鋺NAMS | F17: 3200
C18: 0 | D18: 230155111131 | E18: 市内楠NM | F18: 850 | X18: 0
C19: 0 | D19: 230155111134 | E19: 如意NMS | F19: 1350 | X19: 0
C20: *3 | D20: 230155111133 | E20: 喜惣治NM | F20: 1450 | X20: *3西春日井郡豊山町
X21: 150枚含む
X23: 0
X24: 0
X25: 0
X26: 0
X27: 0
X28: 0
X29: 0
X30: 0
X31: 0
X32: 0
X33: 0
X34: 0
X35: 0
X36: 0
X37: 0
X38: 0
X39: 0
X40: 0
X41: 0
X42: 0
X43: 0
X44: 0
X45: 0
X46: 0
X47: 0
E48: =CONCATENATE(FIXED(COUNTA(E5:E47),0,0)," 店") -> 16 店 | F48: =SUM(F5:F47) -> 25900 | G48: =SUM(G5:G47) -> 0 | I48: =CONCATENATE(FIXED(COUNTA(I5:I47),0,0)," 店") -> 3 店 | J48: =SUM(J5:J47) -> 2050 | K48: =SUM(K5:K47) -> 0 | M48: =CONCATENATE(FIXED(COUNTA(M5:M47),0,0)," 店") -> 0 店 | N48: =SUM(N5:N47) -> 0 | O48: =SUM(O5:O47) -> 0 | Q48: =CONCATENATE(FIXED(COUNTA(Q5:Q47),0,0)," 店") -> 4 店 | R48: =SUM(R5:R47) -> 1900 | S48: =SUM(S5:S47) -> 0 | U48: =CONCATENATE(FIXED(COUNTA(U5:U47),0,0)," 店") -> 0 店 | V48: =SUM(V5:V47) -> 0 | W48: =SUM(W5:W47) -> 0 | X48: =SUM(X5:X47) -> 0
A49: 2025年後期（8月1日以降） | X49: ㈱中日総合サービス

Sheet 千種区
A1: 折込日 | F1: 広告主 | Q1: サイズ | V1: 取次店
F2: チラシ銘柄 | Q2: 部数 | R2: =A6 -> 0
A4: 地区 | D4: 中日新聞 | G4: 枚数 | H4: 朝日新聞 | K4: 枚数 | L4: 毎日新聞 | O4: 枚数 | P4: 読売新聞 | S4: 枚数 | X4: 備考
A5: 千種区 | C5: 0 | D5: 230105101103 | E5: 古井ノ坂NMS | F5: 1200 | H5: 230105201202 | I5: 今池覚王山 | J5: 950 | P5: 230105401501 | Q5: 千種北 | R5: 500 | X5: 千種区全域の場合
A6: =SUM(G48,K48,O48,S48,W48) -> 0 | B6: =SUM(F48,J48,N48,R48,V48) -> 28400 | C6: 0 | D6: 230105101104 | E6: 今池NMS | F6: 2150 | H6: 230105201203 | I6: 自由ヶ丘 | J6: 1550 | P6: 230105401502 | Q6: 今池 | R6: 450 | X6: 昭和区川名200枚
C7: 0 | D7: 230105101105 | E7: 内山NMS | F7: 1400 | H7: 230105201208 | I7: 東山公園 | J7: 200 | P7: 230105401503 | Q7: 東山 | R7: 250 | X7: 名東区平和が丘450枚
C8: 0 | D8: 230105101107 | E8: 萱場NMS | F8: 2200 | H8: 230105201205 | I8: 丸山 | J8: 1400 | P8: 230105401504 | Q8: 千種西 | R8: 400 | X8: 名東区猪子石1,250枚
C9: 0 | D9: 230105101110 | E9: 丸山NMS | F9: 2800 | P9: 230105401505 | Q9: 千種南 | R9: 450 | X9: 中区新栄50枚
C10: 0 | D10: 230105101113 | E10: 天満NMS | F10: 2200 | X10: をプラス
C11: 0 | D11: 230105101114 | E11: 東山NMS | F11: 2850
C12: 0 | D12: 230105101116 | E12: 覚王山NMS | F12: 2000
C13: 0 | D13: 230105101117 | E13: 自由ヶ丘NMS | F13: 1650
C14: 0 | D14: 230105101118 | E14: 千種星ヶ丘NMS | F14: 950
C15: 0 | D15: 230105101119 | E15: 汁谷NMS | F15: 2850
X29: 0
X30: 0
X31: 0
X32: 0
X33: 0
X34: 0
X35: 0
X36: 0
X37: 0
X38: 0
X39: 0
X40: 0
X41: 0
X42: 0
X43: 0
X44: 0
X45: 0
X46: 0
X47: 0
E48: =CONCATENATE(FIXED(COUNTA(E5:E47),0,0)," 店") -> 11 店 | F48: =SUM(F5:F47) -> 22250 | G48: =SUM(G5:G47) -> 0 | I48: =CONCATENATE(FIXED(COUNTA(I5:I47),0,0)," 店") -> 4 店 | J48: =SUM(J5:J47) -> 4100 | K48: =SUM(K5:K47) -> 0 | M48: =CONCATENATE(FIXED(COUNTA(M5:M47),0,0)," 店") -> 0 店 | N48: =SUM(N5:N47) -> 0 | O48: =SUM(O5:O47) -> 0 | Q48: =CONCATENATE(FIXED(COUNTA(Q5:Q47),0,0)," 店") -> 5 店 | R48: =SUM(R5:R47) -> 2050 | S48: =SUM(S5:S47) -> 0 | U48: =CONCATENATE(FIXED(COUNTA(U5:U47),0,0)," 店") -> 0 店 | V48: =SUM(V5:V47) -> 0 | W48: =SUM(W5:W47) -> 0 | X48: =SUM(X5:X47) -> 0
A49: 2025年後期（8月1日以降） | X49: ㈱中日総合サービス

Sheet 名東区
A1: 折込日 | F1: 広告主 | Q1: サイズ | V1: 取次店
F2: チラシ銘柄 | Q2: 部数 | R2: =A6 -> 0
A4: 地区 | D4: 中日新聞 | G4: 枚数 | H4: 朝日新聞 | K4: 枚数 | L4: 毎日新聞 | O4: 枚数 | P4: 読売新聞 | S4: 枚数 | X4: 備考
A5: 名東区 | C5: 0 | D5: 230110102101 | E5: 名東星ヶ丘NM | F5: 1100 | H5: 230110202201 | I5: 名東本通 | J5: 600 | P5: 230110402501 | Q5: 星ヶ丘 | R5: 650 | X5: 名東区全域の場合
A6: =SUM(G48,K48,O48,S48,W48) -> 0 | B6: =SUM(F48,J48,N48,R48,V48) -> 32550 | C6: 0 | D6: 230110102102 | E6: 千種高校前NMS | F6: 1850 | H6: 230110202202 | I6: 星ヶ丘 | J6: 1200 | P6: 230110402502 | Q6: 猪高 | R6: 550 | X6: 天白区植田北部250枚
C7: 0 | D7: 230110102105 | E7: 虹ヶ丘NMS | F7: 2000 | H7: 230110202204 | I7: 藤が丘 | J7: 2100 | P7: 230110402503 | Q7: 名東藤ヶ丘 | R7: 700 | X7: をプラス
C8: 0 | D8: 230110102107 | E8: 高針NMS | F8: 2650 | H8: 230110202205 | I8: 高針 | J8: 1000 | P8: 230110402504 | Q8: 高針 | R8: 500 | X8: 0
C9: *1 | D9: 230110102109 | E9: 極楽NMS | F9: 1700 | X9: 0
C10: 0 | D10: 230110102110 | E10: 上社南NMS | F10: 2100
C11: 0 | D11: 230110102111 | E11: 上社NMS | F11: 1750 | X11: *1長久手市300枚含む
C12: 0 | D12: 230110102112 | E12: 本郷NMS | F12: 2400 | X12: 0
C13: 0 | D13: 230110102113 | E13: 藤が丘NMS | F13: 1950 | X13: 0
C14: 0 | D14: 230110102115 | E14: 猪子石台NMS | F14: 650 | X14: 0
C15: *2 | D15: 230110102117 | E15: 平和が丘NMS | F15: 2100 | X15: 0
C16: *3 | D16: 230110102118 | E16: 猪子石NMS | F16: 3100 | X16: 0
C17: *4 | D17: 230110102119 | E17: 森孝NMS | F17: 1900 | X17: 0
X18: *2千種区450枚含む
X19: *3千種区1,250枚含む
X20: *4守山区1,150枚
X21: 尾張旭市200枚含む
X26: 0
X27: 0
X28: 0
X29: 0
X30: 0
X31: 0
X32: 0
X33: 0
X34: 0
X35: 0
X36: 0
X37: 0
X38: 0
X39: 0
X40: 0
X41: 0
X42: 0
X43: 0
X44: 0
X45: 0
X46: 0
X47: 0
E48: =CONCATENATE(FIXED(COUNTA(E5:E47),0,0)," 店") -> 13 店 | F48: =SUM(F5:F47) -> 25250 | G48: =SUM(G5:G47) -> 0 | I48: =CONCATENATE(FIXED(COUNTA(I5:I47),0,0)," 店") -> 4 店 | J48: =SUM(J5:J47) -> 4900 | K48: =SUM(K5:K47) -> 0 | M48: =CONCATENATE(FIXED(COUNTA(M5:M47),0,0)," 店") -> 0 店 | N48: =SUM(N5:N47) -> 0 | O48: =SUM(O5:O47) -> 0 | Q48: =CONCATENATE(FIXED(COUNTA(Q5:Q47),0,0)," 店") -> 4 店 | R48: =SUM(R5:R47) -> 2400 | S48: =SUM(S5:S47) -> 0 | U48: =CONCATENATE(FIXED(COUNTA(U5:U47),0,0)," 店") -> 0 店 | V48: =SUM(V5:V47) -> 0 | W48: =SUM(W5:W47) -> 0 | X48: =SUM(X5:X47) -> 0
A49: 2025年後期（8月1日以降） | X49: ㈱中日総合サービス

Sheet 守山区
A1: 折込日 | F1: 広告主 | Q1: サイズ | V1: 取次店
F2: チラシ銘柄 | Q2: 部数 | R2: =A6 -> 0
A4: 地区 | D4: 中日新聞 | G4: 枚数 | H4: 朝日新聞 | K4: 枚数 | L4: 毎日新聞 | O4: 枚数 | P4: 読売新聞 | S4: 枚数 | X4: 備考
A5: 守山区 | C5: *1 | D5: 230170101010 | E5: 大森NMS | F5: 5450 | H5: 230170202010 | I5: 守山西部 | J5: 200 | P5: 230170414501 | Q5: 守山東部 | R5: 650 | X5: 守山区全域の場合
A6: =SUM(G48,K48,O48,S48,W48) -> 0 | B6: =SUM(F48,J48,N48,R48,V48) -> 29100 | C6: 0 | D6: 230170101030 | E6: 小幡NMS | F6: 3050 | H6: 230170202020 | I6: 小幡北部 | J6: 100 | P6: 230170414502 | Q6: 森孝 | R6: 300 | X6: 名東区森孝1,150枚
C7: 0 | D7: 230170101050 | E7: 志段味NM | F7: 1600 | H7: 230170202050 | I7: 小幡南部 | J7: 850 | P7: 230170414503 | Q7: 新守山 | R7: 400 | X7: 尾張旭市本地ケ原
C8: 0 | D8: 230170101060 | E8: 志段味西部NMS | F8: 3800 | H8: 230170202040 | I8: 志段味 | J8: 400 | P8: 230170414504 | Q8: 大永寺 | R8: 350 | X8: 1,200枚
C9: *2 | D9: 230170101090 | E9: 瀬古NMS | F9: 2150 | H9: 230170202060 | I9: 守山東部 | J9: 150 | P9: 230170414505 | Q9: 志段味 | R9: 100 | X9: 尾張旭市瑞鳳50枚
D10: 230170101120 | E10: 守山南部NMS | F10: 3150 | H10: 0 | X10: をプラス
C11: 0 | D11: 230170101150 | E11: 新守山NMS | F11: 3450 | H11: 0 | X11: 0
C12: 0 | D12: 230170101170 | E12: 喜多山NMS | F12: 2950 | H12: 0 | X12: 0
C13: 0 | H13: 0 | X13: *1尾張旭市1,650枚
C14: 0 | H14: 0 | X14: 含む
H15: 0 | X15: 0
X16: *2北区100枚含む
X17: 0
X18: 0
X19: 0
X20: 0
X21: 0
X22: 0
X23: 0
X24: 0
X25: 0
X26: 0
X27: 0
X28: 0
X29: 0
X30: 0
X31: 0
X32: 0
X33: 0
X34: 0
X35: 0
X36: 0
X37: 0
X38: 0
X39: 0
X40: 0
X41: 0
X42: 0
X43: 0
X44: 0
X45: 0
X46: 0
X47: 0
E48: =CONCATENATE(FIXED(COUNTA(E5:E47),0,0)," 店") -> 8 店 | F48: =SUM(F5:F47) -> 25600 | G48: =SUM(G5:G47) -> 0 | I48: =CONCATENATE(FIXED(COUNTA(I5:I47),0,0)," 店") -> 5 店 | J48: =SUM(J5:J47) -> 1700 | K48: =SUM(K5:K47) -> 0 | M48: =CONCATENATE(FIXED(COUNTA(M5:M47),0,0)," 店") -> 0 店 | N48: =SUM(N5:N47) -> 0 | O48: =SUM(O5:O47) -> 0 | Q48: =CONCATENATE(FIXED(COUNTA(Q5:Q47),0,0)," 店") -> 5 店 | R48: =SUM(R5:R47) -> 1800 | S48: =SUM(S5:S47) -> 0 | U48: =CONCATENATE(FIXED(COUNTA(U5:U47),0,0)," 店") -> 0 店 | V48: =SUM(V5:V47) -> 0 | W48: =SUM(W5:W47) -> 0 | X48: =SUM(X5:X47) -> 0
A49: 2025年後期（8月1日以降） | X49: ㈱中日総合サービス

Sheet 昭和区
A1: 折込日 | F1: 広告主 | Q1: サイズ | V1: 取次店
F2: チラシ銘柄 | Q2: 部数 | R2: =A6 -> 0
A4: 地区 | D4: 中日新聞 | G4: 枚数 | H4: 朝日新聞 | K4: 枚数 | L4: 毎日新聞 | O4: 枚数 | P4: 読売新聞 | S4: 枚数 | X4: 備考
A5: 昭和区 | C5: 0 | D5: 230115103104 | E5: 円上NMS | F5: 1400 | H5: 230115203207 | I5: 昭和 | J5: 1000 | P5: 230115403501 | Q5: 御器所 | R5: 500 | X5: 昭和区全域の場合
A6: =SUM(G48,K48,O48,S48,W48) -> 0 | B6: =SUM(F48,J48,N48,R48,V48) -> 20150 | C6: *1 | D6: 230115103106 | E6: 桜山NMS | F6: 1300 | H6: 230115203208 | I6: 川原通東 | J6: 400 | P6: 230115403504 | Q6: 千代田 | R6: 300 | X6: 瑞穂区高田100枚
C7: 0 | D7: 230115103108 | E7: 鶴舞NMS | F7: 2000 | H7: 230115203204 | I7: 鶴舞 | J7: 300 | P7: 230115403503 | Q7: 桜山 | R7: 400 | X7: をプラス
C8: *2 | D8: 230115103109 | E8: 御器所NMS | F8: 2800 | H8: 230115203205 | I8: 御器所 | J8: 300 | X8: 0
C9: *3 | D9: 230115103110 | E9: 川名NMS | F9: 3150 | H9: 230115203210 | I9: 山手通 | J9: 300 | X9: *1瑞穂区400枚含む
C10: *4 | D10: 230115103112 | E10: 山手通NMS | F10: 2450 | X10: *2瑞穂区300枚含む
C11: 0 | D11: 230115103115 | E11: 滝子NMS | F11: 1150 | X11: *3千種区200枚含む
C12: 0 | D12: 230115103117 | E12: 川原通NMS | F12: 2400 | X12: *4天白区300枚含む
X16: 0
X18: 0
X19: 0
X20: 0
X21: 0
X22: 0
X23: 0
X24: 0
X25: 0
X26: 0
X27: 0
X28: 0
X29: 0
X30: 0
X31: 0
X32: 0
X33: 0
X34: 0
X35: 0
X36: 0
X37: 0
X38: 0
X39: 0
X40: 0
X41: 0
X42: 0
X43: 0
X44: 0
X45: 0
X46: 0
X47: 0
E48: =CONCATENATE(FIXED(COUNTA(E5:E47),0,0)," 店") -> 8 店 | F48: =SUM(F5:F47) -> 16650 | G48: =SUM(G5:G47) -> 0 | I48: =CONCATENATE(FIXED(COUNTA(I5:I47),0,0)," 店") -> 5 店 | J48: =SUM(J5:J47) -> 2300 | K48: =SUM(K5:K47) -> 0 | M48: =CONCATENATE(FIXED(COUNTA(M5:M47),0,0)," 店") -> 0 店 | N48: =SUM(N5:N47) -> 0 | O48: =SUM(O5:O47) -> 0 | Q48: =CONCATENATE(FIXED(COUNTA(Q5:Q47),0,0)," 店") -> 3 店 | R48: =SUM(R5:R47) -> 1200 | S48: =SUM(S5:S47) -> 0 | U48: =CONCATENATE(FIXED(COUNTA(U5:U47),0,0)," 店") -> 0 店 | V48: =SUM(V5:V47) -> 0 | W48: =SUM(W5:W47) -> 0 | X48: =SUM(X5:X47) -> 0
A49: 2025年後期（8月1日以降） | X49: ㈱中日総合サービス

Sheet 天白区
A1: 折込日 | F1: 広告主 | Q1: サイズ | V1: 取次店
F2: チラシ銘柄 | Q2: 部数 | R2: =A6 -> 0
A4: 地区 | D4: 中日新聞 | G4: 枚数 | H4: 朝日新聞 | K4: 枚数 | L4: 毎日新聞 | O4: 枚数 | P4: 読売新聞 | S4: 枚数 | X4: 備考
A5: 天白区 | D5: 230175101005 | E5: 八事NMS | F5: 2300 | H5: 230175202010 | I5: 平針 | J5: 350 | L5: 230175303030 | M5: 鳴子 | N5: 50 | P5: 230175415501 | Q5: 平針 | R5: 350 | X5: 天白区全域の場合
A6: =SUM(G48,K48,O48,S48,W48) -> 0 | B6: =SUM(F48,J48,N48,R48,V48) -> 29000 | C6: 0 | D6: 230175101010 | E6: 平針住宅NMS | F6: 1250 | H6: 230175202020 | I6: 天白 | J6: 800 | P6: 230175415503 | Q6: 島田 | R6: 950 | X6: 緑区神ノ倉東部150枚
C7: 0 | D7: 230175101020 | E7: 平針NMS | F7: 5250 | H7: 230175202040 | I7: 原 | J7: 450 | P7: 230175415504 | Q7: 植田 | R7: 400 | X7: 昭和区山手通300枚
C8: 0 | D8: 230175101030 | E8: 植田NMS | F8: 3300 | H8: 230175202050 | I8: 野並 | J8: 200 | P8: 230175415505 | Q8: 植田東 | R8: 550 | X8: をプラス
C9: *1 | D9: 230175101040 | E9: 植田北部NMS | F9: 2000 | H9: 230175202065 | I9: 八事 | J9: 750
C10: 0 | D10: 230175101070 | E10: 島田NMS | F10: 2200 | H10: 230175202070 | I10: 南天白 | J10: 250 | X10: 0
C11: 0 | D11: 230175101090 | E11: 野並NMS | F11: 1850 | X11: 0
C12: *2 | D12: 230175101110 | E12: 黒石NMS | F12: 1450
C13: 0 | D13: 230175101120 | E13: 一ツ山NMS | F13: 1800 | X13: 0
C14: 0 | D14: 230175101150 | E14: 天白相生NS | F14: 900 | X14: *1名東区250枚含む
C15: *3 | D15: 230175101170 | E15: 梅が丘NMS | F15: 1600 | X15: 0
X16: *2緑区800枚含む
X17: 0
X18: *3日進市800枚含む
X19: 0
E48: =CONCATENATE(FIXED(COUNTA(E5:E47),0,0)," 店") -> 11 店 | F48: =SUM(F5:F47) -> 23900 | G48: =SUM(G5:G47) -> 0 | I48: =CONCATENATE(FIXED(COUNTA(I5:I47),0,0)," 店") -> 6 店 | J48: =SUM(J5:J47) -> 2800 | K48: =SUM(K5:K47) -> 0 | M48: =CONCATENATE(FIXED(COUNTA(M5:M47),0,0)," 店") -> 1 店 | N48: =SUM(N5:N47) -> 50 | O48: =SUM(O5:O47) -> 0 | Q48: =CONCATENATE(FIXED(COUNTA(Q5:Q47),0,0)," 店") -> 4 店 | R48: =SUM(R5:R47) -> 2250 | S48: =SUM(S5:S47) -> 0 | U48: =CONCATENATE(FIXED(COUNTA(U5:U47),0,0)," 店") -> 0 店 | V48: =SUM(V5:V47) -> 0 | W48: =SUM(W5:W47) -> 0 | X48: =SUM(X5:X47) -> 0
A49: 2025年後期（8月1日以降） | X49: ㈱中日総合サービス

Sheet 瑞穂区
A1: 折込日 | F1: 広告主 | Q1: サイズ | V1: 取次店
F2: チラシ銘柄 | Q2: 部数 | R2: =A6 -> 0
A4: 地区 | D4: 中日新聞 | G4: 枚数 | H4: 朝日新聞 | K4: 枚数 | L4: 毎日新聞 | O4: 枚数 | P4: 読売新聞 | S4: 枚数 | X4: 備考
A5: 瑞穂区 | C5: *1 | D5: 230120104101 | E5: 高田NMS | F5: 2250 | H5: 230120204201 | I5: 弥富通 | J5: 600 | P5: 230120404501 | Q5: 滝川 | R5: 500 | X5: 瑞穂区全域の場合
A6: =SUM(G48,K48,O48,S48,W48) -> 0 | B6: =SUM(F48,J48,N48,R48,V48) -> 19500 | C6: 0 | D6: 230120104102 | E6: 井戸田NS | F6: 1150 | H6: 230120204204 | I6: 田辺通 | J6: 900 | P6: 230120404502 | Q6: 豊岡通 | R6: 200 | X6: 昭和区御器所300枚
C7: 0 | D7: 230120104103 | E7: 堀田NMS | F7: 2550 | H7: 230120204203 | I7: 瑞穂 | J7: 850 | X7: 昭和区桜山400枚
C8: 0 | D8: 230120104104 | E8: 瑞穂NMS | F8: 2550 | X8: をプラス
D9: 230120104107 | E9: 昭和高校前NMS | F9: 1500
C10: 0 | D10: 230120104109 | E10: 汐路NMS | F10: 1500 | X10: *1昭和区100枚含む
C11: 0 | D11: 230120104110 | E11: 石川橋NMS | F11: 1750 | X11: 0
C12: 0 | D12: 230120104111 | E12: 中根NS | F12: 1800 | X12: 0
C13: 0 | D13: 230120104112 | E13: 市内弥富NMS | F13: 1400
C14: 0 | X14: 0
C15: 0 | X15: 0
X16: 0
X17: 0
X18: 0
X19: 0
X20: 0
X21: 0
X22: 0
X23: 0
X24: 0
X25: 0
X26: 0
X27: 0
X28: 0
X29: 0
X30: 0
X31: 0
X32: 0
X33: 0
X34: 0
X35: 0
X36: 0
X37: 0
X38: 0
X39: 0
X40: 0
X41: 0
X42: 0
X43: 0
X44: 0
X45: 0
X46: 0
X47: 0
E48: =CONCATENATE(FIXED(COUNTA(E5:E47),0,0)," 店") -> 9 店 | F48: =SUM(F5:F47) -> 16450 | G48: =SUM(G5:G47) -> 0 | I48: =CONCATENATE(FIXED(COUNTA(I5:I47),0,0)," 店") -> 3 店 | J48: =SUM(J5:J47) -> 2350 | K48: =SUM(K5:K47) -> 0 | M48: =CONCATENATE(FIXED(COUNTA(M5:M47),0,0)," 店") -> 0 店 | N48: =SUM(N5:N47) -> 0 | O48: =SUM(O5:O47) -> 0 | Q48: =CONCATENATE(FIXED(COUNTA(Q5:Q47),0,0)," 店") -> 2 店 | R48: =SUM(R5:R47) -> 700 | S48: =SUM(S5:S47) -> 0 | U48: =CONCATENATE(FIXED(COUNTA(U5:U47),0,0)," 店") -> 0 店 | V48: =SUM(V5:V47) -> 0 | W48: =SUM(W5:W47) -> 0 | X48: =SUM(X5:X47) -> 0
A49: 2025年後期（8月1日以降） | X49: ㈱中日総合サービス

Sheet 南区
A1: 折込日 | F1: 広告主 | Q1: サイズ | V1: 取次店
F2: チラシ銘柄 | Q2: 部数 | R2: =A6 -> 0
A4: 地区 | D4: 中日新聞 | G4: 枚数 | H4: 朝日新聞 | K4: 枚数 | L4: 毎日新聞 | O4: 枚数 | P4: 読売新聞 | S4: 枚数 | X4: 備考
A5: 南区 | C5: 0 | D5: 230125105102 | E5: 柴田NMS | F5: 2250 | H5: 230125205201 | I5: 市内桜 | J5: 500 | L5: 230125305301 | M5: 桜 | N5: 450 | P5: 230125405502 | Q5: 明豊 | R5: 600 | X5: 0
A6: =SUM(G48,K48,O48,S48,W48) -> 0 | B6: =SUM(F48,J48,N48,R48,V48) -> 27600 | C6: 0 | D6: 230125105105 | E6: 星崎NM | F6: 1400 | H6: 230125205202 | I6: 笠寺 | J6: 500 | P6: 230125405503 | Q6: 笠寺 | R6: 200 | X6: 0
C7: 0 | D7: 230125105106 | E7: 鳴尾NM | F7: 1300 | H7: 230125205204 | I7: 柴田 | J7: 350 | P7: 230125405504 | Q7: 野並 | R7: 600 | X7: 0
C8: *1 | D8: 230125105108 | E8: 明治NMS | F8: 2050 | H8: 230125205205 | I8: 道徳 | J8: 500 | P8: 230125405507 | Q8: 呼続 | R8: 600 | X8: *1熱田区300枚含む
C9: 0 | D9: 230125105109 | E9: 市内豊田NMS | F9: 2050 | P9: 230125405505 | Q9: 柴田 | R9: 350
C10: *2 | D10: 230125105110 | E10: 南陽通NMS | F10: 2250 | P10: 230125405506 | Q10: 北頭 | R10: 250 | X10: *2港区750枚含む
C11: 0 | D11: 230125105111 | E11: 大江NMS | F11: 1200 | X11: 0
C12: 0 | D12: 230125105114 | E12: 笠寺NMS | F12: 2400 | X12: 0
C13: 0 | D13: 230125105118 | E13: さくらNMS | F13: 1700
C14: 0 | D14: 230125105119 | E14: 呼続NS | F14: 1600 | X14: 0
C15: 0 | D15: 230125105120 | E15: 大磯NMS | F15: 2000
C16: 0 | D16: 230125105121 | E16: 桜田NMS | F16: 1650 | X16: 0
C17: 0 | D17: 230125105122 | E17: ゆたかNMS | F17: 850 | X17: 0
X18: 0
X19: 0
X20: 0
X21: 0
X22: 0
X23: 0
X24: 0
X25: 0
X26: 0
X27: 0
X28: 0
X29: 0
X30: 0
X31: 0
X32: 0
X33: 0
X34: 0
X35: 0
X36: 0
X37: 0
X38: 0
X39: 0
X40: 0
X41: 0
X42: 0
X43: 0
X44: 0
X45: 0
X46: 0
X47: 0
E48: =CONCATENATE(FIXED(COUNTA(E5:E47),0,0)," 店") -> 13 店 | F48: =SUM(F5:F47) -> 22700 | G48: =SUM(G5:G47) -> 0 | I48: =CONCATENATE(FIXED(COUNTA(I5:I47),0,0)," 店") -> 4 店 | J48: =SUM(J5:J47) -> 1850 | K48: =SUM(K5:K47) -> 0 | M48: =CONCATENATE(FIXED(COUNTA(M5:M47),0,0)," 店") -> 1 店 | N48: =SUM(N5:N47) -> 450 | O48: =SUM(O5:O47) -> 0 | Q48: =CONCATENATE(FIXED(COUNTA(Q5:Q47),0,0)," 店") -> 6 店 | R48: =SUM(R5:R47) -> 2600 | S48: =SUM(S5:S47) -> 0 | U48: =CONCATENATE(FIXED(COUNTA(U5:U47),0,0)," 店") -> 0 店 | V48: =SUM(V5:V47) -> 0 | W48: =SUM(W5:W47) -> 0 | X48: =SUM(X5:X47) -> 0
A49: 2025年後期（8月1日以降） | X49: ㈱中日総合サービス

Sheet 緑区
A1: 折込日 | F1: 広告主 | Q1: サイズ | V1: 取次店
F2: チラシ銘柄 | Q2: 部数 | R2: =A6 -> 0
A4: 地区 | D4: 中日新聞 | G4: 枚数 | H4: 朝日新聞 | K4: 枚数 | L4: 毎日新聞 | O4: 枚数 | P4: 読売新聞 | S4: 枚数 | X4: 備考
A5: 緑区 | C5: 0 | D5: 230180101010 | E5: なるみ砦NS | F5: 2100 | H5: 230180202010 | I5: 鳴海 | J5: 300 | L5: 230180303010 | M5: 鳴海 | N5: 500 | P5: 230180416502 | Q5: 大高 | R5: 550 | X5: 緑区全域の場合
A6: =SUM(G48,K48,O48,S48,W48) -> 0 | B6: =SUM(F48,J48,N48,R48,V48) -> 43850 | C6: 0 | D6: 230180101030 | E6: 鳴海N | F6: 1750 | H6: 230180202020 | I6: 緑中央 | J6: 950 | L6: 230180303030 | M6: 鳴子 | N6: 450 | P6: 230180416503 | Q6: 緑中央 | R6: 750 | X6: 天白区黒石800枚
C7: 0 | D7: 230180101040 | E7: 大高NS | F7: 2500 | H7: 230180202040 | I7: 神の倉 | J7: 2050 | L7: 230180303040 | M7: 大高 | N7: 350 | X7: をプラス
C8: 0 | D8: 230180101050 | E8: 大高南NS | F8: 1000 | H8: 230180202060 | I8: 有松 | J8: 850 | X8: 0
C9: 0 | D9: 230180101070 | E9: 鳴子NS | F9: 3550 | H9: 230180202080 | I9: 鳴子 | J9: 400 | X9: 0
C10: 0 | D10: 230180101080 | E10: 平手NS | F10: 1450 | H10: 230180202090 | I10: 緑南部 | J10: 550 | X10: 0
C11: 0 | D11: 230180101100 | E11: 滝の水NS | F11: 2250 | X11: 0
C12: 0 | D12: 230180101110 | E12: みどり台NS | F12: 3000 | X12: 0
C13: 0 | D13: 230180101140 | E13: 左京山NS | F13: 2900 | X13: 0
C14: 0 | D14: 230180101150 | E14: 有松NMS | F14: 1900 | X14: 0
C15: 0 | D15: 230180101160 | E15: 有松南NM | F15: 1050 | X15: 0
C16: 0 | D16: 230180101180 | E16: 鳴海住宅NS | F16: 1700 | X16: 0
C17: 0 | D17: 230180101190 | E17: 競馬場前NS | F17: 1500 | X17: 0
C18: 0 | D18: 230180101200 | E18: 神ノ倉NMS | F18: 2050 | X18: 0
C19: *1 | D19: 230180101201 | E19: 神ノ倉東部NMS | F19: 1150 | X19: 0
D20: 230180101210 | E20: みどり桃山NMS | F20: 1000 | X20: 0
C21: 0 | D21: 230180101220 | E21: みどり徳重N | F21: 1600 | X21: *1天白区150枚含む
C22: 0 | D22: 230180101230 | E22: 鳴海大清水NS | F22: 1600
C23: 0 | D23: 230180101240 | E23: 桶狭間NM | F23: 1000
C24: 0 | D24: 230180101250 | E24: みどり篭山N | F24: 1100 | X24: 0
X25: 0
X26: 0
X27: 0
X28: 0
X29: 0
X30: 0
X31: 0
X32: 0
X33: 0
X34: 0
X35: 0
X36: 0
X37: 0
X38: 0
X39: 0
X40: 0
X41: 0
X42: 0
X43: 0
X44: 0
X45: 0
X46: 0
X47: 0
E48: =CONCATENATE(FIXED(COUNTA(E5:E47),0,0)," 店") -> 20 店 | F48: =SUM(F5:F47) -> 36150 | G48: =SUM(G5:G47) -> 0 | I48: =CONCATENATE(FIXED(COUNTA(I5:I47),0,0)," 店") -> 6 店 | J48: =SUM(J5:J47) -> 5100 | K48: =SUM(K5:K47) -> 0 | M48: =CONCATENATE(FIXED(COUNTA(M5:M47),0,0)," 店") -> 3 店 | N48: =SUM(N5:N47) -> 1300 | O48: =SUM(O5:O47) -> 0 | Q48: =CONCATENATE(FIXED(COUNTA(Q5:Q47),0,0)," 店") -> 2 店 | R48: =SUM(R5:R47) -> 1300 | S48: =SUM(S5:S47) -> 0 | U48: =CONCATENATE(FIXED(COUNTA(U5:U47),0,0)," 店") -> 0 店 | V48: =SUM(V5:V47) -> 0 | W48: =SUM(W5:W47) -> 0 | X48: =SUM(X5:X47) -> 0
A49: 2025年後期（8月1日以降） | X49: ㈱中日総合サービス

Sheet 熱田区・港区
A1: 折込日 | F1: 広告主 | Q1: サイズ | V1: 取次店
F2: チラシ銘柄 | Q2: 部数 | R2: =A6+A25 -> 0
A4: 地区 | D4: 中日新聞 | G4: 枚数 | H4: 朝日新聞 | K4: 枚数 | L4: 毎日新聞 | O4: 枚数 | P4: 読売新聞 | S4: 枚数 | X4: 備考
A5: 熱田区 | C5: 0 | D5: 230130106101 | E5: 沢上NMS | F5: 2750 | H5: 230130206201 | I5: 熱田 | J5: 500 | P5: 230130406504 | Q5: 金山 | R5: 850 | X5: 熱田区全域の場合
A6: =SUM(G21,K21,O21,S21,W21) -> 0 | B6: =SUM(F21,J21,N21,R21,V21) -> 13250 | C6: 0 | D6: 230130106102 | E6: 熱田NMS | F6: 1650 | H6: 230130206202 | I6: 日比野 | J6: 450 | P6: 230130406502 | Q6: 神宮 | R6: 600 | X6: 港区千年950枚
C7: *1 | D7: 230130106104 | E7: 日比野NMS | F7: 3250 | P7: 230130406503 | Q7: 千年 | R7: 700 | X7: 南区明治300枚
C8: 0 | D8: 230130106106 | E8: 六番町NMS | F8: 950 | X8: をプラス
C9: 0 | D9: 230130106105 | E9: 船方NMS | F9: 1550
X10: *1中川区850枚含む
X11: 0
X12: 0
X13: 0
X14: 0
X15: 0
X16: 0
X17: 0
X18: 0
X19: 0
X20: 0
E21: =CONCATENATE(FIXED(COUNTA(E5:E20),0,0)," 店") -> 5 店 | F21: =SUM(F5:F20) -> 10150 | G21: =SUM(G5:G20) -> 0 | I21: =CONCATENATE(FIXED(COUNTA(I5:I20),0,0)," 店") -> 2 店 | J21: =SUM(J5:J20) -> 950 | K21: =SUM(K5:K20) -> 0 | M21: =CONCATENATE(FIXED(COUNTA(M5:M20),0,0)," 店") -> 0 店 | N21: =SUM(N5:N20) -> 0 | O21: =SUM(O5:O20) -> 0 | Q21: =CONCATENATE(FIXED(COUNTA(Q5:Q20),0,0)," 店") -> 3 店 | R21: =SUM(R5:R20) -> 2150 | S21: =SUM(S5:S20) -> 0 | U21: =CONCATENATE(FIXED(COUNTA(U5:U20),0,0)," 店") -> 0 店 | V21: =SUM(V5:V20) -> 0 | W21: =SUM(W5:W20) -> 0 | X21: =SUM(X5:X20) -> 0
A23: 地区 | D23: 中日新聞 | G23: 枚数 | H23: 朝日新聞 | K23: 枚数 | L23: 毎日新聞 | O23: 枚数 | P23: 読売新聞 | S23: 枚数 | X23: 備考
A24: 港区 | C24: *1 | D24: 230135107101 | E24: 千年NMS | F24: 1800 | H24: 230135207201 | I24: 大手 | J24: 350 | P24: 230135407501 | Q24: 稲永 | R24: 400 | X24: 港区全域の場合
A25: =SUM(G48,K48,O48,S48,W48) -> 0 | B25: =SUM(F48,J48,N48,R48,V48) -> 21950 | C25: 0 | D25: 230135107102 | E25: 名港NAMS | F25: 1700 | H25: 230135207203 | I25: 港北 | J25: 300 | P25: 230135407502 | Q25: 名港 | R25: 400 | X25: 南区南陽通750枚
C26: 0 | D26: 230135107104 | E26: 東海橋NAMS | F26: 1350 | P26: 230135407503 | Q26: 惟信 | R26: 500 | X26: 中川区昭和橋500枚
C27: 0 | D27: 230135107105 | E27: 小碓NM | F27: 2200 | P27: 230135407504 | Q27: 南陽 | R27: 300 | X27: 中川区豊治200枚
C28: 0 | D28: 230135107107 | E28: 稲永NAMS | F28: 1500 | X28: をプラス
C29: 0 | D29: 230135107109 | E29: 港西NAM | F29: 1350
C30: 0 | D30: 230135107110 | E30: 大手NAMS | F30: 1800 | X30: 0
C31: 0 | D31: 230135107112 | E31: 明徳NM | F31: 1450 | X31: *1熱田区950枚含む
C32: 0 | D32: 230135107113 | E32: 当知NM | F32: 1000 | X32: 0
C33: 0 | D33: 230135107114 | E33: 市内南陽NAMS | F33: 2900 | X33: 0
C34: 0 | D34: 230135107115 | E34: 南陽西部NAMS | F34: 1400 | X34: 0
C35: 0 | D35: 230135107116 | E35: 惟信NM | F35: 1250 | X35: 0
X36: 0
C37: 0 | X37: 0
X38: 0
X39: 0
X40: 0
X41: 0
X42: 0
X43: 0
X44: 0
X45: 0
X46: 0
X47: 0
E48: =CONCATENATE(FIXED(COUNTA(E24:E47),0,0)," 店") -> 12 店 | F48: =SUM(F24:F47) -> 19700 | G48: =SUM(G24:G47) -> 0 | I48: =CONCATENATE(FIXED(COUNTA(I24:I47),0,0)," 店") -> 2 店 | J48: =SUM(J24:J47) -> 650 | K48: =SUM(K24:K47) -> 0 | M48: =CONCATENATE(FIXED(COUNTA(M24:M47),0,0)," 店") -> 0 店 | N48: =SUM(N24:N47) -> 0 | O48: =SUM(O24:O47) -> 0 | Q48: =CONCATENATE(FIXED(COUNTA(Q24:Q47),0,0)," 店") -> 4 店 | R48: =SUM(R24:R47) -> 1600 | S48: =SUM(S24:S47) -> 0 | U48: =CONCATENATE(FIXED(COUNTA(U24:U47),0,0)," 店") -> 0 店 | V48: =SUM(V24:V47) -> 0 | W48: =SUM(W24:W47) -> 0 | X48: =SUM(X24:X47) -> 0
A49: 2025年後期（8月1日以降） | X49: ㈱中日総合サービス

Sheet 中川区
A1: 折込日 | F1: 広告主 | Q1: サイズ | V1: 取次店
F2: チラシ銘柄 | Q2: 部数 | R2: =A6 -> 0
A4: 地区 | D4: 中日新聞 | G4: 枚数 | H4: 朝日新聞 | K4: 枚数 | L4: 毎日新聞 | O4: 枚数 | P4: 読売新聞 | S4: 枚数 | X4: 備考
A5: 中川区 | C5: *1 | D5: 230140108101 | E5: 昭和橋NMS | F5: 2250 | H5: 230140208201 | I5: 五女子 | J5: 550 | P5: 230140408502 | Q5: 高畑 | R5: 1050 | X5: 中川区全域の場合
A6: =SUM(G48,K48,O48,S48,W48) -> 0 | B6: =SUM(F48,J48,N48,R48,V48) -> 36600 | C6: 0 | D6: 230140108102 | E6: 五女子NMS | F6: 1450 | H6: 230140208210 | I6: 戸田 | J6: 350 | P6: 230140408503 | Q6: 昭和橋 | R6: 1050 | X6: 熱田区日比野850枚
C7: 0 | D7: 230140108104 | E7: 大須・水主町NMS | F7: 1250 | H7: 230140208203 | I7: 高畑 | J7: 300 | P7: 230140408505 | Q7: 十番町 | R7: 100 | X7: 海部郡大治町万場北
C8: 0 | D8: 230140108105 | E8: 篠原NM | F8: 1800 | P8: 230140408506 | Q8: 富田 | R8: 650 | X8: 200枚をプラス
C9: 0 | D9: 230140108106 | E9: 八幡NMS | F9: 2350 | X9: 0
C10: 0 | D10: 230140108110 | E10: 太平通NMS | F10: 2050 | X10: *1港区500枚含む
C11: 0 | D11: 230140108111 | E11: 中川常磐NMS | F11: 2650 | X11: 0
C12: 0 | D12: 230140108112 | E12: 東起NM | F12: 1050 | X12: 0
C13: 0 | D13: 230140108115 | E13: 正色NAMS | F13: 1700 | X13: 0
C14: *2 | D14: 230140108116 | E14: 野田NMS | F14: 1950 | X14: 0
C15: 0 | D15: 230140108118 | E15: 荒子NMS | F15: 1500 | X15: *2中村区500枚含む
C16: 0 | D16: 230140108120 | E16: 高杉NMS | F16: 1350
C17: 0 | D17: 230140108122 | E17: 中郷NMS | F17: 1750 | X17: 0
C18: 0 | D18: 230140108131 | E18: 春田NMS | F18: 1450 | X18: 0
C19: *3 | D19: 230140108132 | E19: 戸田NMS | F19: 1450 | X19: 0
C20: *4 | D20: 230140108133 | E20: 豊治NAMS | F20: 2750 | X20: *3蟹江町50枚含む
C21: 0 | D21: 230140108136 | E21: 千音寺NMS | F21: 1950 | X21: *4港区200枚含む
C22: 0 | D22: 230140108137 | E22: とみた吉津NMS | F22: 1000
C23: 0 | D23: 230140108138 | E23: 万場NMS | F23: 850
C26: 0
X29: 0
X30: 0
X31: 0
X32: 0
X33: 0
X34: 0
X35: 0
X36: 0
X37: 0
X38: 0
X39: 0
E48: =CONCATENATE(FIXED(COUNTA(E5:E47),0,0)," 店") -> 19 店 | F48: =SUM(F5:F47) -> 32550 | G48: =SUM(G5:G47) -> 0 | I48: =CONCATENATE(FIXED(COUNTA(I5:I47),0,0)," 店") -> 3 店 | J48: =SUM(J5:J47) -> 1200 | K48: =SUM(K5:K47) -> 0 | M48: =CONCATENATE(FIXED(COUNTA(M5:M47),0,0)," 店") -> 0 店 | N48: =SUM(N5:N47) -> 0 | O48: =SUM(O5:O47) -> 0 | Q48: =CONCATENATE(FIXED(COUNTA(Q5:Q47),0,0)," 店") -> 4 店 | R48: =SUM(R5:R47) -> 2850 | S48: =SUM(S5:S47) -> 0 | U48: =CONCATENATE(FIXED(COUNTA(U5:U47),0,0)," 店") -> 0 店 | V48: =SUM(V5:V47) -> 0 | W48: =SUM(W5:W47) -> 0
A49: 2025年後期（8月1日以降） | X49: ㈱中日総合サービス

Sheet 尾張地区
A1: 折込日 | F1: 広告主 | O1: サイズ | S1: 取次店
F2: チラシ銘柄 | O2: 部数 | P2: =S39 -> 0
A3: 尾張地区 | U3: 2025年後期（8月1日以降）
A4: 地区 | B4: 中日新聞 | E4: 朝日新聞 | H4: 毎日新聞 | K4: 読売新聞 | Q4: 合 計 | T4: 備考
A5: 一宮市 | B5: =VALUE(TRIM(LEFT(一宮市!E$48,2))) -> 24 | C5: =一宮市!F$48 -> 59350 | D5: =一宮市!G$48 -> 0 | E5: =VALUE(TRIM(LEFT(一宮市!I$48,2))) -> 9 | F5: =一宮市!J$48 -> 5600 | G5: =一宮市!K$48 -> 0 | H5: =VALUE(TRIM(LEFT(一宮市!M$48,2))) -> 4 | I5: =一宮市!N$48 -> 1700 | J5: =一宮市!O$48 -> 0 | K5: =VALUE(TRIM(LEFT(一宮市!Q$48,2))) -> 5 | L5: =一宮市!R$48 -> 3750 | M5: =一宮市!S$48 -> 0 | Q5: =SUM(B5,E5,H5,K5,N5) -> 42 | R5: =SUM(C5,F5,I5,L5,O5) -> 70400 | S5: =IFERROR((SUM(D5,G5,J5,M5,P5))," ") -> 0
A6: 稲沢市 | B6: =VALUE(TRIM(LEFT(稲沢市・津島市!E26,2))) -> 12 | C6: =稲沢市・津島市!F26 -> 24400 | D6: =稲沢市・津島市!G26 -> 0 | E6: =VALUE(TRIM(LEFT(稲沢市・津島市!I26,2))) -> 5 | F6: =稲沢市・津島市!J26 -> 2400 | G6: =稲沢市・津島市!K26 -> 0 | H6: =VALUE(TRIM(LEFT(稲沢市・津島市!M26,2))) -> 4 | I6: =稲沢市・津島市!N26 -> 1400 | J6: =稲沢市・津島市!O26 -> 0 | K6: =VALUE(TRIM(LEFT(稲沢市・津島市!Q26,2))) -> 2 | L6: =稲沢市・津島市!R26 -> 750 | M6: =稲沢市・津島市!S26 -> 0 | Q6: 23 | R6: 28950 | S6: 0
A7: 津島市 | B7: =VALUE(TRIM(LEFT(稲沢市・津島市!E48,2))) -> 5 | C7: =稲沢市・津島市!F48 -> 11950 | D7: =稲沢市・津島市!G48 -> 0 | E7: =VALUE(TRIM(LEFT(稲沢市・津島市!I48,2))) -> 1 | F7: =稲沢市・津島市!J48 -> 1150 | G7: =稲沢市・津島市!K48 -> 0 | H7: =VALUE(TRIM(LEFT(稲沢市・津島市!M48,2))) -> 0 | I7: =稲沢市・津島市!N48 -> 0 | J7: =稲沢市・津島市!O48 -> 0 | K7: =VALUE(TRIM(LEFT(稲沢市・津島市!Q48,2))) -> 2 | L7: =稲沢市・津島市!R48 -> 850 | M7: =稲沢市・津島市!S48 -> 0 | Q7: 8 | R7: 13950 | S7: 0
A8: 愛西市 | B8: =VALUE(TRIM(LEFT(愛西市・弥富市・あま市!E18,2))) -> 5 | C8: =愛西市・弥富市・あま市!F18 -> 10900 | D8: =愛西市・弥富市・あま市!G18 -> 0 | E8: =VALUE(TRIM(LEFT(愛西市・弥富市・あま市!I18,2))) -> 1 | F8: =愛西市・弥富市・あま市!J18 -> 300 | G8: =愛西市・弥富市・あま市!K18 -> 0 | H8: =VALUE(TRIM(LEFT(愛西市・弥富市・あま市!M18,2))) -> 0 | I8: =愛西市・弥富市・あま市!N18 -> 0 | J8: =愛西市・弥富市・あま市!O18 -> 0 | K8: =VALUE(TRIM(LEFT(愛西市・弥富市・あま市!Q18,2))) -> 0 | L8: =愛西市・弥富市・あま市!R18 -> 0 | M8: =愛西市・弥富市・あま市!S18 -> 0 | Q8: 6 | R8: 11200 | S8: 0
A9: 弥富市 | B9: =VALUE(TRIM(LEFT(愛西市・弥富市・あま市!E31,2))) -> 4 | C9: =愛西市・弥富市・あま市!F31 -> 7750 | D9: =愛西市・弥富市・あま市!G31 -> 0 | E9: =VALUE(TRIM(LEFT(愛西市・弥富市・あま市!I31,2))) -> 0 | F9: =愛西市・弥富市・あま市!J31 -> 0 | G9: =愛西市・弥富市・あま市!K31 -> 0 | H9: =VALUE(TRIM(LEFT(愛西市・弥富市・あま市!M31,2))) -> 0 | I9: =愛西市・弥富市・あま市!N31 -> 0 | J9: =愛西市・弥富市・あま市!O31 -> 0 | K9: =VALUE(TRIM(LEFT(愛西市・弥富市・あま市!Q31,2))) -> 2 | L9: =愛西市・弥富市・あま市!R31 -> 800 | M9: =愛西市・弥富市・あま市!S31 -> 0 | Q9: 6 | R9: 8550 | S9: 0
A10: あま市 | B10: =VALUE(TRIM(LEFT(愛西市・弥富市・あま市!E48,2))) -> 6 | C10: =愛西市・弥富市・あま市!F48 -> 13050 | D10: =愛西市・弥富市・あま市!G48 -> 0 | E10: =VALUE(TRIM(LEFT(愛西市・弥富市・あま市!I48,2))) -> 2 | F10: =愛西市・弥富市・あま市!J48 -> 550 | G10: =愛西市・弥富市・あま市!K48 -> 0 | H10: =VALUE(TRIM(LEFT(愛西市・弥富市・あま市!M48,2))) -> 0 | I10: =愛西市・弥富市・あま市!N48 -> 0 | J10: =愛西市・弥富市・あま市!O48 -> 0 | K10: =VALUE(TRIM(LEFT(愛西市・弥富市・あま市!Q48,2))) -> 3 | L10: =愛西市・弥富市・あま市!R48 -> 1300 | M10: =愛西市・弥富市・あま市!S48 -> 0 | Q10: 11 | R10: 14900 | S10: 0
A11: 海部郡 | B11: =VALUE(TRIM(LEFT(海部郡・清須市・北名古屋市!E19,2))) -> 9 | C11: =海部郡・清須市・北名古屋市!F19 -> 11450 | D11: =海部郡・清須市・北名古屋市!G19 -> 0 | E11: =VALUE(TRIM(LEFT(海部郡・清須市・北名古屋市!I19,2))) -> 1 | F11: =海部郡・清須市・北名古屋市!J19 -> 500 | G11: =海部郡・清須市・北名古屋市!K19 -> 0 | H11: =VALUE(TRIM(LEFT(海部郡・清須市・北名古屋市!M19,2))) -> 0 | I11: =海部郡・清須市・北名古屋市!N19 -> 0 | J11: =海部郡・清須市・北名古屋市!O19 -> 0 | K11: =VALUE(TRIM(LEFT(海部郡・清須市・北名古屋市!Q19,2))) -> 1 | L11: =海部郡・清須市・北名古屋市!R19 -> 300 | M11: =海部郡・清須市・北名古屋市!S19 -> 0 | Q11: 11 | R11: 12250 | S11: 0
A12: 清須市 | B12: =VALUE(TRIM(LEFT(海部郡・清須市・北名古屋市!E37,2))) -> 6 | C12: =海部郡・清須市・北名古屋市!F37 -> 11400 | D12: =海部郡・清須市・北名古屋市!G37 -> 0 | E12: =VALUE(TRIM(LEFT(海部郡・清須市・北名古屋市!I37,2))) -> 1 | F12: =海部郡・清須市・北名古屋市!J37 -> 500 | G12: =海部郡・清須市・北名古屋市!K37 -> 0 | H12: =VALUE(TRIM(LEFT(海部郡・清須市・北名古屋市!M37,2))) -> 1 | I12: =海部郡・清須市・北名古屋市!N37 -> 750 | J12: =海部郡・清須市・北名古屋市!O37 -> 0 | K12: =VALUE(TRIM(LEFT(海部郡・清須市・北名古屋市!Q37,2))) -> 1 | L12: =海部郡・清須市・北名古屋市!R37 -> 400 | M12: =海部郡・清須市・北名古屋市!S37 -> 0 | Q12: 9 | R12: 13050 | S12: 0
A13: 北名古屋市 | B13: =VALUE(TRIM(LEFT(海部郡・清須市・北名古屋市!E48,2))) -> 1 | C13: =海部郡・清須市・北名古屋市!F48 -> 13150 | D13: =海部郡・清須市・北名古屋市!G48 -> 0 | E13: =VALUE(TRIM(LEFT(海部郡・清須市・北名古屋市!I48,2))) -> 2 | F13: =海部郡・清須市・北名古屋市!J48 -> 1150 | G13: =海部郡・清須市・北名古屋市!K48 -> 0 | H13: =VALUE(TRIM(LEFT(海部郡・清須市・北名古屋市!M48,2))) -> 0 | I13: =海部郡・清須市・北名古屋市!N48 -> 0 | J13: =海部郡・清須市・北名古屋市!O48 -> 0 | K13: =VALUE(TRIM(LEFT(海部郡・清須市・北名古屋市!Q48,2))) -> 2 | L13: =海部郡・清須市・北名古屋市!R48 -> 1400 | M13: =海部郡・清須市・北名古屋市!S48 -> 0 | Q13: 5 | R13: 15700 | S13: 0
A14: 西春日井郡 | B14: =VALUE(TRIM(LEFT(西春日井郡・岩倉市・江南市!E14,2))) -> 2 | C14: =西春日井郡・岩倉市・江南市!F14 -> 2300 | D14: =西春日井郡・岩倉市・江南市!G14 -> 0 | E14: =VALUE(TRIM(LEFT(西春日井郡・岩倉市・江南市!I14,2))) -> 0 | F14: =西春日井郡・岩倉市・江南市!J14 -> 0 | G14: =西春日井郡・岩倉市・江南市!K14 -> 0 | H14: =VALUE(TRIM(LEFT(西春日井郡・岩倉市・江南市!M14,2))) -> 0 | I14: =西春日井郡・岩倉市・江南市!N14 -> 0 | J14: =西春日井郡・岩倉市・江南市!O14 -> 0 | K14: =VALUE(TRIM(LEFT(西春日井郡・岩倉市・江南市!Q14,2))) -> 0 | L14: =西春日井郡・岩倉市・江南市!R14 -> 0 | M14: =西春日井郡・岩倉市・江南市!S14 -> 0 | Q14: 2 | R14: 2300 | S14: 0
A15: 岩倉市 | B15: =VALUE(TRIM(LEFT(西春日井郡・岩倉市・江南市!E27,2))) -> 3 | C15: =西春日井郡・岩倉市・江南市!F27 -> 6650 | D15: =西春日井郡・岩倉市・江南市!G27 -> 0 | E15: =VALUE(TRIM(LEFT(西春日井郡・岩倉市・江南市!I27,2))) -> 1 | F15: =西春日井郡・岩倉市・江南市!J27 -> 800 | G15: =西春日井郡・岩倉市・江南市!K27 -> 0 | H15: =VALUE(TRIM(LEFT(西春日井郡・岩倉市・江南市!M27,2))) -> 0 | I15: =西春日井郡・岩倉市・江南市!N27 -> 0 | J15: =西春日井郡・岩倉市・江南市!O27 -> 0 | K15: =VALUE(TRIM(LEFT(西春日井郡・岩倉市・江南市!Q27,2))) -> 1 | L15: =西春日井郡・岩倉市・江南市!R27 -> 950 | M15: =西春日井郡・岩倉市・江南市!S27 -> 0 | Q15: 5 | R15: 8400 | S15: 0
A16: 江南市 | B16: =VALUE(TRIM(LEFT(西春日井郡・岩倉市・江南市!E48,2))) -> 9 | C16: =西春日井郡・岩倉市・江南市!F48 -> 16100 | D16: =西春日井郡・岩倉市・江南市!G48 -> 0 | E16: =VALUE(TRIM(LEFT(西春日井郡・岩倉市・江南市!I48,2))) -> 4 | F16: =西春日井郡・岩倉市・江南市!J48 -> 1900 | G16: =西春日井郡・岩倉市・江南市!K48 -> 0 | H16: =VALUE(TRIM(LEFT(西春日井郡・岩倉市・江南市!M48,2))) -> 0 | I16: =西春日井郡・岩倉市・江南市!N48 -> 0 | J16: =西春日井郡・岩倉市・江南市!O48 -> 0 | K16: =VALUE(TRIM(LEFT(西春日井郡・岩倉市・江南市!Q48,2))) -> 2 | L16: =西春日井郡・岩倉市・江南市!R48 -> 1050 | M16: =西春日井郡・岩倉市・江南市!S48 -> 0 | Q16: 15 | R16: 19050 | S16: 0
A17: 丹羽郡 | B17: =VALUE(TRIM(LEFT(丹羽郡・犬山市!E26,2))) -> 6 | C17: =丹羽郡・犬山市!F26 -> 9700 | D17: =丹羽郡・犬山市!G26 -> 0 | E17: =VALUE(TRIM(LEFT(丹羽郡・犬山市!I26,2))) -> 1 | F17: =丹羽郡・犬山市!J26 -> 1050 | G17: =丹羽郡・犬山市!K26 -> 0 | H17: =VALUE(TRIM(LEFT(丹羽郡・犬山市!M26,2))) -> 0 | I17: =丹羽郡・犬山市!N26 -> 0 | J17: =丹羽郡・犬山市!O26 -> 0 | K17: =VALUE(TRIM(LEFT(丹羽郡・犬山市!Q26,2))) -> 0 | L17: =丹羽郡・犬山市!R26 -> 0 | M17: =丹羽郡・犬山市!S26 -> 0 | Q17: 7 | R17: 10750 | S17: 0
A18: 犬山市 | B18: =VALUE(TRIM(LEFT(丹羽郡・犬山市!E48,2))) -> 8 | C18: =丹羽郡・犬山市!F48 -> 12300 | D18: =丹羽郡・犬山市!G48 -> 0 | E18: =VALUE(TRIM(LEFT(丹羽郡・犬山市!I48,2))) -> 3 | F18: =丹羽郡・犬山市!J48 -> 1650 | G18: =丹羽郡・犬山市!K48 -> 0 | H18: =VALUE(TRIM(LEFT(丹羽郡・犬山市!M48,2))) -> 0 | I18: =丹羽郡・犬山市!N48 -> 0 | J18: =丹羽郡・犬山市!O48 -> 0 | K18: =VALUE(TRIM(LEFT(丹羽郡・犬山市!Q48,2))) -> 1 | L18: =丹羽郡・犬山市!R48 -> 650 | M18: =丹羽郡・犬山市!S48 -> 0 | Q18: 12 | R18: 14600 | S18: 0
A19: 小牧市 | B19: =VALUE(TRIM(LEFT(小牧市!E48,2))) -> 15 | C19: =小牧市!F48 -> 24250 | D19: =小牧市!G48 -> 0 | E19: =VALUE(TRIM(LEFT(小牧市!I48,2))) -> 3 | F19: =小牧市!J48 -> 2150 | G19: =小牧市!K48 -> 0 | H19: =VALUE(TRIM(LEFT(小牧市!M48,2))) -> 0 | I19: =小牧市!N48 -> 0 | J19: =小牧市!O48 -> 0 | K19: =VALUE(TRIM(LEFT(小牧市!Q48,2))) -> 3 | L19: =小牧市!R48 -> 1750 | M19: =小牧市!S48 -> 0 | Q19: 21 | R19: 28150 | S19: 0
A20: 春日井市 | B20: =VALUE(TRIM(LEFT(春日井市!E48,2))) -> 23 | C20: =春日井市!F48 -> 48500 | D20: =春日井市!G48 -> 0 | E20: =VALUE(TRIM(LEFT(春日井市!I48,2))) -> 8 | F20: =春日井市!J48 -> 6050 | G20: =春日井市!K48 -> 0 | H20: =VALUE(TRIM(LEFT(春日井市!M48,2))) -> 0 | I20: =春日井市!N48 -> 0 | J20: =春日井市!O48 -> 0 | K20: =VALUE(TRIM(LEFT(春日井市!Q48,2))) -> 6 | L20: =春日井市!R48 -> 2900 | M20: =春日井市!S48 -> 0 | Q20: 37 | R20: 57450 | S20: 0
A21: 瀬戸市 | B21: =VALUE(TRIM(LEFT(瀬戸市・尾張旭市!E26,2))) -> 14 | C21: =瀬戸市・尾張旭市!F26 -> 21650 | D21: =瀬戸市・尾張旭市!G26 -> 0 | E21: =VALUE(TRIM(LEFT(瀬戸市・尾張旭市!I26,2))) -> 3 | F21: =瀬戸市・尾張旭市!J26 -> 2100 | G21: =瀬戸市・尾張旭市!K26 -> 0 | H21: =VALUE(TRIM(LEFT(瀬戸市・尾張旭市!M26,2))) -> 0 | I21: =瀬戸市・尾張旭市!N26 -> 0 | J21: =瀬戸市・尾張旭市!O26 -> 0 | K21: =VALUE(TRIM(LEFT(瀬戸市・尾張旭市!Q26,2))) -> 2 | L21: =瀬戸市・尾張旭市!R26 -> 1050 | M21: =瀬戸市・尾張旭市!S26 -> 0 | Q21: 19 | R21: 24800 | S21: 0
A22: 尾張旭市 | B22: =VALUE(TRIM(LEFT(瀬戸市・尾張旭市!E48,2))) -> 6 | C22: =瀬戸市・尾張旭市!F48 -> 13350 | D22: =瀬戸市・尾張旭市!G48 -> 0 | E22: =VALUE(TRIM(LEFT(瀬戸市・尾張旭市!I48,2))) -> 1 | F22: =瀬戸市・尾張旭市!J48 -> 1850 | G22: =瀬戸市・尾張旭市!K48 -> 0 | H22: =VALUE(TRIM(LEFT(瀬戸市・尾張旭市!M48,2))) -> 0 | I22: =瀬戸市・尾張旭市!N48 -> 0 | J22: =瀬戸市・尾張旭市!O48 -> 0 | K22: =VALUE(TRIM(LEFT(瀬戸市・尾張旭市!Q48,2))) -> 2 | L22: =瀬戸市・尾張旭市!R48 -> 800 | M22: =瀬戸市・尾張旭市!S48 -> 0 | Q22: 9 | R22: 16000 | S22: 0
A23: 日進市 | B23: =VALUE(TRIM(LEFT(日進市・豊明市!E26,2))) -> 9 | C23: =日進市・豊明市!F26 -> 12250 | D23: =日進市・豊明市!G26 -> 0 | E23: =VALUE(TRIM(LEFT(日進市・豊明市!I26,2))) -> 2 | F23: =日進市・豊明市!J26 -> 2150 | G23: =日進市・豊明市!K26 -> 0 | H23: =VALUE(TRIM(LEFT(日進市・豊明市!M26,2))) -> 0 | I23: =日進市・豊明市!N26 -> 0 | J23: =日進市・豊明市!O26 -> 0 | K23: =VALUE(TRIM(LEFT(日進市・豊明市!Q26,2))) -> 2 | L23: =日進市・豊明市!R26 -> 650 | M23: =日進市・豊明市!S26 -> 0 | Q23: 13 | R23: 15050 | S23: 0
A24: 豊明市 | B24: =VALUE(TRIM(LEFT(日進市・豊明市!E48,2))) -> 6 | C24: =日進市・豊明市!F48 -> 10800 | D24: =日進市・豊明市!G48 -> 0 | E24: =VALUE(TRIM(LEFT(日進市・豊明市!I48,2))) -> 2 | F24: =日進市・豊明市!J48 -> 1250 | G24: =日進市・豊明市!K48 -> 0 | H24: =VALUE(TRIM(LEFT(日進市・豊明市!M48,2))) -> 0 | I24: =日進市・豊明市!N48 -> 0 | J24: =日進市・豊明市!O48 -> 0 | K24: =VALUE(TRIM(LEFT(日進市・豊明市!Q48,2))) -> 2 | L24: =日進市・豊明市!R48 -> 550 | M24: =日進市・豊明市!S48 -> 0 | Q24: 10 | R24: 12600 | S24: 0
A25: 長久手市 | B25: =VALUE(TRIM(LEFT(長久手市・愛知郡!E26,2))) -> 4 | C25: =長久手市・愛知郡!F26 -> 7100 | D25: =長久手市・愛知郡!G26 -> 0 | E25: =VALUE(TRIM(LEFT(長久手市・愛知郡!I26,2))) -> 1 | F25: =長久手市・愛知郡!J26 -> 1250 | G25: =長久手市・愛知郡!K26 -> 0 | H25: =VALUE(TRIM(LEFT(長久手市・愛知郡!M26,2))) -> 0 | I25: =長久手市・愛知郡!N26 -> 0 | J25: =長久手市・愛知郡!O26 -> 0 | K25: =VALUE(TRIM(LEFT(長久手市・愛知郡!Q26,2))) -> 1 | L25: =長久手市・愛知郡!R26 -> 550 | M25: =長久手市・愛知郡!S26 -> 0 | Q25: 6 | R25: 8900 | S25: 0
A26: 愛知郡 | B26: =VALUE(TRIM(LEFT(長久手市・愛知郡!E48,2))) -> 4 | C26: =長久手市・愛知郡!F48 -> 6650 | D26: =長久手市・愛知郡!G48 -> 0 | E26: =VALUE(TRIM(LEFT(長久手市・愛知郡!I48,2))) -> 1 | F26: =長久手市・愛知郡!J48 -> 500 | G26: =長久手市・愛知郡!K48 -> 0 | H26: =VALUE(TRIM(LEFT(長久手市・愛知郡!M48,2))) -> 0 | I26: =長久手市・愛知郡!N48 -> 0 | J26: =長久手市・愛知郡!O48 -> 0 | K26: =VALUE(TRIM(LEFT(長久手市・愛知郡!Q48,2))) -> 1 | L26: =長久手市・愛知郡!R48 -> 450 | M26: =長久手市・愛知郡!S48 -> 0 | Q26: 6 | R26: 7600 | S26: 0
A27: 大府市 | B27: =VALUE(TRIM(LEFT(大府市・東海市!E26,2))) -> 6 | C27: =大府市・東海市!F26 -> 13700 | D27: =大府市・東海市!G26 -> 0 | E27: =VALUE(TRIM(LEFT(大府市・東海市!I26,2))) -> 2 | F27: =大府市・東海市!J26 -> 1500 | G27: =大府市・東海市!K26 -> 0 | H27: =VALUE(TRIM(LEFT(大府市・東海市!M26,2))) -> 0 | I27: =大府市・東海市!N26 -> 0 | J27: =大府市・東海市!O26 -> 0 | K27: =VALUE(TRIM(LEFT(大府市・東海市!Q26,2))) -> 1 | L27: =大府市・東海市!R26 -> 650 | M27: =大府市・東海市!S26 -> 0 | Q27: 9 | R27: 15850 | S27: 0
A28: 東海市 | B28: =VALUE(TRIM(LEFT(大府市・東海市!E48,2))) -> 8 | C28: =大府市・東海市!F48 -> 15200 | D28: =大府市・東海市!G48 -> 0 | E28: =VALUE(TRIM(LEFT(大府市・東海市!I48,2))) -> 3 | F28: =大府市・東海市!J48 -> 1800 | G28: =大府市・東海市!K48 -> 0 | H28: =VALUE(TRIM(LEFT(大府市・東海市!M48,2))) -> 1 | I28: =大府市・東海市!N48 -> 100 | J28: =大府市・東海市!O48 -> 0 | K28: =VALUE(TRIM(LEFT(大府市・東海市!Q48,2))) -> 4 | L28: =大府市・東海市!R48 -> 1350 | M28: =大府市・東海市!S48 -> 0 | Q28: 16 | R28: 18450 | S28: 0
A29: 知多市 | B29: =VALUE(TRIM(LEFT(知多市・半田市!E26,2))) -> 6 | C29: =知多市・半田市!F26 -> 13600 | D29: =知多市・半田市!G26 -> 0 | E29: =VALUE(TRIM(LEFT(知多市・半田市!I26,2))) -> 3 | F29: =知多市・半田市!J26 -> 2300 | G29: =知多市・半田市!K26 -> 0 | H29: =VALUE(TRIM(LEFT(知多市・半田市!M26,2))) -> 0 | I29: =知多市・半田市!N26 -> 0 | J29: =知多市・半田市!O26 -> 0 | K29: =VALUE(TRIM(LEFT(知多市・半田市!Q26,2))) -> 1 | L29: =知多市・半田市!R26 -> 600 | M29: =知多市・半田市!S26 -> 0 | Q29: 10 | R29: 16500 | S29: 0
A30: 半田市 | B30: =VALUE(TRIM(LEFT(知多市・半田市!E48,2))) -> 12 | C30: =知多市・半田市!F48 -> 18800 | D30: =知多市・半田市!G48 -> 0 | E30: =VALUE(TRIM(LEFT(知多市・半田市!I48,2))) -> 4 | F30: =知多市・半田市!J48 -> 1850 | G30: =知多市・半田市!K48 -> 0 | H30: =VALUE(TRIM(LEFT(知多市・半田市!M48,2))) -> 0 | I30: =知多市・半田市!N48 -> 0 | J30: =知多市・半田市!O48 -> 0 | K30: =VALUE(TRIM(LEFT(知多市・半田市!Q48,2))) -> 3 | L30: =知多市・半田市!R48 -> 1000 | M30: =知多市・半田市!S48 -> 0 | Q30: 19 | R30: 21650 | S30: 0
A31: 常滑市 | B31: =VALUE(TRIM(LEFT(常滑市・知多郡!E20,2))) -> 4 | C31: =常滑市・知多郡!F20 -> 9200 | D31: =常滑市・知多郡!G20 -> 0 | E31: =VALUE(TRIM(LEFT(常滑市・知多郡!I20,2))) -> 1 | F31: =常滑市・知多郡!J20 -> 250 | G31: =常滑市・知多郡!K20 -> 0 | H31: =VALUE(TRIM(LEFT(常滑市・知多郡!M20,2))) -> 0 | I31: =常滑市・知多郡!N20 -> 0 | J31: =常滑市・知多郡!O20 -> 0 | K31: =VALUE(TRIM(LEFT(常滑市・知多郡!Q20,2))) -> 0 | L31: =常滑市・知多郡!R20 -> 0 | M31: =常滑市・知多郡!S20 -> 0 | Q31: 5 | R31: 9450 | S31: 0
A32: 知多郡 | B32: =VALUE(TRIM(LEFT(常滑市・知多郡!E48,2))) -> 14 | C32: =常滑市・知多郡!F48 -> 25800 | D32: =常滑市・知多郡!G48 -> 0 | E32: =VALUE(TRIM(LEFT(常滑市・知多郡!I48,2))) -> 4 | F32: =常滑市・知多郡!J48 -> 1950 | G32: =常滑市・知多郡!K48 -> 0 | H32: =VALUE(TRIM(LEFT(常滑市・知多郡!M48,2))) -> 0 | I32: =常滑市・知多郡!N48 -> 0 | J32: =常滑市・知多郡!O48 -> 0 | K32: =VALUE(TRIM(LEFT(常滑市・知多郡!Q48,2))) -> 4 | L32: =常滑市・知多郡!R48 -> 550 | M32: =常滑市・知多郡!S48 -> 0 | Q32: 22 | R32: 28300 | S32: 0
A33: 合計 | B33: =SUM(B5:B32) -> 231 | C33: 451300 | D33: 0 | E33: 69 | F33: 44500 | G33: 0 | H33: 10 | I33: 3950 | J33: 0 | K33: 54 | L33: 25050 | M33: 0 | Q33: =SUM(Q5:Q32) -> 364 | R33: =SUM(R5:R32) -> 524800 | S33: =SUM(S5:S32) -> 0
A35: 愛知県合計 | B35: 中日新聞 | E35: 朝日新聞 | H35: 毎日新聞 | K35: 読売新聞 | Q35: 合 計 | T35: 備 考
A36: 名古屋市 | B36: =名古屋市!B24 -> 186 | C36: =名古屋市!C24 -> 345450 | D36: =名古屋市!D24 -> 0 | E36: =名古屋市!E24 -> 63 | F36: =名古屋市!F24 -> 38450 | G36: =名古屋市!G24 -> 0 | H36: =名古屋市!H24 -> 12 | I36: =名古屋市!I24 -> 4300 | J36: =名古屋市!J24 -> 0 | K36: =名古屋市!K24 -> 64 | L36: =名古屋市!L24 -> 30800 | M36: =名古屋市!M24 -> 0 | N36: =名古屋市!N24 -> 0 | O36: =名古屋市!O24 -> 0 | P36: =名古屋市!P24 -> 0 | Q36: =名古屋市!Q24 -> 325 | R36: =名古屋市!R24 -> 419000 | S36: =W36 -> 0 | W36: =IFERROR(名古屋市!S24," ") -> 0
A37: 尾張地区 | B37: =B33 -> 231 | C37: =C33 -> 451300 | D37: 0 | E37: 69 | F37: 44500 | G37: 0 | H37: 10 | I37: 3950 | J37: 0 | K37: 54 | L37: 25050 | M37: 0 | N37: =N33 -> 0 | O37: =O33 -> 0 | P37: =P33 -> 0 | Q37: 364 | R37: 524800 | S37: =S33 -> 0
A38: 三河地区 | B38: =三河地区!B26 -> 178 | C38: =三河地区!C26 -> 356550 | D38: =三河地区!D26 -> 0 | E38: =三河地区!E26 -> 39 | F38: =三河地区!F26 -> 30100 | G38: =三河地区!G26 -> 0 | H38: =三河地区!H26 -> 3 | I38: =三河地区!I26 -> 2050 | J38: =三河地区!J26 -> 0 | K38: =三河地区!K26 -> 48 | L38: =三河地区!L26 -> 20600 | M38: =三河地区!M26 -> 0 | N38: =三河地区!N26 -> 0 | O38: =三河地区!O26 -> 0 | P38: =三河地区!P26 -> 0 | Q38: =三河地区!Q26 -> 268 | R38: =三河地区!R26 -> 409300 | S38: =W38 -> 0 | W38: =IFERROR(三河地区!S26," ") -> 0
A39: 合計 | B39: =SUM(B36:B38) -> 595 | C39: =SUM(C36:C38) -> 1153300 | D39: =SUM(D36:D38) -> 0 | E39: 171 | F39: 113050 | G39: 0 | H39: 25 | I39: 10300 | J39: 0 | K39: =SUM(K36:K38) -> 166 | L39: 76450 | M39: 0 | N39: 0 | O39: 0 | P39: 0 | Q39: 957 | R39: 1353100 | S39: 0
U40: ㈱中日総合サービス

Sheet 地図（尾張地区）

Sheet 一宮市
A1: 折込日 | F1: 広告主 | Q1: サイズ | V1: 取次店
F2: チラシ銘柄 | Q2: 部数 | R2: =A6 -> 0
A4: 地区 | D4: 中日新聞 | G4: 枚数 | H4: 朝日新聞 | K4: 枚数 | L4: 毎日新聞 | O4: 枚数 | P4: 読売新聞 | S4: 枚数 | X4: 備考
A5: 一宮市 | C5: 0 | D5: 230320101010 | E5: 一宮東部NS | F5: 1950 | H5: 230320202010 | I5: 尾張萩原 | J5: 250 | L5: 230320303030 | M5: 一宮中央 | N5: 400 | P5: 230320405001 | Q5: 新一宮 | R5: 1000 | X5: 一宮市全域の場合
A6: =SUM(G48,K48,O48,S48,W48) -> 0 | B6: =SUM(F48,J48,N48,R48,V48) -> 70400 | C6: 0 | D6: 230320101020 | E6: 一宮南部NS | F6: 6200 | H6: 230320202020 | I6: 浅井 | J6: 500 | L6: 230320303040 | M6: 一宮北部 | N6: 500 | P6: 230320405002 | Q6: 浅井 | R6: 750 | X6: 江南市加納馬場550枚
C7: 0 | D7: 230320101040 | E7: 一宮北部NS | F7: 5200 | H7: 230320202030 | I7: 一宮東部 | J7: 350 | L7: 230320303070 | M7: 下津浅野 | N7: 450 | P7: 230320405004 | Q7: 一宮西部 | R7: 1000 | X7: 稲沢市稲沢下津300枚
C8: 0 | D8: 230320101060 | E8: 一宮浅井NMS | F8: 2550 | H8: 230320202040 | I8: 一宮南部 | J8: 750 | L8: 230320303100 | M8: 木曽川 | N8: 350 | P8: 230320405006 | Q8: 尾西中央 | R8: 550 | X8: 稲沢市下津北部250枚
C9: 0 | D9: 230320101070 | E9: 浅井北部NM | F9: 850 | H9: 230320202060 | I9: 一宮西部M | J9: 1200 | P9: 230320405007 | Q9: 木曽川 | R9: 450 | X9: をプラス
C10: 0 | D10: 230320101200 | E10: 一宮浅渕NS | F10: 1150 | H10: 230320202070 | I10: 今伊勢M | J10: 800 | X10: 0
C11: 0 | D11: 230320101160 | E11: 千秋NMS | F11: 1950 | H11: 230320202080 | I11: 今伊勢東M | J11: 650 | X11: 0
C12: 0 | D12: 230320101080 | E12: 一宮瀬時NMS | F12: 1400 | H12: 230320202100 | I12: 一宮尾西M | J12: 600 | X12: 0
C13: 0 | D13: 230320101210 | E13: 一宮春明NM | F13: 1100 | H13: 230320202110 | I13: 木曽川 | J13: 500 | X13: 0
C14: 0 | D14: 230320101030 | E14: 一宮西部NS | F14: 4500 | X14: 0
C15: 0 | D15: 230320101150 | E15: 一宮萩原NMS | F15: 2800 | X15: 0
C16: 0 | D16: 230320101110 | E16: 今伊勢西NS | F16: 2050 | X16: 0
C17: 0 | D17: 230320101180 | E17: 苅安賀NS | F17: 1700 | X17: 0
C18: 0 | D18: 230320101220 | E18: 戸塚西御堂NMS | F18: 2100 | X18: 0
C19: 0 | D19: 230320101090 | E19: 今伊勢南部NS | F19: 950 | X19: 0
C20: 0 | D20: 230320101170 | E20: 一宮大毛NS | F20: 2000 | X20: 0
C21: 0 | D21: 230320101100 | E21: 今伊勢北部NS | F21: 2050 | X21: 0
C22: 0 | D22: 230320101190 | E22: 一宮北方NS | F22: 1400 | X22: 0
C23: 0 | D23: 230320101250 | E23: 一宮起NS | F23: 2900 | X23: 0
C24: 0 | D24: 230320101270 | E24: 大和三条NS | F24: 4500 | X24: 0
C25: 0 | D25: 230320101290 | E25: 一宮尾西NMS | F25: 2250 | X25: 0
C26: 0 | D26: 230320101300 | E26: 木曽川（宇佐見）NS | F26: 2400 | X26: 0
C27: 0 | D27: 230320101310 | E27: 木曽川（大塚）N | F27: 2650 | X27: 0
C28: 0 | D28: 230320101320 | E28: 玉ノ井奥町NS | F28: 2750 | X28: 0
X29: 0
X30: 0
X31: 0
X38: 0
X39: 0
X40: 0
X41: 0
X42: 0
X43: 0
X44: 0
X45: 0
X46: 0
X47: 0
E48: =CONCATENATE(FIXED(COUNTA(E5:E47),0,0)," 店") -> 24 店 | F48: =SUM(F5:F47) -> 59350 | G48: =SUM(G5:G47) -> 0 | I48: =CONCATENATE(FIXED(COUNTA(I5:I47),0,0)," 店") -> 9 店 | J48: =SUM(J5:J47) -> 5600 | K48: =SUM(K5:K47) -> 0 | M48: =CONCATENATE(FIXED(COUNTA(M5:M47),0,0)," 店") -> 4 店 | N48: =SUM(N5:N47) -> 1700 | O48: =SUM(O5:O47) -> 0 | Q48: =CONCATENATE(FIXED(COUNTA(Q5:Q47),0,0)," 店") -> 5 店 | R48: =SUM(R5:R47) -> 3750 | S48: =SUM(S5:S47) -> 0 | U48: =CONCATENATE(FIXED(COUNTA(U5:U47),0,0)," 店") -> 0 店 | V48: =SUM(V5:V47) -> 0 | W48: =SUM(W5:W47) -> 0 | X48: =SUM(X5:X47) -> 0
A49: 2025年後期（8月1日以降） | X49: ㈱中日総合サービス

Sheet 稲沢市・津島市
A1: 折込日 | F1: 広告主 | Q1: サイズ | V1: 取次店
F2: チラシ銘柄 | Q2: 部数 | R2: =A6+A30 -> 0
A4: 地区 | D4: 中日新聞 | G4: 枚数 | H4: 朝日新聞 | K4: 枚数 | L4: 毎日新聞 | O4: 枚数 | P4: 読売新聞 | S4: 枚数 | X4: 備考
A5: 稲沢市 | C5: 0 | D5: 230340101010 | E5: 稲沢国府宮NS | F5: 2500 | H5: 230340202010 | I5: 稲沢東部 | J5: 350 | L5: 230340303010 | M5: 国府宮 | N5: 1000 | P5: 230340405001 | Q5: 稲沢 | R5: 400 | X5: 稲沢市全域の場合
A6: =SUM(G26,K26,O26,S26,W26) -> 0 | B6: =SUM(F26,J26,N26,R26,V26) -> 28950 | C6: 0 | D6: 230340101080 | E6: 稲沢大里N | F6: 1200 | H6: 230340202020 | I6: 稲沢南部 | J6: 900 | L6: 230340303030 | M6: 稲沢南部 | N6: 250 | P6: 230340405002 | Q6: 稲沢駅前 | R6: 350 | X6: 清須市清須北部700枚
C7: *1 | D7: 230340101030 | E7: 稲沢下津NS | F7: 1700 | H7: 230340202030 | I7: 稲沢西部 | J7: 450 | L7: 230340303040 | M7: 大里 | N7: 50 | X7: をプラス
C8: *2 | D8: 230340101120 | E8: 下津北部N | F8: 1200 | H8: 230340202040 | I8: 祖父江 | J8: 450 | L8: 230340303060 | M8: 稲沢下津 | N8: 100 | X8: *1一宮市300枚
C9: 0 | D9: 230340101050 | E9: 稲沢西部NS | F9: 2300 | H9: 230340202060 | I9: 稲沢平和 | J9: 250 | X9: 清須市650枚含む
C10: 0 | D10: 230340101060 | E10: 稲沢松清NS | F10: 3250 | X10: *2一宮市250枚含む
C11: 0 | D11: 230340101070 | E11: 稲沢高御堂N | F11: 1800 | X11: 0
C12: 0 | D12: 230340101040 | E12: 稲沢南部N | F12: 1600 | X12: 0
C13: 0 | D13: 230340101110 | E13: 稲沢千代田NM | F13: 1350 | X13: 0
C14: 0 | D14: 230340101130 | E14: 祖父江NM | F14: 2350 | X14: 0
C15: *3 | D15: 230340101140 | E15: 祖父江南部NMS | F15: 1850 | X15: 0
C16: 0 | D16: 230340101150 | E16: 平和NMS | F16: 3300 | X16: 0
X17: 0
X18: *3愛西市450枚含む
X19: 0
X20: 0
X21: 0
X22: 0
X23: 0
X24: 0
X25: 0
E26: =CONCATENATE(FIXED(COUNTA(E5:E25),0,0)," 店") -> 12 店 | F26: =SUM(F5:F25) -> 24400 | G26: =SUM(G5:G25) -> 0 | I26: =CONCATENATE(FIXED(COUNTA(I5:I25),0,0)," 店") -> 5 店 | J26: =SUM(J5:J25) -> 2400 | K26: =SUM(K5:K25) -> 0 | M26: =CONCATENATE(FIXED(COUNTA(M5:M25),0,0)," 店") -> 4 店 | N26: =SUM(N5:N25) -> 1400 | O26: =SUM(O5:O25) -> 0 | Q26: =CONCATENATE(FIXED(COUNTA(Q5:Q25),0,0)," 店") -> 2 店 | R26: =SUM(R5:R25) -> 750 | S26: =SUM(S5:S25) -> 0 | U26: =CONCATENATE(FIXED(COUNTA(U5:U25),0,0)," 店") -> 0 店 | V26: =SUM(V5:V25) -> 0 | W26: =SUM(W5:W25) -> 0 | X26: =SUM(X5:X25) -> 0
A28: 地区 | D28: 中日新聞 | G28: 枚数 | H28: 朝日新聞 | K28: 枚数 | L28: 毎日新聞 | O28: 枚数 | P28: 読売新聞 | S28: 枚数 | X28: 備考
A29: 津島市 | C29: 0 | D29: 230310101010 | E29: 尾張津島NM | F29: 4900 | H29: 230310202040 | I29: 津島 | J29: 1150 | P29: 230310405001 | Q29: *4津島 | R29: 800 | X29: 津島市全域の場合
A30: =SUM(G48,K48,O48,S48,W48) -> 0 | B30: =SUM(F48,J48,N48,R48,V48) -> 13950 | C30: *1 | D30: 230310101040 | E30: 津島西部NMS | F30: 1350 | P30: 230310405002 | Q30: 津島南部 | R30: 50 | X30: 愛西市永和1,300枚
C31: *２ | D31: 230310101050 | E31: 津島北部NMS | F31: 2000 | P31: 0 | X31: をプラス
C32: 0 | D32: 230310101020 | E32: 神守NMS | F32: 2650 | P32: 0 | X32: 0
C33: *3 | D33: 230310101030 | E33: 青塚NM | F33: 1050 | P33: 0 | X33: *1愛西市400枚含む
X34: *2愛西市1,900枚含む
X35: *3あま市400枚含む
X36: *4愛西市を含む
X37: 0
X39: 0
X40: 0
X41: 0
X42: 0
X43: 0
X44: 0
X45: 0
X46: 0
X47: 0
E48: =CONCATENATE(FIXED(COUNTA(E29:E47),0,0)," 店") -> 5 店 | F48: =SUM(F29:F47) -> 11950 | G48: =SUM(G29:G47) -> 0 | I48: =CONCATENATE(FIXED(COUNTA(I29:I47),0,0)," 店") -> 1 店 | J48: =SUM(J29:J47) -> 1150 | K48: =SUM(K29:K47) -> 0 | M48: =CONCATENATE(FIXED(COUNTA(M29:M47),0,0)," 店") -> 0 店 | N48: =SUM(N29:N47) -> 0 | O48: =SUM(O29:O47) -> 0 | Q48: =CONCATENATE(FIXED(COUNTA(Q29:Q47),0,0)," 店") -> 2 店 | R48: =SUM(R29:R47) -> 850 | S48: =SUM(S29:S47) -> 0 | U48: =CONCATENATE(FIXED(COUNTA(U29:U47),0,0)," 店") -> 0 店 | V48: =SUM(V29:V47) -> 0 | W48: =SUM(W29:W47) -> 0 | X48: =SUM(X29:X47) -> 0
A49: 2025年後期（8月1日以降） | X49: ㈱中日総合サービス

Sheet 愛西市・弥富市・あま市
A1: 折込日 | F1: 広告主 | Q1: サイズ | V1: 取次店
F2: チラシ銘柄 | Q2: 部数 | R2: =A6+A22+A35 -> 0
A4: 地区 | D4: 中日新聞 | G4: 枚数 | H4: 朝日新聞 | K4: 枚数 | L4: 毎日新聞 | O4: 枚数 | P4: 読売新聞 | S4: 枚数 | X4: 備考
A5: 愛西市 | C5: 0 | D5: 230375101010 | E5: 勝幡NM | F5: 1600 | H5: 230375202010 | I5: 富吉 | J5: 300 | X5: 愛西市全域の場合
A6: =SUM(G18,K18,O18,S18,W18) -> 0 | B6: =SUM(F18,J18,N18,R18,V18) -> 11200 | C6: 0 | D6: 230375101020 | E6: 藤浪NM | F6: 1050 | X6: 津島市津島北部
C7: 0 | D7: 230375101030 | E7: 佐屋NAMS | F7: 1900 | X7: 1,900枚
C8: *1 | D8: 230375101040 | E8: 永和NMS | F8: 3950 | X8: 津島市津島西部
C9: 0 | D9: 230375101050 | E9: 南佐屋NAMS | F9: 2400 | X9: 400枚
X10: 稲沢市祖父江南部
X11: 450枚をプラス
X13: *1津島市1,300枚
X14: 弥富市250枚含む
X15: 蟹江町450枚含む
X16: 0
X17: 0
E18: =CONCATENATE(FIXED(COUNTA(E5:E17),0,0)," 店") -> 5 店 | F18: =SUM(F5:F17) -> 10900 | G18: =SUM(G5:G17) -> 0 | I18: =CONCATENATE(FIXED(COUNTA(I5:I17),0,0)," 店") -> 1 店 | J18: =SUM(J5:J17) -> 300 | K18: =SUM(K5:K17) -> 0 | M18: =CONCATENATE(FIXED(COUNTA(M5:M17),0,0)," 店") -> 0 店 | N18: =SUM(N5:N17) -> 0 | O18: =SUM(O5:O17) -> 0 | Q18: =CONCATENATE(FIXED(COUNTA(Q5:Q17),0,0)," 店") -> 0 店 | R18: =SUM(R5:R17) -> 0 | S18: =SUM(S5:S17) -> 0 | U18: =CONCATENATE(FIXED(COUNTA(U5:U17),0,0)," 店") -> 0 店 | V18: =SUM(V5:V17) -> 0 | W18: =SUM(W5:W17) -> 0 | X18: =SUM(X5:X17) -> 0
A20: 地区 | D20: 中日新聞 | G20: 枚数 | H20: 朝日新聞 | K20: 枚数 | L20: 毎日新聞 | O20: 枚数 | P20: 読売新聞 | S20: 枚数 | X20: 備考
A21: 弥富市 | C21: 0 | D21: 230390101010 | E21: 尾張弥富NAMS | F21: 2150 | H21: 0 | P21: 230390405010 | Q21: *1弥富北部 | R21: 450 | X21: 弥富市全域の場合
A22: =SUM(G31,K31,O31,S31,W31) -> 0 | B22: =SUM(F31,J31,N31,R31,V31) -> 8550 | C22: 0 | D22: 230390101020 | E22: 弥富駅前NAMS | F22: 2250 | H22: 0 | P22: 230390405020 | Q22: 弥富南部 | R22: 350 | X22: 愛西市永和250枚
C23: 0 | D23: 230390101040 | E23: 弥富中央NAMS | F23: 2350 | H23: 0 | X23: をプラス
C24: 0 | D24: 230390101030 | E24: 木曽岬NAMSI | F24: 1000 | H24: 0
X25: 0
X26: *1愛西市を含む
X27: 0
X28: 0
X29: 0
X30: 0
E31: =CONCATENATE(FIXED(COUNTA(E21:E30),0,0)," 店") -> 4 店 | F31: =SUM(F21:F30) -> 7750 | G31: =SUM(G21:G30) -> 0 | I31: =CONCATENATE(FIXED(COUNTA(I21:I30),0,0)," 店") -> 0 店 | J31: =SUM(J21:J30) -> 0 | K31: =SUM(K21:K30) -> 0 | M31: =CONCATENATE(FIXED(COUNTA(M21:M30),0,0)," 店") -> 0 店 | N31: =SUM(N21:N30) -> 0 | O31: =SUM(O21:O30) -> 0 | Q31: =CONCATENATE(FIXED(COUNTA(Q21:Q30),0,0)," 店") -> 2 店 | R31: =SUM(R21:R30) -> 800 | S31: =SUM(S21:S30) -> 0 | U31: =CONCATENATE(FIXED(COUNTA(U21:U30),0,0)," 店") -> 0 店 | V31: =SUM(V21:V30) -> 0 | W31: =SUM(W21:W30) -> 0 | X31: =SUM(X21:X30) -> 0
A33: 地区 | D33: 中日新聞 | G33: 枚数 | H33: 朝日新聞 | K33: 枚数 | L33: 毎日新聞 | O33: 枚数 | P33: 読売新聞 | S33: 枚数 | X33: 備考
A34: あま市 | C34: 0 | D34: 230395101010 | E34: 甚目寺NMS | F34: 2400 | H34: 230395202010 | I34: 甚目寺 | J34: 400 | P34: 230395404010 | Q34: 海部 | R34: 650 | X34: あま市全域の場合
A35: =SUM(G48,K48,O48,S48,W48) -> 0 | B35: =SUM(F48,J48,N48,R48,V48) -> 14900 | C35: 0 | D35: 230395101020 | E35: 甚目寺南部NAMS | F35: 1250 | H35: 230395202020 | I35: 七宝 | J35: 150 | P35: 230395404020 | Q35: 七宝 | R35: 200 | X35: 津島市青塚400枚
C36: 0 | D36: 230395101040 | E36: 甚目寺西部NMS | F36: 1450 | P36: 230395404030 | Q36: 美和 | R36: 450 | X36: 清須市あま清洲1,000枚
C37: 0 | D37: 230395101050 | E37: 七宝NMS | F37: 3700 | H37: 0 | X37: をプラス
C38: 0 | D38: 230395101060 | E38: 木田NAMS | F38: 2150 | X38: 0
C39: 0 | D39: 230395101070 | E39: 美和正則NAMS | F39: 2100 | X39: 0
X40: 0
X41: 0
X42: 0
X43: 0
X44: 0
X45: 0
X46: 0
X47: 0
E48: =CONCATENATE(FIXED(COUNTA(E34:E47),0,0)," 店") -> 6 店 | F48: =SUM(F34:F47) -> 13050 | G48: =SUM(G34:G47) -> 0 | I48: =CONCATENATE(FIXED(COUNTA(I34:I47),0,0)," 店") -> 2 店 | J48: =SUM(J34:J47) -> 550 | K48: =SUM(K34:K47) -> 0 | M48: =CONCATENATE(FIXED(COUNTA(M34:M47),0,0)," 店") -> 0 店 | N48: =SUM(N34:N47) -> 0 | O48: =SUM(O34:O47) -> 0 | Q48: =CONCATENATE(FIXED(COUNTA(Q34:Q47),0,0)," 店") -> 3 店 | R48: =SUM(R34:R47) -> 1300 | S48: =SUM(S34:S47) -> 0 | U48: =CONCATENATE(FIXED(COUNTA(U34:U47),0,0)," 店") -> 0 店 | V48: =SUM(V34:V47) -> 0 | W48: =SUM(W34:W47) -> 0 | X48: =SUM(X34:X47) -> 0
A49: 2025年後期（8月1日以降） | X49: ㈱中日総合サービス

Sheet 海部郡・清須市・北名古屋市
A1: 折込日 | F1: 広告主 | Q1: サイズ | V1: 取次店
F2: チラシ銘柄 | Q2: 部数 | R2: =A6+A23+A41 -> 0
A4: 地区 | D4: 中日新聞 | G4: 枚数 | H4: 朝日新聞 | K4: 枚数 | L4: 毎日新聞 | O4: 枚数 | P4: 読売新聞 | S4: 枚数 | X4: 備考
A5: 海部郡 | C5: 0 | D5: 230380101040 | E5: 蟹江NMS | F5: 2050 | H5: 230380202010 | I5: 蟹江 | J5: 500 | P5: 230380405001 | Q5: 蟹江 | R5: 300 | X5: 蟹江町全域の場合
A6: =SUM(G19,K19,O19,S19,W19) -> 0 | B6: =SUM(F19,J19,N19,R19,V19) -> 12250 | C6: 0 | D6: 230380101050 | E6: 蟹江須成NM | F6: 1150 | X6: 愛西市永和450枚
C7: 0 | D7: 230380101070 | E7: 舟入NAM | F7: 850 | X7: 中川区戸田50枚
C8: 0 | D8: 230380101060 | E8: 蟹江南部NMS | F8: 1650 | X8: をプラス
C9: 0 | D9: 230380101080 | E9: 飛島NAMS | F9: 1250 | X9: 0
C10: 0 | D10: 230380101200 | E10: 大治東部NAM | F10: 1500 | X10: 0
C11: 0 | D11: 230380101210 | E11: 大治南部NAMS | F11: 1350 | X11: 0
C12: 0 | D12: 230380101220 | E12: 大治西部NAM | F12: 900 | X12: 0
C13: *1 | D13: 230380101240 | E13: 万場北NAM | F13: 750 | X13: *1名古屋市中川区
X14: 200枚含む
X15: 0
X16: 0
X17: 0
X18: 0
E19: =CONCATENATE(FIXED(COUNTA(E5:E18),0,0)," 店") -> 9 店 | F19: =SUM(F5:F18) -> 11450 | G19: =SUM(G5:G18) -> 0 | I19: =CONCATENATE(FIXED(COUNTA(I5:I18),0,0)," 店") -> 1 店 | J19: =SUM(J5:J18) -> 500 | K19: =SUM(K5:K18) -> 0 | M19: =CONCATENATE(FIXED(COUNTA(M5:M18),0,0)," 店") -> 0 店 | N19: =SUM(N5:N18) -> 0 | O19: =SUM(O5:O18) -> 0 | Q19: =CONCATENATE(FIXED(COUNTA(Q5:Q18),0,0)," 店") -> 1 店 | R19: =SUM(R5:R18) -> 300 | S19: =SUM(S5:S18) -> 0 | U19: =CONCATENATE(FIXED(COUNTA(U5:U18),0,0)," 店") -> 0 店 | V19: =SUM(V5:V18) -> 0 | W19: =SUM(W5:W18) -> 0 | X19: =SUM(X5:X18) -> 0
A21: 地区 | D21: 中日新聞 | G21: 枚数 | H21: 朝日新聞 | K21: 枚数 | L21: 毎日新聞 | O21: 枚数 | P21: 読売新聞 | S21: 枚数 | X21: 備考
A22: 清須市 | C22: *1 | D22: 230385101080 | E22: 清須北部NS | F22: 3150 | H22: 230385202010 | I22: 清須 | J22: 500 | L22: 230385303010 | M22: 清洲 | N22: 750 | P22: 230385404010 | Q22: 清須 | R22: 400 | X22: 清須市全域の場合
A23: =SUM(G37,K37,O37,S37,W37) -> 0 | B23: =SUM(F37,J37,N37,R37,V37) -> 13050 | C23: *2 | D23: 230385101060 | E23: あま清洲NMS | F23: 2400 | X23: 西区平田200枚
C24: 0 | D24: 230385101020 | E24: 枇杷島NMS | F24: 2250 | X24: 稲沢市稲沢下津650枚
C25: 0 | D25: 230385101030 | E25: 西枇杷島NM | F25: 1000 | X25: 北名古屋市北名古屋
C26: 0 | D26: 230385101040 | E26: 尾張新川南部NS | F26: 1150 | X26: 200枚をプラス
C27: 0 | D27: 230385101050 | E27: 尾張新川北部N | F27: 1450
X31: *1稲沢市700枚含む
X32: *2あま市1,000枚含む
X34: 0
X35: 0
X36: 0
E37: =CONCATENATE(FIXED(COUNTA(E22:E36),0,0)," 店") -> 6 店 | F37: =SUM(F22:F36) -> 11400 | G37: =SUM(G22:G36) -> 0 | I37: =CONCATENATE(FIXED(COUNTA(I22:I36),0,0)," 店") -> 1 店 | J37: =SUM(J22:J36) -> 500 | K37: =SUM(K22:K36) -> 0 | M37: =CONCATENATE(FIXED(COUNTA(M22:M36),0,0)," 店") -> 1 店 | N37: =SUM(N22:N36) -> 750 | O37: =SUM(O22:O36) -> 0 | Q37: =CONCATENATE(FIXED(COUNTA(Q22:Q36),0,0)," 店") -> 1 店 | R37: =SUM(R22:R36) -> 400 | S37: =SUM(S22:S36) -> 0 | U37: =CONCATENATE(FIXED(COUNTA(U22:U36),0,0)," 店") -> 0 店 | V37: =SUM(V22:V36) -> 0 | W37: =SUM(W22:W36) -> 0 | X37: =SUM(X22:X36) -> 0
A39: 地区 | D39: 中日新聞 | G39: 枚数 | H39: 朝日新聞 | K39: 枚数 | L39: 毎日新聞 | O39: 枚数 | P39: 読売新聞 | S39: 枚数 | X39: 備考
A40: 北名古屋市 | C40: *1 | D40: 230370101010 | E40: 北名古屋NMS | F40: 13150 | H40: 230370202010 | I40: 西春 | J40: 600 | P40: 230370405002 | Q40: 西春 | R40: 600 | X40: *1清須市200枚含む
A41: =SUM(G48,K48,O48,S48,W48) -> 0 | B41: =SUM(F48,J48,N48,R48,V48) -> 15700 | H41: 230370202020 | I41: 西春西部 | J41: 550 | P41: 230370405003 | Q41: 師勝 | R41: 800 | X41: 0
X42: 0
X43: 0
X44: 0
X45: 0
X46: 0
X47: 0
E48: =CONCATENATE(FIXED(COUNTA(E40:E47),0,0)," 店") -> 1 店 | F48: =SUM(F40:F47) -> 13150 | G48: =SUM(G40:G47) -> 0 | I48: =CONCATENATE(FIXED(COUNTA(I40:I47),0,0)," 店") -> 2 店 | J48: =SUM(J40:J47) -> 1150 | K48: =SUM(K40:K47) -> 0 | M48: =CONCATENATE(FIXED(COUNTA(M40:M47),0,0)," 店") -> 0 店 | N48: =SUM(N40:N47) -> 0 | O48: =SUM(O40:O47) -> 0 | Q48: =CONCATENATE(FIXED(COUNTA(Q40:Q47),0,0)," 店") -> 2 店 | R48: =SUM(R40:R47) -> 1400 | S48: =SUM(S40:S47) -> 0 | U48: =CONCATENATE(FIXED(COUNTA(U40:U47),0,0)," 店") -> 0 店 | V48: =SUM(V40:V47) -> 0 | W48: =SUM(W40:W47) -> 0 | X48: =SUM(X40:X47) -> 0
A49: 2025年後期（8月1日以降） | X49: ㈱中日総合サービス

Sheet 西春日井郡・岩倉市・江南市
A1: 折込日 | F1: 広告主 | Q1: サイズ | V1: 取次店
F2: チラシ銘柄 | Q2: 部数 | R2: =A6+A18+A31 -> 0
A4: 地区 | D4: 中日新聞 | G4: 枚数 | H4: 朝日新聞 | K4: 枚数 | L4: 毎日新聞 | O4: 枚数 | P4: 読売新聞 | S4: 枚数 | X4: 備考
A5: 西春日井郡 | C5: 0 | D5: 230365101010 | E5: 豊山北NMS | F5: 1000 | X5: 豊山町全域の場合
A6: =SUM(G14,K14,O14,S14,W14) -> 0 | B6: =SUM(F14,J14,N14,R14,V14) -> 2300 | C6: 0 | D6: 230365101020 | E6: 豊場NM | F6: 1300 | X6: 北区喜惣治150枚
X7: をプラス
X8: 0
X9: 0
X10: 0
X11: 0
X12: 0
X13: 0
E14: =CONCATENATE(FIXED(COUNTA(E5:E13),0,0)," 店") -> 2 店 | F14: =SUM(F5:F13) -> 2300 | G14: =SUM(G5:G13) -> 0 | I14: =CONCATENATE(FIXED(COUNTA(I5:I13),0,0)," 店") -> 0 店 | J14: =SUM(J5:J13) -> 0 | K14: =SUM(K5:K13) -> 0 | M14: =CONCATENATE(FIXED(COUNTA(M5:M13),0,0)," 店") -> 0 店 | N14: =SUM(N5:N13) -> 0 | O14: =SUM(O5:O13) -> 0 | Q14: =CONCATENATE(FIXED(COUNTA(Q5:Q13),0,0)," 店") -> 0 店 | R14: =SUM(R5:R13) -> 0 | S14: =SUM(S5:S13) -> 0 | U14: =CONCATENATE(FIXED(COUNTA(U5:U13),0,0)," 店") -> 0 店 | V14: =SUM(V5:V13) -> 0 | W14: =SUM(W5:W13) -> 0 | X14: =SUM(X5:X13) -> 0
A16: 地区 | D16: 中日新聞 | G16: 枚数 | H16: 朝日新聞 | K16: 枚数 | L16: 毎日新聞 | O16: 枚数 | P16: 読売新聞 | S16: 枚数 | X16: 備考
A17: 岩倉市 | C17: 0 | D17: 230230101010 | E17: 岩倉NMS | F17: 3850 | H17: 230230202010 | I17: 岩倉 | J17: 800 | P17: 230230405001 | Q17: 岩倉 | R17: 950 | X17: 岩倉市全域の場合
A18: =SUM(G27,K27,O27,S27,W27) -> 0 | B18: =SUM(F27,J27,N27,R27,V27) -> 8400 | C18: 0 | D18: 230230101020 | E18: 岩倉東部NMS | F18: 1700 | X18: 江南市加納馬場100枚
C19: 0 | D19: 230230101030 | E19: 岩倉南部NMS | F19: 1100 | X19: をプラス
X20: 0
X21: 0
X22: 0
X23: 0
X24: 0
X25: 0
X26: 0
E27: =CONCATENATE(FIXED(COUNTA(E17:E26),0,0)," 店") -> 3 店 | F27: =SUM(F17:F26) -> 6650 | G27: =SUM(G17:G26) -> 0 | I27: =CONCATENATE(FIXED(COUNTA(I17:I26),0,0)," 店") -> 1 店 | J27: =SUM(J17:J26) -> 800 | K27: =SUM(K17:K26) -> 0 | M27: =CONCATENATE(FIXED(COUNTA(M17:M26),0,0)," 店") -> 0 店 | N27: =SUM(N17:N26) -> 0 | O27: =SUM(O17:O26) -> 0 | Q27: =CONCATENATE(FIXED(COUNTA(Q17:Q26),0,0)," 店") -> 1 店 | R27: =SUM(R17:R26) -> 950 | S27: =SUM(S17:S26) -> 0 | U27: =CONCATENATE(FIXED(COUNTA(U17:U26),0,0)," 店") -> 0 店 | V27: =SUM(V17:V26) -> 0 | W27: =SUM(W17:W26) -> 0 | X27: =SUM(X17:X26) -> 0
A29: 地区 | D29: 中日新聞 | G29: 枚数 | H29: 朝日新聞 | K29: 枚数 | L29: 毎日新聞 | O29: 枚数 | P29: 読売新聞 | S29: 枚数 | X29: 備考
A30: 江南市 | C30: 0 | D30: 230220101010 | E30: 古知野NMS | F30: 2250 | H30: 230220202010 | I30: 江南中央 | J30: 450 | P30: 230220405001 | Q30: 江南北部 | R30: 600 | X30: 江南市全域の場合
A31: =SUM(G48,K48,O48,S48,W48) -> 0 | B31: =SUM(F48,J48,N48,R48,V48) -> 19050 | C31: 0 | D31: 230220101100 | E31: 江南中部NMS | F31: 2000 | H31: 230220202020 | I31: 江南東部 | J31: 650 | P31: 230220405002 | Q31: 江南中央 | R31: 450 | X31: 丹羽郡柏森500枚
C32: 0 | D32: 230220101050 | E32: 古知野東部NMS | F32: 1050 | H32: 230220202030 | I32: 江南団地 | J32: 350 | X32: 丹羽郡扶桑山名150枚
C33: 0 | D33: 230220101060 | E33: 江南まんだら寺前NMS | F33: 2550 | H33: 230220202040 | I33: 布袋 | J33: 450 | X33: をプラス
C34: 0 | D34: 230220101080 | E34: 江南北部NMS | F34: 2050 | X34: 0
C35: 0 | D35: 230220101031 | E35: 江南草井NM | F35: 1850 | X35: 0
C36: 0 | D36: 230220101040 | E36: 布袋NMS | F36: 2250 | X36: 0
C37: 0 | D37: 230220101070 | E37: 布袋北部NM | F37: 1150 | X37: 0
C38: *1 | D38: 230220101090 | E38: 加納馬場NM | F38: 950 | X38: 0
X39: 0
X40: *1一宮市550枚
X41: 岩倉市100枚含む
X42: 0
X43: 0
X44: 0
X45: 0
X46: 0
X47: 0
E48: =CONCATENATE(FIXED(COUNTA(E30:E47),0,0)," 店") -> 9 店 | F48: =SUM(F30:F47) -> 16100 | G48: =SUM(G30:G47) -> 0 | I48: =CONCATENATE(FIXED(COUNTA(I30:I47),0,0)," 店") -> 4 店 | J48: =SUM(J30:J47) -> 1900 | K48: =SUM(K30:K47) -> 0 | M48: =CONCATENATE(FIXED(COUNTA(M30:M47),0,0)," 店") -> 0 店 | N48: =SUM(N30:N47) -> 0 | O48: =SUM(O30:O47) -> 0 | Q48: =CONCATENATE(FIXED(COUNTA(Q30:Q47),0,0)," 店") -> 2 店 | R48: =SUM(R30:R47) -> 1050 | S48: =SUM(S30:S47) -> 0 | U48: =CONCATENATE(FIXED(COUNTA(U30:U47),0,0)," 店") -> 0 店 | V48: =SUM(V30:V47) -> 0 | W48: =SUM(W30:W47) -> 0 | X48: =SUM(X30:X47) -> 0
A49: 2025年後期（8月1日以降） | X49: ㈱中日総合サービス

Sheet 丹羽郡・犬山市
A1: 折込日 | F1: 広告主 | Q1: サイズ | V1: 取次店
F2: チラシ銘柄 | Q2: 部数 | R2: =A6+A30 -> 0
A4: 地区 | D4: 中日新聞 | G4: 枚数 | H4: 朝日新聞 | K4: 枚数 | L4: 毎日新聞 | O4: 枚数 | P4: 読売新聞 | S4: 枚数 | X4: 備考
A5: 丹羽郡 | C5: *1 | D5: 230240101040 | E5: 柏森NMS | F5: 3300 | H5: 230240202010 | I5: 扶桑 | J5: 1050 | X5: *1江南市500枚
A6: =SUM(G26,K26,O26,S26,W26) -> 0 | B6: =SUM(F26,J26,N26,R26,V26) -> 10750 | C6: 0 | D6: 230240101010 | E6: 扶桑NMS | F6: 2000 | X6: 大口町650枚含む
C7: 0 | D7: 230240101030 | E7: 扶桑東NMS | F7: 800 | X7: *2江南市150枚含む
C8: *2 | D8: 230240101020 | E8: 扶桑山名NM | F8: 1000 | X8: 0
C9: 0 | D9: 230240101050 | E9: 大口北部NM | F9: 1650 | X9: 大口町全域の場合
C10: 0 | D10: 230240101060 | E10: 大口南部NMS | F10: 950 | X10: 扶桑町柏森650枚
X11: 小牧市村中100枚
X12: をプラス
X13: 0
X14: 0
X15: 0
X16: 0
X17: 0
X18: 0
X19: 0
X20: 0
X21: 0
X22: 0
X23: 0
X24: 0
X25: 0
E26: =CONCATENATE(FIXED(COUNTA(E5:E25),0,0)," 店") -> 6 店 | F26: =SUM(F5:F25) -> 9700 | G26: =SUM(G5:G25) -> 0 | I26: =CONCATENATE(FIXED(COUNTA(I5:I25),0,0)," 店") -> 1 店 | J26: =SUM(J5:J25) -> 1050 | K26: =SUM(K5:K25) -> 0 | M26: =CONCATENATE(FIXED(COUNTA(M5:M25),0,0)," 店") -> 0 店 | N26: =SUM(N5:N25) -> 0 | O26: =SUM(O5:O25) -> 0 | Q26: =CONCATENATE(FIXED(COUNTA(Q5:Q25),0,0)," 店") -> 0 店 | R26: =SUM(R5:R25) -> 0 | S26: =SUM(S5:S25) -> 0 | U26: =CONCATENATE(FIXED(COUNTA(U5:U25),0,0)," 店") -> 0 店 | V26: =SUM(V5:V25) -> 0 | W26: =SUM(W5:W25) -> 0 | X26: =SUM(X5:X25) -> 0
A28: 地区 | D28: 中日新聞 | G28: 枚数 | H28: 朝日新聞 | K28: 枚数 | L28: 毎日新聞 | O28: 枚数 | P28: 読売新聞 | S28: 枚数 | X28: 備考
A29: 犬山市 | C29: 0 | D29: 230210101010 | E29: 犬山NMS | F29: 3750 | H29: 230210202050 | I29: 犬山東部 | J29: 750 | P29: 230210405001 | Q29: 犬山 | R29: 650 | X29: 0
A30: =SUM(G48,K48,O48,S48,W48) -> 0 | B30: =SUM(F48,J48,N48,R48,V48) -> 14600 | C30: 0 | D30: 230210101050 | E30: 犬山駅東NMS | F30: 1000 | H30: 230210202020 | I30: 犬山中央 | J30: 450 | X30: 0
C31: 0 | D31: 230210101040 | E31: 犬山城東NMS | F31: 1400 | H31: 230210202030 | I31: 犬山南部 | J31: 450 | X31: 0
C32: 0 | D32: 230210101080 | E32: 前原NMS | F32: 1600 | X32: 0
C33: 0 | D33: 230210101070 | E33: 羽黒NMS | F33: 1150 | X33: 0
C34: 0 | D34: 230210101060 | E34: 羽黒東部NMS | F34: 1100 | X34: 0
C35: 0 | D35: 230210101020 | E35: 楽田NMS | F35: 1050 | X35: 0
C36: 0 | D36: 230210101030 | E36: 楽田東部NMS | F36: 1250 | X36: 0
X37: 0
X38: 0
X39: 0
X40: 0
X41: 0
X42: 0
X43: 0
X44: 0
X45: 0
X46: 0
X47: 0
E48: =CONCATENATE(FIXED(COUNTA(E29:E47),0,0)," 店") -> 8 店 | F48: =SUM(F29:F47) -> 12300 | G48: =SUM(G29:G47) -> 0 | I48: =CONCATENATE(FIXED(COUNTA(I29:I47),0,0)," 店") -> 3 店 | J48: =SUM(J29:J47) -> 1650 | K48: =SUM(K29:K47) -> 0 | M48: =CONCATENATE(FIXED(COUNTA(M29:M47),0,0)," 店") -> 0 店 | N48: =SUM(N29:N47) -> 0 | O48: =SUM(O29:O47) -> 0 | Q48: =CONCATENATE(FIXED(COUNTA(Q29:Q47),0,0)," 店") -> 1 店 | R48: =SUM(R29:R47) -> 650 | S48: =SUM(S29:S47) -> 0 | U48: =CONCATENATE(FIXED(COUNTA(U29:U47),0,0)," 店") -> 0 店 | V48: =SUM(V29:V47) -> 0 | W48: =SUM(W29:W47) -> 0 | X48: =SUM(X29:X47) -> 0
A49: 2025年後期（8月1日以降） | X49: ㈱中日総合サービス

Sheet 小牧市
A1: 折込日 | F1: 広告主 | Q1: サイズ | V1: 取次店
F2: チラシ銘柄 | Q2: 部数 | R2: =A6 -> 0
A4: 地区 | D4: 中日新聞 | G4: 枚数 | H4: 朝日新聞 | K4: 枚数 | L4: 毎日新聞 | O4: 枚数 | P4: 読売新聞 | S4: 枚数 | X4: 備考
A5: 小牧市 | C5: 0 | D5: 230520101010 | E5: 小牧中央NMS | F5: 2500 | H5: 230520202010 | I5: 小牧中央 | J5: 1200 | P5: 230520405001 | Q5: 小牧北部 | R5: 500 | X5: 0
A6: =SUM(G48,K48,O48,S48,W48) -> 0 | B6: =SUM(F48,J48,N48,R48,V48) -> 28150 | C6: 0 | D6: 230520101020 | E6: 小牧南部NMS | F6: 2100 | H6: 230520202030 | I6: 桃花台 | J6: 750 | P6: 230520405002 | Q6: 小牧中央 | R6: 650 | X6: 0
C7: 0 | D7: 230520101150 | E7: 小牧陶NMS | F7: 1200 | H7: 230520202040 | I7: 小牧西部 | J7: 200 | P7: 230520405003 | Q7: 桃花台 | R7: 600 | X7: 0
C8: 0 | D8: 230520101030 | E8: 小牧北部NM | F8: 1100 | X8: 0
C9: 0 | D9: 230520101040 | E9: 小牧北里NM | F9: 1100 | X9: 0
C10: 0 | D10: 230520101050 | E10: 小牧小木NMS | F10: 1150 | X10: 0
C11: 0 | D11: 230520101060 | E11: 小牧三ッ渕NMS | F11: 1550 | X11: 0
C12: *1 | D12: 230520101080 | E12: 小牧村中NMS | F12: 1600 | X12: 0
C13: 0 | D13: 230520101090 | E13: 味岡NMS | F13: 3150 | X13: 0
C14: 0 | D14: 230520101100 | E14: 小牧原NMS | F14: 950 | X14: *1丹羽郡大口町
C15: 0 | D15: 230520101110 | E15: 小牧東部NMS | F15: 1450 | X15: 100枚含む
C16: 0 | D16: 230520101130 | E16: 小牧本庄NMS | F16: 1100 | X16: 0
C17: 0 | D17: 230520101140 | E17: 小牧池の内NM | F17: 850 | X17: 0
C18: 0 | D18: 230520101170 | E18: 桃花台西NMS | F18: 1600 | X18: 0
C19: 0 | D19: 230520101180 | E19: 桃花台東NMS | F19: 2850 | X19: 0
X20: 0
X21: 0
E48: =CONCATENATE(FIXED(COUNTA(E5:E47),0,0)," 店") -> 15 店 | F48: =SUM(F5:F47) -> 24250 | G48: =SUM(G5:G47) -> 0 | I48: =CONCATENATE(FIXED(COUNTA(I5:I47),0,0)," 店") -> 3 店 | J48: =SUM(J5:J47) -> 2150 | K48: =SUM(K5:K47) -> 0 | M48: =CONCATENATE(FIXED(COUNTA(M5:M47),0,0)," 店") -> 0 店 | N48: =SUM(N5:N47) -> 0 | O48: =SUM(O5:O47) -> 0 | Q48: =CONCATENATE(FIXED(COUNTA(Q5:Q47),0,0)," 店") -> 3 店 | R48: =SUM(R5:R47) -> 1750 | S48: =SUM(S5:S47) -> 0 | U48: =CONCATENATE(FIXED(COUNTA(U5:U47),0,0)," 店") -> 0 店 | V48: =SUM(V5:V47) -> 0 | W48: =SUM(W5:W47) -> 0 | X48: =SUM(X5:X47) -> 0
A49: 2025年後期（8月1日以降） | X49: ㈱中日総合サービス

Sheet 春日井市
A1: 折込日 | F1: 広告主 | Q1: サイズ | V1: 取次店
F2: チラシ銘柄 | Q2: 部数 | R2: =A6 -> 0
A4: 地区 | D4: 中日新聞 | G4: 枚数 | H4: 朝日新聞 | K4: 枚数 | L4: 毎日新聞 | O4: 枚数 | P4: 読売新聞 | S4: 枚数 | X4: 備考
A5: 春日井市 | C5: 0 | D5: 230510101010 | E5: 春日井西部NMS | F5: 3200 | H5: 230510202010 | I5: 春日井西部 | J5: 200 | P5: 230510405001 | Q5: 高蔵寺 | R5: 550 | X5: 0
A6: =SUM(G48,K48,O48,S48,W48) -> 0 | B6: =SUM(F48,J48,N48,R48,V48) -> 57450 | C6: 0 | D6: 230510101020 | E6: 春日井宮町NMS | F6: 3650 | H6: 230510202020 | I6: 勝川 | J6: 750 | P6: 230510405002 | Q6: 春日井西部 | R6: 400 | X6: 0
C7: 0 | D7: 230510101030 | E7: 春日井中新町NMS | F7: 900 | H7: 230510202030 | I7: 春日井中央 | J7: 650 | P7: 230510405003 | Q7: 勝川 | R7: 300 | X7: 0
C8: 0 | D8: 230510101040 | E8: 勝川NMS | F8: 1250 | H8: 230510202040 | I8: 鳥居松 | J8: 1050 | P8: 230510405004 | Q8: ニュータウン | R8: 600 | X8: 0
C9: 0 | D9: 230510101270 | E9: 勝川東部NMS | F9: 1250 | H9: 230510202070 | I9: 藤山台 | J9: 950 | P9: 230510405005 | Q9: 春日井 | R9: 900 | X9: 0
C10: 0 | D10: 230510101050 | E10: 勝川南部NMS | F10: 2200 | H10: 230510202080 | I10: 高蔵寺 | J10: 700 | P10: 230510405007 | Q10: 桃花台（坂下） | R10: 150 | X10: 0
C11: 0 | D11: 230510101070 | E11: 春日井八田NM | F11: 1700 | H11: 230510202090 | I11: 中央台 | J11: 1000 | X11: 0
C12: 0 | D12: 230510101080 | E12: 春日井松河戸NMS | F12: 1200 | H12: 230510202100 | I12: 尾張坂下 | J12: 750 | X12: 0
C13: 0 | D13: 230510101090 | E13: 春日井上条NMS | F13: 1550
C14: 0 | D14: 230510101100 | E14: 春日井NMS | F14: 4500
C15: 0 | D15: 230510101280 | E15: 春日井高校前NMS | F15: 1300
C16: 0 | D16: 230510101110 | E16: 鳥居松NMS | F16: 3650
C17: 0 | D17: 230510101120 | E17: 春日井大泉寺NMS | F17: 850
C18: 0 | D18: 230510101130 | E18: 神領NMS | F18: 1150
C19: 0 | D19: 230510101140 | E19: 高蔵寺NMS | F19: 3900
C20: 0 | D20: 230510101150 | E20: 春日井出川NMS | F20: 1450
C21: 0 | D21: 230510101160 | E21: 尾張坂下NMS | F21: 3000
C22: 0 | D22: 230510101200 | E22: 藤山台NMS | F22: 1450
C23: 0 | D23: 230510101210 | E23: 高森台NMS | F23: 1550
C24: 0 | D24: 230510101220 | E24: 中央台NMS | F24: 1900
C25: 0 | D25: 230510101230 | E25: 岩成台NMS | F25: 1450
C26: 0 | D26: 230510101240 | E26: 石尾台NMS | F26: 1550
C27: 0 | D27: 230510101180 | E27: 鷹来桃山NMS | F27: 3900
E48: =CONCATENATE(FIXED(COUNTA(E5:E47),0,0)," 店") -> 23 店 | F48: =SUM(F5:F47) -> 48500 | G48: =SUM(G5:G47) -> 0 | I48: =CONCATENATE(FIXED(COUNTA(I5:I47),0,0)," 店") -> 8 店 | J48: =SUM(J5:J47) -> 6050 | K48: =SUM(K5:K47) -> 0 | M48: =CONCATENATE(FIXED(COUNTA(M5:M47),0,0)," 店") -> 0 店 | N48: =SUM(N5:N47) -> 0 | O48: =SUM(O5:O47) -> 0 | Q48: =CONCATENATE(FIXED(COUNTA(Q5:Q47),0,0)," 店") -> 6 店 | R48: =SUM(R5:R47) -> 2900 | S48: =SUM(S5:S47) -> 0 | U48: =CONCATENATE(FIXED(COUNTA(U5:U47),0,0)," 店") -> 0 店 | V48: =SUM(V5:V47) -> 0 | W48: =SUM(W5:W47) -> 0 | X48: =SUM(X5:X47) -> 0
A49: 2025年後期（8月1日以降） | X49: ㈱中日総合サービス

Sheet 瀬戸市・尾張旭市
A1: 折込日 | F1: 広告主 | Q1: サイズ | V1: 取次店
F2: チラシ銘柄 | Q2: 部数 | R2: =A6+A30 -> 0
A4: 地区 | D4: 中日新聞 | G4: 枚数 | H4: 朝日新聞 | K4: 枚数 | L4: 毎日新聞 | O4: 枚数 | P4: 読売新聞 | S4: 枚数 | X4: 備考
A5: 瀬戸市 | C5: 0 | D5: 230530101010 | E5: 瀬戸品野NAMYS | F5: 2100 | H5: 230530202010 | I5: 瀬戸 | J5: 300 | P5: 230530405001 | Q5: 瀬戸 | R5: 750 | X5: 瀬戸市全域の場合
A6: =SUM(G26,K26,O26,S26,W26) -> 0 | B6: =SUM(F26,J26,N26,R26,V26) -> 24800 | C6: 0 | D6: 230530101030 | E6: 瀬戸東NAMS | F6: 1100 | H6: 230530202020 | I6: 菱野団地 | J6: 900 | P6: 230530405003 | Q6: 瀬戸南 | R6: 300 | X6: 多治見市多治見（両藤舎）
C7: 0 | D7: 230530101040 | E7: 瀬戸（加藤）NMS | F7: 1700 | H7: 230530202030 | I7: 水野 | J7: 900 | X7: 100枚をプラス
C8: 0 | D8: 230530101050 | E8: 瀬戸陶原NMS | F8: 1850 | X8: 0
C9: 0 | D9: 230530101070 | E9: 水野西NMS | F9: 1700 | X9: 0
C10: 0 | D10: 230530101080 | E10: 中水野NAMS | F10: 1400 | X10: 0
C11: 0 | D11: 230530101100 | E11: 新瀬戸NMS | F11: 1450 | X11: 0
C12: 0 | D12: 230530101090 | E12: 瀬戸南山NMS | F12: 1700 | X12: 0
C13: 0 | D13: 230530101110 | E13: 原山台NMS | F13: 750 | X13: 0
C14: 0 | D14: 230530101120 | E14: 瀬戸菱野NMS | F14: 1500 | X14: 0
C15: 0 | D15: 230530101140 | E15: 瀬戸南部NMS | F15: 2250 | X15: 0
C16: 0 | D16: 230530101170 | E16: 瀬戸長根NMS | F16: 1900 | X16: 0
C17: 0 | D17: 230530101150 | E17: 瀬戸幡山NM | F17: 1250 | X17: 0
C18: 0 | D18: 230530101180 | E18: 瀬戸山口NM | F18: 1000 | X18: 0
X19: 0
X20: 0
E26: =CONCATENATE(FIXED(COUNTA(E5:E25),0,0)," 店") -> 14 店 | F26: =SUM(F5:F25) -> 21650 | G26: =SUM(G5:G25) -> 0 | I26: =CONCATENATE(FIXED(COUNTA(I5:I25),0,0)," 店") -> 3 店 | J26: =SUM(J5:J25) -> 2100 | K26: =SUM(K5:K25) -> 0 | M26: =CONCATENATE(FIXED(COUNTA(M5:M25),0,0)," 店") -> 0 店 | N26: =SUM(N5:N25) -> 0 | O26: =SUM(O5:O25) -> 0 | Q26: =CONCATENATE(FIXED(COUNTA(Q5:Q25),0,0)," 店") -> 2 店 | R26: =SUM(R5:R25) -> 1050 | S26: =SUM(S5:S25) -> 0 | U26: =CONCATENATE(FIXED(COUNTA(U5:U25),0,0)," 店") -> 0 店 | V26: =SUM(V5:V25) -> 0 | W26: =SUM(W5:W25) -> 0 | X26: =SUM(X5:X25) -> 0
A28: 地区 | D28: 中日新聞 | G28: 枚数 | H28: 朝日新聞 | K28: 枚数 | L28: 毎日新聞 | O28: 枚数 | P28: 読売新聞 | S28: 枚数 | X28: 備考
A29: 尾張旭市 | C29: 0 | D29: 230540101010 | E29: 三郷NMS | F29: 1300 | H29: 230540202010 | I29: 尾張旭 | J29: 1850 | P29: 230540405001 | Q29: 新尾張旭 | R29: 550 | X29: 尾張旭市全域の場合
A30: =SUM(G48,K48,O48,S48,W48) -> 0 | B30: =SUM(F48,J48,N48,R48,V48) -> 16000 | C30: 0 | D30: 230540101020 | E30: 平池NMS | F30: 2850 | P30: 230540405002 | Q30: 三郷 | R30: 250 | X30: 名東区森孝200枚
C31: 0 | D31: 230540101040 | E31: 尾張旭北部NMS | F31: 1750 | X31: 守山区大森1,650枚
C32: 0 | D32: 230540101030 | E32: 旭新居NMS | F32: 2850 | X32: をプラス
C33: *1 | D33: 230540101050 | E33: 本地ヶ原NMS | F33: 3100 | X33: 0
C34: *2 | D34: 230540101070 | E34: 瑞鳳NM | F34: 1500 | X34: 0
X35: *1守山区1,200枚含む
X36: 0
X37: *2守山区50枚含む
X38: 0
X39: 0
X40: 0
X41: 0
X42: 0
X43: 0
X44: 0
X45: 0
X46: 0
X47: 0
E48: =CONCATENATE(FIXED(COUNTA(E29:E47),0,0)," 店") -> 6 店 | F48: =SUM(F29:F47) -> 13350 | G48: =SUM(G29:G47) -> 0 | I48: =CONCATENATE(FIXED(COUNTA(I29:I47),0,0)," 店") -> 1 店 | J48: =SUM(J29:J47) -> 1850 | K48: =SUM(K29:K47) -> 0 | M48: =CONCATENATE(FIXED(COUNTA(M29:M47),0,0)," 店") -> 0 店 | N48: =SUM(N29:N47) -> 0 | O48: =SUM(O29:O47) -> 0 | Q48: =CONCATENATE(FIXED(COUNTA(Q29:Q47),0,0)," 店") -> 2 店 | R48: =SUM(R29:R47) -> 800 | S48: =SUM(S29:S47) -> 0 | U48: =CONCATENATE(FIXED(COUNTA(U29:U47),0,0)," 店") -> 0 店 | V48: =SUM(V29:V47) -> 0 | W48: =SUM(W29:W47) -> 0 | X48: =SUM(X29:X47) -> 0
A49: 2025年後期（8月1日以降） | X49: ㈱中日総合サービス

Sheet 日進市・豊明市
A1: 折込日 | F1: 広告主 | Q1: サイズ | V1: 取次店
F2: チラシ銘柄 | Q2: 部数 | R2: =A6+A30 -> 0
A4: 地区 | D4: 中日新聞 | G4: 枚数 | H4: 朝日新聞 | K4: 枚数 | L4: 毎日新聞 | O4: 枚数 | P4: 読売新聞 | S4: 枚数 | X4: 備考
A5: 日進市 | C5: 0 | D5: 230560101010 | E5: 岩崎NMS | F5: 1350 | H5: 230560202010 | I5: 岩崎 | J5: 1100 | P5: 230560405001 | Q5: 日進 | R5: 300 | X5: 日進市全域の場合
A6: =SUM(G26,K26,O26,S26,W26) -> 0 | B6: =SUM(F26,J26,N26,R26,V26) -> 15050 | C6: 0 | D6: 230560101110 | E6: 岩崎香久山NMS | F6: 1400 | H6: 230560202020 | I6: 日進 | J6: 1050 | P6: 230560405010 | Q6: 赤池 | R6: 350 | X6: 天白区梅が丘800枚
C7: 0 | D7: 230560101100 | E7: 岩崎台NMS | F7: 900 | X7: をプラス
C8: 0 | D8: 230560101030 | E8: 五色園NMS | F8: 1250
C9: 0 | D9: 230560101040 | E9: 日進米野木NMS | F9: 1800 | X9: 0
C10: 0 | D10: 230560101050 | E10: 日進中部NMS | F10: 950 | X10: 0
C11: 0 | D11: 230560101060 | E11: 赤池NMS | F11: 1150 | X11: 0
C12: 0 | D12: 230560101070 | E12: 日進折戸NMS | F12: 2200 | X12: 0
C13: 0 | D13: 230560101080 | E13: 日進浅田NMS | F13: 1250 | X13: 0
X14: 0
X15: 0
E26: =CONCATENATE(FIXED(COUNTA(E5:E25),0,0)," 店") -> 9 店 | F26: =SUM(F5:F25) -> 12250 | G26: =SUM(G5:G25) -> 0 | I26: =CONCATENATE(FIXED(COUNTA(I5:I25),0,0)," 店") -> 2 店 | J26: =SUM(J5:J25) -> 2150 | K26: =SUM(K5:K25) -> 0 | M26: =CONCATENATE(FIXED(COUNTA(M5:M25),0,0)," 店") -> 0 店 | N26: =SUM(N5:N25) -> 0 | O26: =SUM(O5:O25) -> 0 | Q26: =CONCATENATE(FIXED(COUNTA(Q5:Q25),0,0)," 店") -> 2 店 | R26: =SUM(R5:R25) -> 650 | S26: =SUM(S5:S25) -> 0 | U26: =CONCATENATE(FIXED(COUNTA(U5:U25),0,0)," 店") -> 0 店 | V26: =SUM(V5:V25) -> 0 | W26: =SUM(W5:W25) -> 0 | X26: =SUM(X5:X25) -> 0
A28: 地区 | D28: 中日新聞 | G28: 枚数 | H28: 朝日新聞 | K28: 枚数 | L28: 毎日新聞 | O28: 枚数 | P28: 読売新聞 | S28: 枚数 | X28: 備考
A29: 豊明市 | C29: 0 | D29: 230550101010 | E29: 豊明団地NMS | F29: 1750 | H29: 230550202010 | I29: 豊明 | J29: 850 | P29: 230550405001 | Q29: 豊明 | R29: 350 | X29: 0
A30: =SUM(G48,K48,O48,S48,W48) -> 0 | B30: =SUM(F48,J48,N48,R48,V48) -> 12600 | C30: 0 | D30: 230550101040 | E30: 豊明東部NMS | F30: 1950 | H30: 230550202030 | I30: 前後 | J30: 400 | P30: 230550405002 | Q30: 前後 | R30: 200 | X30: 0
C31: 0 | D31: 230550101020 | E31: 前後NMS | F31: 2150
C32: 0 | D32: 230550101030 | E32: 豊明桜ヶ丘NMS | F32: 1550
C33: 0 | D33: 230550101050 | E33: 沓掛NMS | F33: 2400
C34: 0 | D34: 230550101060 | E34: 豊明南館NM | F34: 1000
E48: =CONCATENATE(FIXED(COUNTA(E29:E47),0,0)," 店") -> 6 店 | F48: =SUM(F29:F47) -> 10800 | G48: =SUM(G29:G47) -> 0 | I48: =CONCATENATE(FIXED(COUNTA(I29:I47),0,0)," 店") -> 2 店 | J48: =SUM(J29:J47) -> 1250 | K48: =SUM(K29:K47) -> 0 | M48: =CONCATENATE(FIXED(COUNTA(M29:M47),0,0)," 店") -> 0 店 | N48: =SUM(N29:N47) -> 0 | O48: =SUM(O29:O47) -> 0 | Q48: =CONCATENATE(FIXED(COUNTA(Q29:Q47),0,0)," 店") -> 2 店 | R48: =SUM(R29:R47) -> 550 | S48: =SUM(S29:S47) -> 0 | U48: =CONCATENATE(FIXED(COUNTA(U29:U47),0,0)," 店") -> 0 店 | V48: =SUM(V29:V47) -> 0 | W48: =SUM(W29:W47) -> 0 | X48: =SUM(X29:X47) -> 0
A49: 2025年後期（8月1日以降） | X49: ㈱中日総合サービス

Sheet 長久手市・愛知郡
A1: 折込日 | F1: 広告主 | Q1: サイズ | V1: 取次店
F2: チラシ銘柄 | Q2: 部数 | R2: =A6+A30 -> 0
A4: 地区 | D4: 中日新聞 | G4: 枚数 | H4: 朝日新聞 | K4: 枚数 | L4: 毎日新聞 | O4: 枚数 | P4: 読売新聞 | S4: 枚数 | X4: 備考
A5: 長久手市 | C5: 0 | D5: 230590101010 | E5: 長久手北部NMS | F5: 1700 | H5: 230590202010 | I5: 長久手 | J5: 1250 | P5: 230590405010 | Q5: 長久手 | R5: 550 | X5: 長久手市全域の場合
A6: =SUM(G26,K26,O26,S26,W26) -> 0 | B6: =SUM(F26,J26,N26,R26,V26) -> 8900 | C6: 0 | D6: 230590101020 | E6: 長久手東部NMS | F6: 1900 | X6: 名東区極楽300枚
C7: 0 | D7: 230590101030 | E7: 長久手西部NMS | F7: 2200 | X7: をプラス
C8: 0 | D8: 230590101050 | E8: 長久手南部NMS | F8: 1300 | X8: 0
E26: =CONCATENATE(FIXED(COUNTA(E5:E25),0,0)," 店") -> 4 店 | F26: =SUM(F5:F25) -> 7100 | G26: =SUM(G5:G25) -> 0 | I26: =CONCATENATE(FIXED(COUNTA(I5:I25),0,0)," 店") -> 1 店 | J26: =SUM(J5:J25) -> 1250 | K26: =SUM(K5:K25) -> 0 | M26: =CONCATENATE(FIXED(COUNTA(M5:M25),0,0)," 店") -> 0 店 | N26: =SUM(N5:N25) -> 0 | O26: =SUM(O5:O25) -> 0 | Q26: =CONCATENATE(FIXED(COUNTA(Q5:Q25),0,0)," 店") -> 1 店 | R26: =SUM(R5:R25) -> 550 | S26: =SUM(S5:S25) -> 0 | U26: =CONCATENATE(FIXED(COUNTA(U5:U25),0,0)," 店") -> 0 店 | V26: =SUM(V5:V25) -> 0 | W26: =SUM(W5:W25) -> 0 | X26: =SUM(X5:X25) -> 0
A28: 地区 | D28: 中日新聞 | G28: 枚数 | H28: 朝日新聞 | K28: 枚数 | L28: 毎日新聞 | O28: 枚数 | P28: 読売新聞 | S28: 枚数 | X28: 備考
A29: 愛知郡 | C29: 0 | D29: 230580101010 | E29: 和合NMS | F29: 2050 | H29: 230580202010 | I29: 東郷 | J29: 500 | P29: 230580405001 | Q29: 東郷 | R29: 450 | X29: 0
A30: =SUM(G48,K48,O48,S48,W48) -> 0 | B30: =SUM(F48,J48,N48,R48,V48) -> 7600 | C30: 0 | D30: 230580101025 | E30: 東郷白鳥NMS | F30: 1550
C31: 0 | D31: 230580101020 | E31: 諸輪NMS | F31: 1250
C32: 0 | D32: 230580101040 | E32: 音貝NMS | F32: 1800
E48: =CONCATENATE(FIXED(COUNTA(E29:E47),0,0)," 店") -> 4 店 | F48: =SUM(F29:F47) -> 6650 | G48: =SUM(G29:G47) -> 0 | I48: =CONCATENATE(FIXED(COUNTA(I29:I47),0,0)," 店") -> 1 店 | J48: =SUM(J29:J47) -> 500 | K48: =SUM(K29:K47) -> 0 | M48: =CONCATENATE(FIXED(COUNTA(M29:M47),0,0)," 店") -> 0 店 | N48: =SUM(N29:N47) -> 0 | O48: =SUM(O29:O47) -> 0 | Q48: =CONCATENATE(FIXED(COUNTA(Q29:Q47),0,0)," 店") -> 1 店 | R48: =SUM(R29:R47) -> 450 | S48: =SUM(S29:S47) -> 0 | U48: =CONCATENATE(FIXED(COUNTA(U29:U47),0,0)," 店") -> 0 店 | V48: =SUM(V29:V47) -> 0 | W48: =SUM(W29:W47) -> 0 | X48: =SUM(X29:X47) -> 0
A49: 2025年後期（8月1日以降） | X49: ㈱中日総合サービス

Sheet 大府市・東海市
A1: 折込日 | F1: 広告主 | Q1: サイズ | V1: 取次店
F2: チラシ銘柄 | Q2: 部数 | R2: =A6+A30 -> 0
A4: 地区 | D4: 中日新聞 | G4: 枚数 | H4: 朝日新聞 | K4: 枚数 | L4: 毎日新聞 | O4: 枚数 | P4: 読売新聞 | S4: 枚数 | X4: 備考
A5: 大府市 | C5: 0 | D5: 230420101020 | E5: 共和NMS | F5: 3850 | H5: 230420202011 | I5: 大府 | J5: 1200 | P5: 230420405001 | Q5: 大府・共和 | R5: 650 | X5: 0
A6: =SUM(G26,K26,O26,S26,W26) -> 0 | B6: =SUM(F26,J26,N26,R26,V26) -> 15850 | C6: 0 | D6: 230420101070 | E6: 共和西NMS | F6: 1300 | H6: 230420202020 | I6: 共和 | J6: 300
C7: 0 | D7: 230420101010 | E7: 大府NMS | F7: 4000
C8: 0 | D8: 230420101030 | E8: 大府吉田NMS | F8: 1250
C9: 0 | D9: 230420101060 | E9: 大府森岡NMS | F9: 1700
C10: 0 | D10: 230420101080 | E10: 大府駅西NMS | F10: 1600
C11: 0
E26: =CONCATENATE(FIXED(COUNTA(E5:E25),0,0)," 店") -> 6 店 | F26: =SUM(F5:F25) -> 13700 | G26: =SUM(G5:G25) -> 0 | I26: =CONCATENATE(FIXED(COUNTA(I5:I25),0,0)," 店") -> 2 店 | J26: =SUM(J5:J25) -> 1500 | K26: =SUM(K5:K25) -> 0 | M26: =CONCATENATE(FIXED(COUNTA(M5:M25),0,0)," 店") -> 0 店 | N26: =SUM(N5:N25) -> 0 | O26: =SUM(O5:O25) -> 0 | Q26: =CONCATENATE(FIXED(COUNTA(Q5:Q25),0,0)," 店") -> 1 店 | R26: =SUM(R5:R25) -> 650 | S26: =SUM(S5:S25) -> 0 | U26: =CONCATENATE(FIXED(COUNTA(U5:U25),0,0)," 店") -> 0 店 | V26: =SUM(V5:V25) -> 0 | W26: =SUM(W5:W25) -> 0 | X26: =SUM(X5:X25) -> 0
A28: 地区 | D28: 中日新聞 | G28: 枚数 | H28: 朝日新聞 | K28: 枚数 | L28: 毎日新聞 | O28: 枚数 | P28: 読売新聞 | S28: 枚数 | X28: 備考
A29: 東海市 | C29: 0 | D29: 230410101070 | E29: 名和水谷N | F29: 2050 | H29: 230410202011 | I29: 東海市 | J29: 750 | L29: 230410303050 | M29: 東海大高 | N29: 100 | P29: 230410405001 | Q29: 名和 | R29: 200
A30: =SUM(G48,K48,O48,S48,W48) -> 0 | B30: =SUM(F48,J48,N48,R48,V48) -> 18450 | C30: 0 | D30: 230410101010 | E30: 荒尾NMS | F30: 1850 | H30: 230410202031 | I30: 尾張横須賀 | J30: 350 | P30: 230410405002 | Q30: 東海北部 | R30: 350
C31: 0 | D31: 230410101050 | E31: 名和上野NMS | F31: 1100 | H31: 230410202040 | I31: 南加木屋 | J31: 700 | P31: 230410405004 | Q31: 東海東浦 | R31: 450
C32: 0 | D32: 230410101090 | E32: 東海大田NMS | F32: 1350 | P32: 230410405005 | Q32: 阿久比 | R32: 350 | X32: 0
C33: 0 | D33: 230410101030 | E33: 富木島NMS | F33: 2700
D34: 230410101100 | E34: 高横須賀NMS | F34: 1350
C35: 0 | D35: 230410101080 | E35: 尾張横須賀NMS | F35: 850
C36: 0 | D36: 230410101110 | E36: 加木屋NMS | F36: 3950
C37: 0
E48: =CONCATENATE(FIXED(COUNTA(E29:E47),0,0)," 店") -> 8 店 | F48: =SUM(F29:F47) -> 15200 | G48: =SUM(G29:G47) -> 0 | I48: =CONCATENATE(FIXED(COUNTA(I29:I47),0,0)," 店") -> 3 店 | J48: =SUM(J29:J47) -> 1800 | K48: =SUM(K29:K47) -> 0 | M48: =CONCATENATE(FIXED(COUNTA(M29:M47),0,0)," 店") -> 1 店 | N48: =SUM(N29:N47) -> 100 | O48: =SUM(O29:O47) -> 0 | Q48: =CONCATENATE(FIXED(COUNTA(Q29:Q47),0,0)," 店") -> 4 店 | R48: =SUM(R29:R47) -> 1350 | S48: =SUM(S29:S47) -> 0 | U48: =CONCATENATE(FIXED(COUNTA(U29:U47),0,0)," 店") -> 0 店 | V48: =SUM(V29:V47) -> 0 | W48: =SUM(W29:W47) -> 0 | X48: =SUM(X29:X47) -> 0
A49: 2025年後期（8月1日以降） | X49: ㈱中日総合サービス

Sheet 知多市・半田市
A1: 折込日 | F1: 広告主 | Q1: サイズ | V1: 取次店
F2: チラシ銘柄 | Q2: 部数 | R2: =A6+A30 -> 0
A4: 地区 | D4: 中日新聞 | G4: 枚数 | H4: 朝日新聞 | K4: 枚数 | L4: 毎日新聞 | O4: 枚数 | P4: 読売新聞 | S4: 枚数 | X4: 備考
A5: 知多市 | C5: 0 | D5: 230430101050 | E5: 寺本NM | F5: 1450 | H5: 230430202010 | I5: 巽ケ丘 | J5: 550 | P5: 230430405001 | Q5: 知多南 | R5: 600 | X5: 0
A6: =SUM(G26,K26,O26,S26,W26) -> 0 | B6: =SUM(F26,J26,N26,R26,V26) -> 16500 | C6: 0 | D6: 230430101060 | E6: 朝倉団地NMS | F6: 5300 | H6: 230430202040 | I6: 朝倉 | J6: 750 | X6: 0
C7: 0 | D7: 230430101070 | E7: 巽ヶ丘NMS | F7: 1650 | H7: 230430202030 | I7: 知多市 | J7: 1000 | X7: 0
C8: 0 | D8: 230430101040 | E8: 知多岡田NM | F8: 2800 | X8: 0
C9: 0 | D9: 230430101020 | E9: 新舞子NM | F9: 1050
C10: 0 | D10: 230430101010 | E10: 知多粕谷NM | F10: 1350 | X10: 0
C11: 0 | X11: 0
X12: 0
X13: 0
E26: =CONCATENATE(FIXED(COUNTA(E5:E25),0,0)," 店") -> 6 店 | F26: =SUM(F5:F25) -> 13600 | G26: =SUM(G5:G25) -> 0 | I26: =CONCATENATE(FIXED(COUNTA(I5:I25),0,0)," 店") -> 3 店 | J26: =SUM(J5:J25) -> 2300 | K26: =SUM(K5:K25) -> 0 | M26: =CONCATENATE(FIXED(COUNTA(M5:M25),0,0)," 店") -> 0 店 | N26: =SUM(N5:N25) -> 0 | O26: =SUM(O5:O25) -> 0 | Q26: =CONCATENATE(FIXED(COUNTA(Q5:Q25),0,0)," 店") -> 1 店 | R26: =SUM(R5:R25) -> 600 | S26: =SUM(S5:S25) -> 0 | U26: =CONCATENATE(FIXED(COUNTA(U5:U25),0,0)," 店") -> 0 店 | V26: =SUM(V5:V25) -> 0 | W26: =SUM(W5:W25) -> 0 | X26: =SUM(X5:X25) -> 0
A28: 地区 | D28: 中日新聞 | G28: 枚数 | H28: 朝日新聞 | K28: 枚数 | L28: 毎日新聞 | O28: 枚数 | P28: 読売新聞 | S28: 枚数 | X28: 備考
A29: 半田市 | C29: 0 | D29: 230450101070 | E29: 亀崎NMS | F29: 2950 | H29: 230450202010 | I29: 半田中央 | J29: 200 | P29: 230450405001 | Q29: 半田 | R29: 400 | X29: 0
A30: =SUM(G48,K48,O48,S48,W48) -> 0 | B30: =SUM(F48,J48,N48,R48,V48) -> 21650 | C30: 0 | D30: 230450101060 | E30: 乙川NMS | F30: 2250 | H30: 230450202050 | I30: 半田東部 | J30: 250 | P30: 230450405002 | Q30: 半田東部 | R30: 450 | X30: 0
C31: 0 | D31: 230450101130 | E31: 半田北部NMS | F31: 1450 | H31: 230450202030 | I31: 半田南部 | J31: 900 | P31: 230450405003 | Q31: 半田住吉 | R31: 150 | X31: 0
C32: 0 | D32: 230450101020 | E32: 半田住吉NM | F32: 1100 | H32: 230450202040 | I32: 半田北部 | J32: 500
C33: 0 | D33: 230450101010 | E33: 半田岩滑NM | F33: 1000
C34: 0 | D34: 230450101120 | E34: 半田清城NM | F34: 1150
C35: 0 | D35: 230450101110 | E35: 知多半田NMS | F35: 1100
C36: 0 | D36: 230450101100 | E36: 半田衣浦NMS | F36: 900
C37: 0 | D37: 230450101050 | E37: 半田中町NMS | F37: 1400
C38: 0 | D38: 230450101090 | E38: 半田板山NM | F38: 1050
C39: 0 | D39: 230450101030 | E39: 成岩NM | F39: 1800
C40: 0 | D40: 230450101040 | E40: 半田青山NMS | F40: 2650
E48: =CONCATENATE(FIXED(COUNTA(E29:E47),0,0)," 店") -> 12 店 | F48: =SUM(F29:F47) -> 18800 | G48: =SUM(G29:G47) -> 0 | I48: =CONCATENATE(FIXED(COUNTA(I29:I47),0,0)," 店") -> 4 店 | J48: =SUM(J29:J47) -> 1850 | K48: =SUM(K29:K47) -> 0 | M48: =CONCATENATE(FIXED(COUNTA(M29:M47),0,0)," 店") -> 0 店 | N48: =SUM(N29:N47) -> 0 | O48: =SUM(O29:O47) -> 0 | Q48: =CONCATENATE(FIXED(COUNTA(Q29:Q47),0,0)," 店") -> 3 店 | R48: =SUM(R29:R47) -> 1000 | S48: =SUM(S29:S47) -> 0 | U48: =CONCATENATE(FIXED(COUNTA(U29:U47),0,0)," 店") -> 0 店 | V48: =SUM(V29:V47) -> 0 | W48: =SUM(W29:W47) -> 0 | X48: =SUM(X29:X47) -> 0
A49: 2025年後期（8月1日以降） | X49: ㈱中日総合サービス

Sheet 常滑市・知多郡
A1: 折込日 | F1: 広告主 | Q1: サイズ | V1: 取次店
F2: チラシ銘柄 | Q2: 部数 | R2: =A6+A24 -> 0
A4: 地区 | D4: 中日新聞 | G4: 枚数 | H4: 朝日新聞 | K4: 枚数 | L4: 毎日新聞 | O4: 枚数 | P4: 読売新聞 | S4: 枚数 | X4: 備考
A5: 常滑市 | C5: 0 | D5: 230440101020 | E5: 尾張大野NMS | F5: 2150 | H5: 230440202010 | I5: 常滑 | J5: 250
A6: =SUM(G20,K20,O20,S20,W20) -> 0 | B6: =SUM(F20,J20,N20,R20,V20) -> 9450 | C6: 0 | D6: 230440101030 | E6: 常滑鬼崎NMYS | F6: 2150
C7: 0 | D7: 230440101010 | E7: 常滑NMYS | F7: 3650
C8: 0 | D8: 230440101070 | E8: 常滑南部NAMYS | F8: 1250
E20: =CONCATENATE(FIXED(COUNTA(E5:E19),0,0)," 店") -> 4 店 | F20: =SUM(F5:F19) -> 9200 | G20: =SUM(G5:G19) -> 0 | I20: =CONCATENATE(FIXED(COUNTA(I5:I19),0,0)," 店") -> 1 店 | J20: =SUM(J5:J19) -> 250 | K20: =SUM(K5:K19) -> 0 | M20: =CONCATENATE(FIXED(COUNTA(M5:M19),0,0)," 店") -> 0 店 | N20: =SUM(N5:N19) -> 0 | O20: =SUM(O5:O19) -> 0 | Q20: =CONCATENATE(FIXED(COUNTA(Q5:Q19),0,0)," 店") -> 0 店 | R20: =SUM(R5:R19) -> 0 | S20: =SUM(S5:S19) -> 0 | U20: =CONCATENATE(FIXED(COUNTA(U5:U19),0,0)," 店") -> 0 店 | V20: =SUM(V5:V19) -> 0 | W20: =SUM(W5:W19) -> 0 | X20: =SUM(X5:X19) -> 0
A22: 地区 | D22: 中日新聞 | G22: 枚数 | H22: 朝日新聞 | K22: 枚数 | L22: 毎日新聞 | O22: 枚数 | P22: 読売新聞 | S22: 枚数 | X22: 備考
A23: 知多郡 | C23: 0 | D23: 230460101010 | E23: 緒川NMS | F23: 2750 | H23: 230460202010 | I23: 東浦 | J23: 700 | P23: 230460405001 | Q23: 東浦石浜 | R23: 100 | X23: 0
A24: =SUM(G48,K48,O48,S48,W48) -> 0 | B24: =SUM(F48,J48,N48,R48,V48) -> 28300 | C24: 0 | D24: 230460101020 | E24: 石浜NMS | F24: 1500 | H24: 230460202020 | I24: 阿久比 | J24: 450 | P24: 230460405006 | Q24: 武豊 | R24: 200 | X24: 0
C25: 0 | D25: 230460101160 | E25: 藤江NMS | F25: 1600 | H25: 230460202030 | I25: 武豊 | J25: 700 | P25: 230460405003 | Q25: 豊浜 | R25: 150 | X25: 0
C26: 0 | D26: 230460101050 | E26: 緒川新田NM | F26: 900 | H26: 230460202070 | I26: 豊浜 | J26: 100 | P26: 230460405004 | Q26: 日間賀 | R26: 100 | X26: 0
C27: *1 | D27: 230460101060 | E27: 東ケ丘NMS | F27: 1200 | X27: 0
C28: 0 | D28: 230460101070 | E28: 阿久比NMS | F28: 2100 | X28: 0
C29: 0 | D29: 230460101080 | E29: 坂部NMS | F29: 2050 | X29: *1阿久比町400枚含む
C30: 0 | D30: 230460101090 | E30: 武豊NMS | F30: 4850
C31: 0 | D31: 230460101100 | E31: 富貴NMS | F31: 1200 | X31: 阿久比町全域の場合
C32: 0 | D32: 230460101110 | E32: 河和NAMS | F32: 2700 | X32: 東ヶ丘400枚をプラス
C33: 0 | D33: 230460101120 | E33: 野間NAMYS | F33: 1850 | X33: 0
C34: 0 | D34: 230460101150 | E34: 内海NAM | F34: 1050 | X34: 0
C35: 0 | D35: 230460101140 | E35: 豊浜NMS | F35: 900 | X35: 0
C36: *2 | D36: 230460101130 | E36: 師崎NAMS | F36: 1150 | X36: 0
X37: 0
X38: *2日間賀島、篠島地区
X39: を含む
X40: 0
X41: 0
X46: 0
X47: 0
E48: =CONCATENATE(FIXED(COUNTA(E23:E47),0,0)," 店") -> 14 店 | F48: =SUM(F23:F47) -> 25800 | G48: =SUM(G23:G47) -> 0 | I48: =CONCATENATE(FIXED(COUNTA(I23:I47),0,0)," 店") -> 4 店 | J48: =SUM(J23:J47) -> 1950 | K48: =SUM(K23:K47) -> 0 | M48: =CONCATENATE(FIXED(COUNTA(M23:M47),0,0)," 店") -> 0 店 | N48: =SUM(N23:N47) -> 0 | O48: =SUM(O23:O47) -> 0 | Q48: =CONCATENATE(FIXED(COUNTA(Q23:Q47),0,0)," 店") -> 4 店 | R48: =SUM(R23:R47) -> 550 | S48: =SUM(S23:S47) -> 0 | U48: =CONCATENATE(FIXED(COUNTA(U23:U47),0,0)," 店") -> 0 店 | V48: =SUM(V23:V47) -> 0 | W48: =SUM(W23:W47) -> 0 | X48: =SUM(X23:X47) -> 0
A49: 2025年後期（8月1日以降） | X49: ㈱中日総合サービス

Sheet 三河地区
A1: 折込日 | F1: 広告主 | O1: サイズ | S1: 取次店
F2: チラシ銘柄 | O2: 部数 | P2: =S27 -> 0
A3: 三河地区 | U3: 2025年後期（8月1日以降）
A4: 地区 | B4: 中日新聞 | E4: 朝日新聞 | H4: 毎日新聞 | K4: 読売新聞 | Q4: 合 計 | T4: 備考
A5: 刈谷市 | B5: =VALUE(TRIM(LEFT(刈谷市・高浜市・碧南市!E18,2))) -> 7 | C5: =刈谷市・高浜市・碧南市!F18 -> 19150 | D5: =刈谷市・高浜市・碧南市!G18 -> 0 | E5: =VALUE(TRIM(LEFT(刈谷市・高浜市・碧南市!I18,2))) -> 3 | F5: =刈谷市・高浜市・碧南市!J18 -> 1700 | G5: =刈谷市・高浜市・碧南市!K18 -> 0 | H5: =VALUE(TRIM(LEFT(刈谷市・高浜市・碧南市!M18,2))) -> 2 | I5: =刈谷市・高浜市・碧南市!N18 -> 750 | J5: =刈谷市・高浜市・碧南市!O18 -> 0 | K5: =VALUE(TRIM(LEFT(刈谷市・高浜市・碧南市!Q18,2))) -> 4 | L5: =刈谷市・高浜市・碧南市!R18 -> 1800 | M5: =刈谷市・高浜市・碧南市!S18 -> 0 | Q5: =SUM(B5,E5,H5,K5,N5) -> 16 | R5: =SUM(C5,F5,I5,L5,O5) -> 23400 | S5: =IFERROR((SUM(D5,G5,J5,M5,P5))," ") -> 0
A6: 高浜市 | B6: =VALUE(TRIM(LEFT(刈谷市・高浜市・碧南市!E29,2))) -> 3 | C6: =刈谷市・高浜市・碧南市!F29 -> 5800 | D6: =刈谷市・高浜市・碧南市!G29 -> 0 | E6: =VALUE(TRIM(LEFT(刈谷市・高浜市・碧南市!I29,2))) -> 1 | F6: =刈谷市・高浜市・碧南市!J29 -> 650 | G6: =刈谷市・高浜市・碧南市!K29 -> 0 | H6: =VALUE(TRIM(LEFT(刈谷市・高浜市・碧南市!M29,2))) -> 0 | I6: =刈谷市・高浜市・碧南市!N29 -> 0 | J6: =刈谷市・高浜市・碧南市!O29 -> 0 | K6: =VALUE(TRIM(LEFT(刈谷市・高浜市・碧南市!Q29,2))) -> 2 | L6: =刈谷市・高浜市・碧南市!R29 -> 400 | M6: =刈谷市・高浜市・碧南市!S29 -> 0 | Q6: 6 | R6: 6850 | S6: 0
A7: 碧南市 | B7: =VALUE(TRIM(LEFT(刈谷市・高浜市・碧南市!E48,2))) -> 6 | C7: =刈谷市・高浜市・碧南市!F48 -> 11200 | D7: =刈谷市・高浜市・碧南市!G48 -> 0 | E7: =VALUE(TRIM(LEFT(刈谷市・高浜市・碧南市!I48,2))) -> 0 | F7: =刈谷市・高浜市・碧南市!J48 -> 0 | G7: =刈谷市・高浜市・碧南市!K48 -> 0 | H7: =VALUE(TRIM(LEFT(刈谷市・高浜市・碧南市!M48,2))) -> 0 | I7: =刈谷市・高浜市・碧南市!N48 ->  | J7: =刈谷市・高浜市・碧南市!O48 -> 0 | K7: =VALUE(TRIM(LEFT(刈谷市・高浜市・碧南市!Q48,2))) -> 2 | L7: =刈谷市・高浜市・碧南市!R48 -> 550 | M7: =刈谷市・高浜市・碧南市!S48 -> 0 | Q7: 8 | R7: 11750 | S7: 0
A8: 安城市 | B8: =VALUE(TRIM(LEFT(安城市・知立市!E26,2))) -> 15 | C8: =安城市・知立市!F26 -> 27250 | D8: =安城市・知立市!G26 -> 0 | E8: =VALUE(TRIM(LEFT(安城市・知立市!I26,2))) -> 5 | F8: =安城市・知立市!J26 -> 2850 | G8: =安城市・知立市!K26 -> 0 | H8: =VALUE(TRIM(LEFT(安城市・知立市!M26,2))) -> 0 | I8: =安城市・知立市!N26 -> 0 | J8: =安城市・知立市!O26 -> 0 | K8: =VALUE(TRIM(LEFT(安城市・知立市!Q26,2))) -> 2 | L8: =安城市・知立市!R26 -> 1050 | M8: =安城市・知立市!S26 -> 0 | Q8: 22 | R8: 31150 | S8: 0
A9: 知立市 | B9: =VALUE(TRIM(LEFT(安城市・知立市!E48,2))) -> 6 | C9: =安城市・知立市!F48 -> 9850 | D9: =安城市・知立市!G48 -> 0 | E9: =VALUE(TRIM(LEFT(安城市・知立市!I48,2))) -> 1 | F9: =安城市・知立市!J48 -> 2100 | G9: =安城市・知立市!K48 -> 0 | H9: =VALUE(TRIM(LEFT(安城市・知立市!M48,2))) -> 0 | I9: =安城市・知立市!N48 -> 0 | J9: =安城市・知立市!O48 -> 0 | K9: =VALUE(TRIM(LEFT(安城市・知立市!Q48,2))) -> 2 | L9: =安城市・知立市!R48 -> 650 | M9: =安城市・知立市!S48 -> 0 | Q9: 9 | R9: 12600 | S9: 0
A10: 豊田市 | B10: =VALUE(TRIM(LEFT(豊田市!E48,2))) -> 35 | C10: =豊田市!F48 -> 61800 | D10: =豊田市!G48 -> 0 | E10: =VALUE(TRIM(LEFT(豊田市!I48,2))) -> 4 | F10: =豊田市!J48 -> 4900 | G10: =豊田市!K48 -> 0 | H10: =VALUE(TRIM(LEFT(豊田市!M48,2))) -> 0 | I10: =豊田市!N48 -> 0 | J10: =豊田市!O48 -> 0 | K10: =VALUE(TRIM(LEFT(豊田市!Q48,2))) -> 14 | L10: =豊田市!R48 -> 6100 | M10: =豊田市!S48 -> 0 | Q10: 53 | R10: 72800 | S10: 0
A11: みよし市 | B11: =VALUE(TRIM(LEFT(みよし市・岡崎市!E12,2))) -> 3 | C11: =みよし市・岡崎市!F12 -> 8800 | D11: =みよし市・岡崎市!G12 -> 0 | E11: =VALUE(TRIM(LEFT(みよし市・岡崎市!I12,2))) -> 1 | F11: =みよし市・岡崎市!J12 -> 1350 | G11: =みよし市・岡崎市!K12 -> 0 | H11: =VALUE(TRIM(LEFT(みよし市・岡崎市!M12,2))) -> 0 | I11: =みよし市・岡崎市!N12 -> 0 | J11: =みよし市・岡崎市!O12 -> 0 | K11: =VALUE(TRIM(LEFT(みよし市・岡崎市!Q12,2))) -> 1 | L11: =みよし市・岡崎市!R12 -> 500 | M11: =みよし市・岡崎市!S12 -> 0 | Q11: 5 | R11: 10650 | S11: 0
A12: 岡崎市 | B12: =VALUE(TRIM(LEFT(みよし市・岡崎市!E48,2))) -> 28 | C12: =みよし市・岡崎市!F48 -> 56100 | D12: =みよし市・岡崎市!G48 -> 0 | E12: =VALUE(TRIM(LEFT(みよし市・岡崎市!I48,2))) -> 6 | F12: =みよし市・岡崎市!J48 -> 4600 | G12: =みよし市・岡崎市!K48 -> 0 | H12: =VALUE(TRIM(LEFT(みよし市・岡崎市!M48,2))) -> 1 | I12: =みよし市・岡崎市!N48 -> 1300 | J12: =みよし市・岡崎市!O48 -> 0 | K12: =VALUE(TRIM(LEFT(みよし市・岡崎市!Q48,2))) -> 5 | L12: =みよし市・岡崎市!R48 -> 2900 | M12: =みよし市・岡崎市!S48 -> 0 | Q12: 40 | R12: 64900 | S12: 0
A13: 額田郡 | B13: =VALUE(TRIM(LEFT(額田郡・西尾市・蒲郡市!E14,2))) -> 1 | C13: =額田郡・西尾市・蒲郡市!F14 -> 5450 | D13: =額田郡・西尾市・蒲郡市!G14 -> 0 | E13: =VALUE(TRIM(LEFT(額田郡・西尾市・蒲郡市!I14,2))) -> 0 | F13: =額田郡・西尾市・蒲郡市!J14 -> 0 | G13: =額田郡・西尾市・蒲郡市!K14 -> 0 | H13: =VALUE(TRIM(LEFT(額田郡・西尾市・蒲郡市!M14,2))) -> 0 | I13: =額田郡・西尾市・蒲郡市!N14 -> 0 | J13: =額田郡・西尾市・蒲郡市!O14 -> 0 | K13: =VALUE(TRIM(LEFT(額田郡・西尾市・蒲郡市!Q14,2))) -> 1 | L13: =額田郡・西尾市・蒲郡市!R14 -> 300 | M13: =額田郡・西尾市・蒲郡市!S14 -> 0 | Q13: 2 | R13: 5750 | S13: 0
A14: 西尾市 | B14: =VALUE(TRIM(LEFT(額田郡・西尾市・蒲郡市!E33,2))) -> 9 | C14: =額田郡・西尾市・蒲郡市!F33 -> 26400 | D14: =額田郡・西尾市・蒲郡市!G33 -> 0 | E14: =VALUE(TRIM(LEFT(額田郡・西尾市・蒲郡市!I33,2))) -> 3 | F14: =額田郡・西尾市・蒲郡市!J33 -> 1950 | G14: =額田郡・西尾市・蒲郡市!K33 -> 0 | H14: =VALUE(TRIM(LEFT(額田郡・西尾市・蒲郡市!M33,2))) -> 0 | I14: =額田郡・西尾市・蒲郡市!N33 -> 0 | J14: =額田郡・西尾市・蒲郡市!O33 -> 0 | K14: =VALUE(TRIM(LEFT(額田郡・西尾市・蒲郡市!Q33,2))) -> 5 | L14: =額田郡・西尾市・蒲郡市!R33 -> 2100 | M14: =額田郡・西尾市・蒲郡市!S33 -> 0 | Q14: 17 | R14: 30450 | S14: 0
A15: 蒲郡市 | B15: =VALUE(TRIM(LEFT(額田郡・西尾市・蒲郡市!E48,2))) -> 2 | C15: =額田郡・西尾市・蒲郡市!F48 -> 13550 | D15: =額田郡・西尾市・蒲郡市!G48 -> 0 | E15: =VALUE(TRIM(LEFT(額田郡・西尾市・蒲郡市!I48,2))) -> 1 | F15: =額田郡・西尾市・蒲郡市!J48 -> 1100 | G15: =額田郡・西尾市・蒲郡市!K48 -> 0 | H15: =VALUE(TRIM(LEFT(額田郡・西尾市・蒲郡市!M48,2))) -> 0 | I15: =額田郡・西尾市・蒲郡市!N48 -> 0 | J15: =額田郡・西尾市・蒲郡市!O48 -> 0 | K15: =VALUE(TRIM(LEFT(額田郡・西尾市・蒲郡市!Q48,2))) -> 3 | L15: =額田郡・西尾市・蒲郡市!R48 -> 450 | M15: =額田郡・西尾市・蒲郡市!S48 -> 0 | Q15: 6 | R15: 15100 | S15: 0
A16: 豊川市 | B16: =VALUE(TRIM(LEFT(豊川市!E48,2))) -> 17 | C16: =豊川市!F48 -> 31650 | D16: =豊川市!G48 -> 0 | E16: =VALUE(TRIM(LEFT(豊川市!I48,2))) -> 6 | F16: =豊川市!J48 -> 2750 | G16: =豊川市!K48 -> 0 | H16: =VALUE(TRIM(LEFT(豊川市!M48,2))) -> 0 | I16: =豊川市!N48 -> 0 | J16: =豊川市!O48 -> 0 | K16: =VALUE(TRIM(LEFT(豊川市!Q48,2))) -> 4 | L16: =豊川市!R48 -> 1000 | M16: =豊川市!S48 -> 0 | Q16: 27 | R16: 35400 | S16: 0
A17: 新城市 | B17: =VALUE(TRIM(LEFT(新城市・北設楽郡!E26,2))) -> 8 | C17: =新城市・北設楽郡!F26 -> 9750 | D17: =新城市・北設楽郡!G26 -> 0 | E17: =VALUE(TRIM(LEFT(新城市・北設楽郡!I26,2))) -> 0 | F17: =新城市・北設楽郡!J26 -> 0 | G17: =新城市・北設楽郡!K26 -> 0 | H17: =VALUE(TRIM(LEFT(新城市・北設楽郡!M26,2))) -> 0 | I17: =新城市・北設楽郡!N26 -> 0 | J17: =新城市・北設楽郡!O26 -> 0 | K17: =VALUE(TRIM(LEFT(新城市・北設楽郡!Q26,2))) -> 0 | L17: =新城市・北設楽郡!R26 -> 0 | M17: =新城市・北設楽郡!S26 -> 0 | Q17: 8 | R17: 9750 | S17: 0
A18: 北設楽郡 | B18: =VALUE(TRIM(LEFT(新城市・北設楽郡!E48,2))) -> 6 | C18: =新城市・北設楽郡!F48 -> 2450 | D18: =新城市・北設楽郡!G48 -> 0 | E18: =VALUE(TRIM(LEFT(新城市・北設楽郡!I48,2))) -> 0 | F18: =新城市・北設楽郡!J48 -> 0 | G18: =新城市・北設楽郡!K48 -> 0 | H18: =VALUE(TRIM(LEFT(新城市・北設楽郡!M48,2))) -> 0 | I18: =新城市・北設楽郡!N48 -> 0 | J18: =新城市・北設楽郡!O48 -> 0 | K18: =VALUE(TRIM(LEFT(新城市・北設楽郡!Q48,2))) -> 1 | L18: =新城市・北設楽郡!R48 -> 200 | M18: =新城市・北設楽郡!S48 -> 0 | Q18: 7 | R18: 2650 | S18: 0
A19: 豊橋市 | B19: =VALUE(TRIM(LEFT(豊橋市!E48,2))) -> 28 | C19: =豊橋市!F48 -> 56700 | D19: =豊橋市!G48 -> 0 | E19: =VALUE(TRIM(LEFT(豊橋市!I48,2))) -> 8 | F19: =豊橋市!J48 -> 6150 | G19: =豊橋市!K48 -> 0 | H19: =VALUE(TRIM(LEFT(豊橋市!M48,2))) -> 0 | I19: =豊橋市!N48 -> 0 | J19: =豊橋市!O48 -> 0 | K19: =VALUE(TRIM(LEFT(豊橋市!Q48,2))) -> 1 | L19: =豊橋市!R48 -> 2150 | M19: =豊橋市!S48 -> 0 | Q19: 37 | R19: 65000 | S19: 0
A20: 田原市 | B20: =VALUE(TRIM(LEFT(田原市!E48,2))) -> 4 | C20: =田原市!F48 -> 10650 | D20: =田原市!G48 -> 0 | E20: =VALUE(TRIM(LEFT(田原市!I48,2))) -> 0 | F20: =田原市!J48 -> 0 | G20: =田原市!K48 -> 0 | H20: =VALUE(TRIM(LEFT(田原市!M48,2))) -> 0 | I20: =田原市!N48 -> 0 | J20: =田原市!O48 -> 0 | K20: =VALUE(TRIM(LEFT(田原市!Q48,2))) -> 1 | L20: =田原市!R48 -> 450 | M20: =田原市!S48 -> 0 | Q20: 5 | R20: 11100 | S20: 0
A21: 合計 | B21: =SUM(B5:B20) -> 178 | C21: 356550 | D21: 0 | E21: 39 | F21: 30100 | G21: 0 | H21: 3 | I21: 2050 | J21: 0 | K21: 48 | L21: 20600 | M21: 0 | Q21: =SUM(Q5:Q20) -> 268 | R21: =SUM(R5:R20) -> 409300 | S21: =SUM(S5:S20) -> 0
A23: 愛知県合計 | B23: 中日新聞 | E23: 朝日新聞 | H23: 毎日新聞 | K23: 読売新聞 | Q23: 合 計 | T23: 備 考
A24: 名古屋市 | B24: =名古屋市!B24 -> 186 | C24: =名古屋市!C24 -> 345450 | D24: =名古屋市!D24 -> 0 | E24: =名古屋市!E24 -> 63 | F24: =名古屋市!F24 -> 38450 | G24: =名古屋市!G24 -> 0 | H24: =名古屋市!H24 -> 12 | I24: =名古屋市!I24 -> 4300 | J24: =名古屋市!J24 -> 0 | K24: =名古屋市!K24 -> 64 | L24: =名古屋市!L24 -> 30800 | M24: =名古屋市!M24 -> 0 | N24: =名古屋市!N24 -> 0 | O24: =名古屋市!O24 -> 0 | P24: =名古屋市!P24 -> 0 | Q24: =名古屋市!Q24 -> 325 | R24: =名古屋市!R24 -> 419000 | S24: =W24 -> 0 | W24: =IFERROR(名古屋市!S24," ") -> 0
A25: 尾張地区 | B25: =尾張地区!B37 -> 231 | C25: =尾張地区!C37 -> 451300 | D25: =尾張地区!D37 -> 0 | E25: =尾張地区!E37 -> 69 | F25: =尾張地区!F37 -> 44500 | G25: =尾張地区!G37 -> 0 | H25: =尾張地区!H37 -> 10 | I25: =尾張地区!I37 -> 3950 | J25: =尾張地区!J37 -> 0 | K25: =尾張地区!K37 -> 54 | L25: =尾張地区!L37 -> 25050 | M25: =尾張地区!M37 -> 0 | N25: =尾張地区!N37 -> 0 | O25: =尾張地区!O37 -> 0 | P25: =尾張地区!P37 -> 0 | Q25: =尾張地区!Q37 -> 364 | R25: =尾張地区!R37 -> 524800 | S25: =W25 -> 0 | W25: =IFERROR(尾張地区!S37," ") -> 0
A26: 三河地区 | B26: =B21 -> 178 | C26: =C21 -> 356550 | D26: 0 | E26: 39 | F26: 30100 | G26: 0 | H26: 3 | I26: 2050 | J26: 0 | K26: 48 | L26: 20600 | M26: 0 | N26: =N21 -> 0 | O26: =O21 -> 0 | P26: =P21 -> 0 | Q26: 268 | R26: 409300 | S26: =S21 -> 0
A27: 合計 | B27: =SUM(B24:B26) -> 595 | C27: =SUM(C24:C26) -> 1153300 | D27: =SUM(D24:D26) -> 0 | E27: 171 | F27: 113050 | G27: 0 | H27: 25 | I27: 10300 | J27: 0 | K27: =SUM(K24:K26) -> 166 | L27: 76450 | M27: 0 | N27: 0 | O27: 0 | P27: 0 | Q27: 957 | R27: 1353100 | S27: 0
U28: ㈱中日総合サービス

Sheet 地図（三河地区）

Sheet 刈谷市・高浜市・碧南市
A1: 折込日 | F1: 広告主 | Q1: サイズ | V1: 取次店
F2: チラシ銘柄 | Q2: 部数 | R2: =A6+A22+A33 -> 0
A4: 地区 | D4: 中日新聞 | G4: 枚数 | H4: 朝日新聞 | K4: 枚数 | L4: 毎日新聞 | O4: 枚数 | P4: 読売新聞 | S4: 枚数 | X4: 備考
A5: 刈谷市 | C5: 0 | D5: 230615101010 | E5: 刈谷南部N | F5: 3400 | H5: 230615202020 | I5: 刈谷 | J5: 600 | L5: 230615303010 | M5: 刈谷 | N5: 550 | P5: 230615405001 | Q5: 刈谷南部 | R5: 450 | X5: 刈谷市全域の場合
A6: =SUM(G18,K18,O18,S18,W18) -> 0 | B6: =SUM(F18,J18,N18,R18,V18) -> 23400 | C6: 0 | D6: 230615101020 | E6: 刈谷北部NS | F6: 3400 | H6: 230615202030 | I6: 東刈谷 | J6: 850 | L6: 230615303020 | M6: 刈谷北部 | N6: 200 | P6: 230615405002 | Q6: 愛教大前 | R6: 250 | X6: 安城市半城土・高棚1,050枚
C7: 0 | D7: 230615101030 | E7: 刈谷恩田NM | F7: 1250 | H7: 230615202040 | I7: みよし刈谷 | J7: 250 | P7: 230615405003 | Q7: 刈谷 | R7: 400 | X7: 知立市知立（前島）200枚
C8: 0 | D8: 230615101040 | E8: 小垣江NM | F8: 2350 | P8: 230615405004 | Q8: 東刈谷 | R8: 700 | X8: をプラス
C9: 0 | D9: 230615101060 | E9: 東刈谷NMS | F9: 3550 | X9: 0
C10: 0 | D10: 230615101070 | E10: 富士松NMS | F10: 3750 | X10: 0
C11: 0 | D11: 230615101080 | E11: 刈谷愛教大前NMS | F11: 1450 | X11: 0
C12: 0 | X12: 0
X13: 0
X14: 0
X15: 0
X16: 0
X17: 0
E18: =CONCATENATE(FIXED(COUNTA(E5:E17),0,0)," 店") -> 7 店 | F18: =SUM(F5:F17) -> 19150 | G18: =SUM(G5:G17) -> 0 | I18: =CONCATENATE(FIXED(COUNTA(I5:I17),0,0)," 店") -> 3 店 | J18: =SUM(J5:J17) -> 1700 | K18: =SUM(K5:K17) -> 0 | M18: =CONCATENATE(FIXED(COUNTA(M5:M17),0,0)," 店") -> 2 店 | N18: =SUM(N5:N17) -> 750 | O18: =SUM(O5:O17) -> 0 | Q18: =CONCATENATE(FIXED(COUNTA(Q5:Q17),0,0)," 店") -> 4 店 | R18: =SUM(R5:R17) -> 1800 | S18: =SUM(S5:S17) -> 0 | U18: =CONCATENATE(FIXED(COUNTA(U5:U17),0,0)," 店") -> 0 店 | V18: =SUM(V5:V17) -> 0 | W18: =SUM(W5:W17) -> 0 | X18: =SUM(X5:X17) -> 0
A20: 地区 | D20: 中日新聞 | G20: 枚数 | H20: 朝日新聞 | K20: 枚数 | L20: 毎日新聞 | O20: 枚数 | P20: 読売新聞 | S20: 枚数 | X20: 備考
A21: 高浜市 | C21: 0 | D21: 230620101040 | E21: 吉浜NM | F21: 1750 | H21: 230620202010 | I21: 高浜 | J21: 650 | P21: 230620405001 | Q21: 高浜 | R21: 250 | X21: 0
A22: =SUM(G29,K29,O29,S29,W29) -> 0 | B22: =SUM(F29,J29,N29,R29,V29) -> 6850 | C22: 0 | D22: 230620101030 | E22: 吉浜南部NM | F22: 2200 | P22: 230620405002 | Q22: 高棚 | R22: 150 | X22: 0
C23: 0 | D23: 230620101010 | E23: 高浜NMS | F23: 1850 | X23: 0
X24: 0
E29: =CONCATENATE(FIXED(COUNTA(E21:E28),0,0)," 店") -> 3 店 | F29: =SUM(F21:F28) -> 5800 | G29: =SUM(G21:G28) -> 0 | I29: =CONCATENATE(FIXED(COUNTA(I21:I28),0,0)," 店") -> 1 店 | J29: =SUM(J21:J28) -> 650 | K29: =SUM(K21:K28) -> 0 | M29: =CONCATENATE(FIXED(COUNTA(M21:M28),0,0)," 店") -> 0 店 | N29: =SUM(N21:N28) -> 0 | O29: =SUM(O21:O28) -> 0 | Q29: =CONCATENATE(FIXED(COUNTA(Q21:Q28),0,0)," 店") -> 2 店 | R29: =SUM(R21:R28) -> 400 | S29: =SUM(S21:S28) -> 0 | U29: =CONCATENATE(FIXED(COUNTA(U21:U28),0,0)," 店") -> 0 店 | V29: =SUM(V21:V28) -> 0 | W29: =SUM(W21:W28) -> 0 | X29: =SUM(X21:X28) -> 0
A31: 地区 | D31: 中日新聞 | G31: 枚数 | H31: 朝日新聞 | K31: 枚数 | L31: 毎日新聞 | O31: 枚数 | P31: 読売新聞 | S31: 枚数 | X31: 備考
A32: 碧南市 | C32: 0 | D32: 230625101090 | E32: 碧南西端NAM | F32: 1150 | P32: 230625405001 | Q32: 碧南中央 | R32: 250 | X32: 0
A33: =SUM(G48,K48,O48,S48,W48) -> 0 | B33: =SUM(F48,J48,N48,R48,V48) -> 11750 | C33: 0 | D33: 230625101080 | E33: 碧南新川NAMS | F33: 2400 | P33: 230625405002 | Q33: 碧南北部 | R33: 300 | X33: 0
C34: 0 | D34: 230625101060 | E34: 鷲塚NAM | F34: 1900 | X34: 0
C35: 0 | D35: 230625101010 | E35: 棚尾NAMS | F35: 1850 | X35: 0
C36: 0 | D36: 230625101030 | E36: 大浜NAMS | F36: 2400 | X36: 0
C37: 0 | D37: 230625101020 | E37: 大浜南NAMS | F37: 1500 | X37: 0
X38: 0
X39: 0
E48: =CONCATENATE(FIXED(COUNTA(E32:E47),0,0)," 店") -> 6 店 | F48: =SUM(F32:F47) -> 11200 | G48: =SUM(G32:G47) -> 0 | I48: =CONCATENATE(FIXED(COUNTA(I32:I47),0,0)," 店") -> 0 店 | J48: =SUM(J32:J47) -> 0 | K48: =SUM(K32:K47) -> 0 | M48: =CONCATENATE(FIXED(COUNTA(M32:M47),0,0)," 店") -> 0 店 | N48: =IFERROR(VLOOKUP(L48,[1]全紙!$D$1:$K$65536,8,0),"") ->  | O48: =SUM(O32:O47) -> 0 | Q48: =CONCATENATE(FIXED(COUNTA(Q32:Q47),0,0)," 店") -> 2 店 | R48: =SUM(R32:R47) -> 550 | S48: =SUM(S32:S47) -> 0 | U48: =CONCATENATE(FIXED(COUNTA(U32:U47),0,0)," 店") -> 0 店 | V48: =SUM(V32:V47) -> 0 | W48: =SUM(W32:W47) -> 0 | X48: =SUM(X32:X47) -> 0
A49: 2025年後期（8月1日以降） | X49: ㈱中日総合サービス

Sheet 安城市・知立市
A1: 折込日 | F1: 広告主 | Q1: サイズ | V1: 取次店
F2: チラシ銘柄 | Q2: 部数 | R2: =A6+A30 -> 0
A4: 地区 | D4: 中日新聞 | G4: 枚数 | H4: 朝日新聞 | K4: 枚数 | L4: 毎日新聞 | O4: 枚数 | P4: 読売新聞 | S4: 枚数 | X4: 備考
A5: 安城市 | C5: 0 | D5: 230635101010 | E5: 安城(伊藤)NM | F5: 1850 | H5: 230635202010 | I5: 安城 | J5: 1150 | P5: 230635405001 | Q5: 安城 | R5: 550 | X5: 0
A6: =SUM(G26,K26,O26,S26,W26) -> 0 | B6: =SUM(F26,J26,N26,R26,V26) -> 31150 | C6: 0 | D6: 230635101070 | E6: 南安城NM | F6: 1050 | H6: 230635202020 | I6: 安城南部 | J6: 350 | P6: 230635405002 | Q6: 東安城 | R6: 500 | X6: 0
C7: 0 | D7: 230635101150 | E7: 安祥公園前NM | F7: 1600 | H7: 230635202030 | I7: 安城西部 | J7: 800 | X7: 0
C8: 0 | D8: 230635101030 | E8: 三河安城NM | F8: 1500 | H8: 230635202040 | I8: 安城北部 | J8: 250 | X8: 0
C9: 0 | D9: 230635101040 | E9: 安城西部NMS | F9: 1600 | H9: 230635202050 | I9: 桜井 | J9: 300 | X9: 0
C10: 0 | D10: 230635101050 | E10: 安城南部NM | F10: 1500 | X10: 0
C11: 0 | D11: 230635101080 | E11: 今村NMS | F11: 4050 | X11: 0
C12: 0 | D12: 230635101090 | E12: 安城今池町NMS | F12: 1850 | X12: 0
C13: 0 | D13: 230635101100 | E13: 石橋団地NMS | F13: 1450 | X13: 0
C14: 0 | D14: 230635101120 | E14: 安城桜井NM | F14: 2350 | X14: 0
C15: 0 | D15: 230635101020 | E15: 安城北部NM | F15: 2200 | X15: 0
C16: 0 | D16: 230635101110 | E16: 二本木NMS | F16: 1300 | X16: 0
C17: 0 | D17: 230635101140 | E17: 安城明祥NM | F17: 1250 | X17: 0
C18: *1 | D18: 230635101160 | E18: 半城土・高棚NM | F18: 1850 | X18: *1刈谷市1,050枚含む
D19: 230635101170 | E19: 南桜井NM | F19: 1850 | X19: 0
E26: =CONCATENATE(FIXED(COUNTA(E5:E25),0,0)," 店") -> 15 店 | F26: =SUM(F5:F25) -> 27250 | G26: =SUM(G5:G25) -> 0 | I26: =CONCATENATE(FIXED(COUNTA(I5:I25),0,0)," 店") -> 5 店 | J26: =SUM(J5:J25) -> 2850 | K26: =SUM(K5:K25) -> 0 | M26: =CONCATENATE(FIXED(COUNTA(M5:M25),0,0)," 店") -> 0 店 | N26: =SUM(N5:N25) -> 0 | O26: =SUM(O5:O25) -> 0 | Q26: =CONCATENATE(FIXED(COUNTA(Q5:Q25),0,0)," 店") -> 2 店 | R26: =SUM(R5:R25) -> 1050 | S26: =SUM(S5:S25) -> 0 | U26: =CONCATENATE(FIXED(COUNTA(U5:U25),0,0)," 店") -> 0 店 | V26: =SUM(V5:V25) -> 0 | W26: =SUM(W5:W25) -> 0 | X26: =SUM(X5:X25) -> 0
A28: 地区 | D28: 中日新聞 | G28: 枚数 | H28: 朝日新聞 | K28: 枚数 | L28: 毎日新聞 | O28: 枚数 | P28: 読売新聞 | S28: 枚数 | X28: 備考
A29: 知立市 | C29: *1 | D29: 230610101010 | E29: 知立(前嶋)NMS | F29: 3850 | H29: 230610202010 | I29: 知立刈谷 | J29: 2100 | P29: 230610405001 | Q29: 知立 | R29: 550 | X29: *1豊田市650枚
A30: =SUM(G48,K48,O48,S48,W48) -> 0 | B30: =SUM(F48,J48,N48,R48,V48) -> 12600 | C30: 0 | D30: 230610101020 | E30: 知立西部NMS | F30: 1600 | P30: 230610405002 | Q30: 知立北 | R30: 100 | X30: 刈谷市200枚含む
C31: 0 | D31: 230610101030 | E31: 知立南部NMS | F31: 1550 | X31: 0
C32: 0 | D32: 230610101060 | E32: 知立東部NMS | F32: 1150 | X32: 0
C33: 0 | D33: 230610101040 | E33: 知立南陽NMS | F33: 800 | X33: 0
C34: 0 | D34: 230610101050 | E34: 知立谷田NMS | F34: 900 | X34: 0
E48: =CONCATENATE(FIXED(COUNTA(E29:E47),0,0)," 店") -> 6 店 | F48: =SUM(F29:F47) -> 9850 | G48: =SUM(G29:G47) -> 0 | I48: =CONCATENATE(FIXED(COUNTA(I29:I47),0,0)," 店") -> 1 店 | J48: =SUM(J29:J47) -> 2100 | K48: =SUM(K29:K47) -> 0 | M48: =CONCATENATE(FIXED(COUNTA(M29:M47),0,0)," 店") -> 0 店 | N48: =SUM(N29:N47) -> 0 | O48: =SUM(O29:O47) -> 0 | Q48: =CONCATENATE(FIXED(COUNTA(Q29:Q47),0,0)," 店") -> 2 店 | R48: =SUM(R29:R47) -> 650 | S48: =SUM(S29:S47) -> 0 | U48: =CONCATENATE(FIXED(COUNTA(U29:U47),0,0)," 店") -> 0 店 | V48: =SUM(V29:V47) -> 0 | W48: =SUM(W29:W47) -> 0 | X48: =SUM(X29:X47) -> 0
A49: 2025年後期（8月1日以降） | X49: ㈱中日総合サービス

Sheet 豊田市
A1: 折込日 | F1: 広告主 | Q1: サイズ | V1: 取次店
F2: チラシ銘柄 | Q2: 部数 | R2: =A6 -> 0
A4: 地区 | D4: 中日新聞 | G4: 枚数 | H4: 朝日新聞 | K4: 枚数 | L4: 毎日新聞 | O4: 枚数 | P4: 読売新聞 | S4: 枚数 | X4: 備考
A5: 豊田市 | C5: 0 | D5: 230605101010 | E5: 挙母中央NM | F5: 2200 | H5: 230605202020 | I5: 豊田中央 | J5: 2150 | P5: 230605405001 | Q5: 永覚 | R5: 400 | X5: 豊田市全域の場合
A6: =SUM(G48,K48,O48,S48,W48) -> 0 | B6: =SUM(F48,J48,N48,R48,V48) -> 72800 | C6: 0 | D6: 230605101030 | E6: 豊田駅西NMS | F6: 1900 | H6: 230605202040 | I6: 豊田東 | J6: 1650 | P6: 230605405002 | Q6: 豊田東部 | R6: 650 | X6: 知立市知立(前島)
C7: 0 | D7: 230605101270 | E7: 豊田元町NMS | F7: 1000 | H7: 230605202050 | I7: 豊田南 | J7: 750 | P7: 230605405003 | Q7: 豊田北 | R7: 350 | X7: 650枚
C8: 0 | D8: 230605101230 | E8: 上挙母NMS | F8: 1350 | H8: 230605202130 | I8: 豊田北 | J8: 350 | P8: 230605405004 | Q8: 豊田挙母 | R8: 600 | X8: 岡崎市岩津100枚
C9: 0 | D9: 230605101050 | E9: 挙母栄町NMS | F9: 2400 | P9: 230605405005 | Q9: 豊田西 | R9: 600 | X9: をプラス
C10: 0 | D10: 230605101200 | E10: 挙母小清水NM | F10: 1800 | P10: 230605405006 | Q10: 上郷 | R10: 200 | X10: 0
C11: 0 | D11: 230605101220 | E11: 豊田美山NM | F11: 1500 | P11: 230605405007 | Q11: 豊田南 | R11: 300 | X11: 0
C12: 0 | D12: 230605101070 | E12: 土橋NMS | F12: 2350 | P12: 230605405008 | Q12: 高岡 | R12: 200 | X12: 0
C13: 0 | D13: 230605101240 | E13: 豊田スタジアムNM | F13: 1350 | P13: 230605405009 | Q13: 土橋 | R13: 850 | X13: 0
C14: 0 | D14: 230605101020 | E14: 挙母東部NM | F14: 3900 | P14: 230605405010 | Q14: 土橋山之手 | R14: 200 | X14: 0
C15: 0 | D15: 230605101440 | E15: 豊田市木NM | F15: 1700 | P15: 230605405011 | Q15: 豊田 | R15: 400 | X15: 0
C16: 0 | D16: 230605101450 | E16: 豊田東山NM | F16: 1450 | P16: 230605405012 | Q16: 豊田前山 | R16: 300 | X16: 0
C17: 0 | D17: 230605101060 | E17: 豊田（柘植）NMS | F17: 4800 | P17: 230605405013 | Q17: 豊田梅坪 | R17: 600 | X17: 0
C18: 0 | D18: 230605101250 | E18: 豊田大林NM | F18: 1550 | P18: 230605405014 | Q18: 足助 | R18: 450 | X18: 0
C19: 0 | D19: 230605101120 | E19: 上郷NMS | F19: 1350 | X19: 0
C20: 0 | D20: 230605101130 | E20: 上郷北部NM | F20: 1500
C21: 0 | D21: 230605101140 | E21: 上郷畝部NMS | F21: 1400 | X21: 0
C22: 0 | D22: 230605101110 | E22: 三河高岡NAMS | F22: 3050 | X22: 0
C23: 0 | D23: 230605101101 | E23: 若林西NMS | F23: 1750 | X23: 0
C24: 0 | D24: 230605101090 | E24: 竹村NM | F24: 1500 | X24: 0
C25: 0 | D25: 230605101100 | E25: 若林NMS | F25: 2800 | X25: 0
C26: 0 | D26: 230605101300 | E26: 平戸橋NMS | F26: 1600 | X26: 0
C27: 0 | D27: 230605101150 | E27: 浄水四郷NMS | F27: 4850 | X27: 0
C28: 0 | D28: 230605101160 | E28: 豊田乙部ヶ丘NM | F28: 1050 | X28: 0
C29: 0 | D29: 230605101210 | E29: 保見NMS | F29: 1400 | X29: 0
C30: 0 | D30: 230605101170 | E30: 西中金NAMS | F30: 1600 | X30: 0
C31: 0 | D31: 230605101360 | E31: 藤岡NAMS | F31: 1600 | X31: 0
C32: 0 | D32: 230605101370 | E32: 藤岡北NAMS | F32: 1450 | X32: 0
C33: 0 | D33: 230605101380 | E33: 小原NAM | F33: 750 | X33: 0
C34: 0 | D34: 230605101180 | E34: 九久平NAMS | F34: 1900 | X34: 0
C35: 0 | D35: 230605101330 | E35: 足助NAMS | F35: 950 | X35: 0
C36: 0 | D36: 230605101390 | E36: 旭NAM | F36: 400 | X36: 0
C37: 0 | D37: 230605101400 | E37: 小原別口AM | F37: 200 | X37: 0
C38: 0 | D38: 230661101010 | E38: 稲武NAMS | F38: 550 | X38: 0
C39: 0 | D39: 230605101340 | E39: 豊田下山NAM | F39: 900 | X39: 0
X43: 0
X44: 0
E48: =CONCATENATE(FIXED(COUNTA(E5:E47),0,0)," 店") -> 35 店 | F48: =SUM(F5:F47) -> 61800 | G48: =SUM(G5:G47) -> 0 | I48: =CONCATENATE(FIXED(COUNTA(I5:I47),0,0)," 店") -> 4 店 | J48: =SUM(J5:J47) -> 4900 | K48: =SUM(K5:K47) -> 0 | M48: =CONCATENATE(FIXED(COUNTA(M5:M47),0,0)," 店") -> 0 店 | N48: =SUM(N5:N47) -> 0 | O48: =SUM(O5:O47) -> 0 | Q48: =CONCATENATE(FIXED(COUNTA(Q5:Q47),0,0)," 店") -> 14 店 | R48: =SUM(R5:R47) -> 6100 | S48: =SUM(S5:S47) -> 0 | U48: =CONCATENATE(FIXED(COUNTA(U5:U47),0,0)," 店") -> 0 店 | V48: =SUM(V5:V47) -> 0 | W48: =SUM(W5:W47) -> 0 | X48: =SUM(X5:X47) -> 0
A49: 2025年後期（8月1日以降） | X49: ㈱中日総合サービス

Sheet みよし市・岡崎市
A1: 折込日 | F1: 広告主 | Q1: サイズ | V1: 取次店
F2: チラシ銘柄 | Q2: 部数 | R2: =A6+A16 -> 0
A4: 地区 | D4: 中日新聞 | G4: 枚数 | H4: 朝日新聞 | K4: 枚数 | L4: 毎日新聞 | O4: 枚数 | P4: 読売新聞 | S4: 枚数 | X4: 備考
A5: みよし市 | C5: 0 | D5: 230655101010 | E5: 三好NMS | F5: 3650 | H5: 230655202020 | I5: みよし東郷 | J5: 1350 | P5: 230655405001 | Q5: 三好 | R5: 500 | X5: 0
A6: =SUM(G12,K12,O12,S12,W12) -> 0 | B6: =SUM(F12,J12,N12,R12,V12) -> 10650 | C6: 0 | D6: 230655101030 | E6: 三好莇生NMS | F6: 1300
C7: 0 | D7: 230655101020 | E7: 三好ヶ丘NMS | F7: 3850
E12: =CONCATENATE(FIXED(COUNTA(E5:E11),0,0)," 店") -> 3 店 | F12: =SUM(F5:F11) -> 8800 | G12: =SUM(G5:G11) -> 0 | I12: =CONCATENATE(FIXED(COUNTA(I5:I11),0,0)," 店") -> 1 店 | J12: =SUM(J5:J11) -> 1350 | K12: =SUM(K5:K11) -> 0 | M12: =CONCATENATE(FIXED(COUNTA(M5:M11),0,0)," 店") -> 0 店 | N12: =SUM(N5:N11) -> 0 | O12: =SUM(O5:O11) -> 0 | Q12: =CONCATENATE(FIXED(COUNTA(Q5:Q11),0,0)," 店") -> 1 店 | R12: =SUM(R5:R11) -> 500 | S12: =SUM(S5:S11) -> 0 | U12: =CONCATENATE(FIXED(COUNTA(U5:U11),0,0)," 店") -> 0 店 | V12: =SUM(V5:V11) -> 0 | W12: =SUM(W5:W11) -> 0 | X12: =SUM(X5:X11) -> 0
A14: 地区 | D14: 中日新聞 | G14: 枚数 | H14: 朝日新聞 | K14: 枚数 | L14: 毎日新聞 | O14: 枚数 | P14: 読売新聞 | S14: 枚数 | X14: 備考
A15: 岡崎市 | C15: 0 | D15: 230630101050 | E15: 岡崎（石垣）NMS | F15: 2750 | H15: 230630202030 | I15: 岡崎中央 | J15: 1750 | L15: 230630303020 | M15: 羽根 | N15: 1300 | P15: 230630405001 | Q15: 岡崎西部 | R15: 300 | X15: 岡崎市全域の場合
A16: =SUM(G48,K48,O48,S48,W48) -> 0 | B16: =SUM(F48,J48,N48,R48,V48) -> 64900 | C16: 0 | D16: 230630101310 | E16: 岡崎東部NMS | F16: 2050 | H16: 230630202040 | I16: 竜美 | J16: 350 | P16: 230630405002 | Q16: 岡崎北部 | R16: 400 | X16: 西尾市三江島1,350枚
C17: 0 | D17: 230630101070 | E17: 岡崎南部NS | F17: 2850 | H17: 230630202060 | I17: 岡崎南 | J17: 1400 | P17: 230630405004 | Q17: 岡崎南 | R17: 1050 | X17: をプラス
C18: 0 | D18: 230630101060 | E18: 岡崎西部NMS | F18: 2950 | H18: 230630202070 | I18: 岡崎福岡 | J18: 300 | P18: 230630405006 | Q18: 岡崎東部 | R18: 550 | X18: 0
C19: 0 | D19: 230630101080 | E19: 岡崎竜美ヶ丘NS | F19: 1850 | H19: 230630202090 | I19: 岡崎西部 | J19: 450 | P19: 230630405007 | Q19: 新岡崎 | R19: 600 | X19: 0
C20: 0 | D20: 230630101040 | E20: 岡崎北部NMS | F20: 2750 | H20: 230630202100 | I20: 岡崎北部 | J20: 350 | X20: 0
C21: 0 | D21: 230630101170 | E21: 矢作NMS | F21: 8350 | X21: 0
C22: 0 | D22: 230630101090 | E22: 岡崎戸崎NS | F22: 1600 | X22: 0
C23: 0 | D23: 230630101290 | E23: 光ヶ丘NS | F23: 1300 | X23: 0
C24: 0 | D24: 230630101150 | E24: 岡崎上和田NM | F24: 700 | X24: 0
C25: 0 | D25: 230630101160 | E25: 六ッ美NMS | F25: 1400 | X25: 0
C26: 0 | D26: 230630101250 | E26: 六ッ美北NMS | F26: 900 | X26: 0
C27: 0 | D27: 230630101100 | E27: 羽根NS | F27: 1500 | X27: 0
C28: 0 | D28: 230630101110 | E28: 岡崎針崎NMS | F28: 1350 | X28: 0
C29: 0 | D29: 230630101140 | E29: 岡崎上地台NMS | F29: 1500 | X29: 0
C30: 0 | D30: 230630101020 | E30: 岡崎大門NMS | F30: 2100 | X30: 0
C31: 0 | D31: 230630101030 | E31: 岡崎常磐NMS | F31: 1400 | X31: 0
C32: 0 | D32: 230630101260 | E32: 岡崎真伝NMS | F32: 1350 | X32: 0
C33: 0 | D33: 230630101180 | E33: 岡崎大平NM | F33: 1350 | X33: 0
C34: *1 | D34: 230630101130 | E34: 土呂NMS | F34: 3450 | X34: *1幸田町850枚含む
C35: 0 | D35: 230630101240 | E35: 岡崎青野NMS | F35: 1000
C36: *2 | D36: 230630101010 | E36: 岩津NMS | F36: 3250 | X36: *2豊田市桂野町・加茂川町
C37: 0 | D37: 230630101190 | E37: 美合南部NAMYS | F37: 2100 | X37: 100枚含む
C38: 0 | D38: 230630101200 | E38: 美合北部NAMYS | F38: 1250
C39: 0 | D39: 230630101220 | E39: 本宿NAMYS | F39: 3000 | X39: 0
C40: 0 | D40: 230630101210 | E40: 河合NAM | F40: 900 | X40: 0
C41: 0 | D41: 230630101270 | E41: 豊富NAMS | F41: 850 | X41: 0
C42: 0 | D42: 230630101280 | E42: 宮崎NAM | F42: 300 | X42: 0
E48: =CONCATENATE(FIXED(COUNTA(E15:E47),0,0)," 店") -> 28 店 | F48: =SUM(F15:F47) -> 56100 | G48: =SUM(G15:G47) -> 0 | I48: =CONCATENATE(FIXED(COUNTA(I15:I47),0,0)," 店") -> 6 店 | J48: =SUM(J15:J47) -> 4600 | K48: =SUM(K15:K47) -> 0 | M48: =CONCATENATE(FIXED(COUNTA(M15:M47),0,0)," 店") -> 1 店 | N48: =SUM(N15:N47) -> 1300 | O48: =SUM(O15:O47) -> 0 | Q48: =CONCATENATE(FIXED(COUNTA(Q15:Q47),0,0)," 店") -> 5 店 | R48: =SUM(R15:R47) -> 2900 | S48: =SUM(S15:S47) -> 0 | U48: =CONCATENATE(FIXED(COUNTA(U15:U47),0,0)," 店") -> 0 店 | V48: =SUM(V15:V47) -> 0 | W48: =SUM(W15:W47) -> 0 | X48: =SUM(X15:X47) -> 0
A49: 2025年後期（8月1日以降） | X49: ㈱中日総合サービス

Sheet 額田郡・西尾市・蒲郡市
A1: 折込日 | F1: 広告主 | Q1: サイズ | V1: 取次店
F2: チラシ銘柄 | Q2: 部数 | R2: =A6+A18+A37 -> 0
A4: 地区 | D4: 中日新聞 | G4: 枚数 | H4: 朝日新聞 | K4: 枚数 | L4: 毎日新聞 | O4: 枚数 | P4: 読売新聞 | S4: 枚数 | X4: 備考
A5: 額田郡 | C5: 0 | D5: 230650101030 | E5: 幸田NAMS | F5: 5450 | P5: 230650405001 | Q5: 幸田 | R5: 300 | X5: 幸田町全域の場合
A6: =SUM(G14,K14,O14,S14,W14) -> 0 | B6: =SUM(F14,J14,N14,R14,V14) -> 5750 | X6: 岡崎市土呂850枚
X7: 西尾市三江島50枚
X8: 蒲郡市蒲郡西50枚
X9: をプラス
X10: 0
X11: 0
X12: 0
X13: 0
E14: =CONCATENATE(FIXED(COUNTA(E5:E13),0,0)," 店") -> 1 店 | F14: =SUM(F5:F13) -> 5450 | G14: =SUM(G5:G13) -> 0 | I14: =CONCATENATE(FIXED(COUNTA(I5:I13),0,0)," 店") -> 0 店 | J14: =SUM(J5:J13) -> 0 | K14: =SUM(K5:K13) -> 0 | M14: =CONCATENATE(FIXED(COUNTA(M5:M13),0,0)," 店") -> 0 店 | N14: =SUM(N5:N13) -> 0 | O14: =SUM(O5:O13) -> 0 | Q14: =CONCATENATE(FIXED(COUNTA(Q5:Q13),0,0)," 店") -> 1 店 | R14: =SUM(R5:R13) -> 300 | S14: =SUM(S5:S13) -> 0 | U14: =CONCATENATE(FIXED(COUNTA(U5:U13),0,0)," 店") -> 0 店 | V14: =SUM(V5:V13) -> 0 | W14: =SUM(W5:W13) -> 0 | X14: =SUM(X5:X13) -> 0
A16: 地区 | D16: 中日新聞 | G16: 枚数 | H16: 朝日新聞 | K16: 枚数 | L16: 毎日新聞 | O16: 枚数 | P16: 読売新聞 | S16: 枚数 | X16: 備考
A17: 西尾市 | C17: 0 | D17: 230640101010 | E17: 西尾NMS | F17: 9600 | H17: 230640202010 | I17: 西尾 | J17: 1450 | P17: 230640405001 | Q17: 西尾 | R17: 750 | X17: 西尾市全域の場合
A18: =SUM(G33,K33,O33,S33,W33) -> 0 | B18: =SUM(F33,J33,N33,R33,V33) -> 30450 | C18: 0 | D18: 230640101020 | E18: 平坂NMS | F18: 3750 | H18: 230640202020 | I18: 平坂 | J18: 350 | P18: 230640405002 | Q18: 西尾西部 | R18: 250 | X18: 蒲郡市蒲郡西1,000枚
C19: *1 | D19: 230640101030 | E19: 三江島NMS | F19: 3000 | H19: 230640202040 | I19: 上横須賀 | J19: 150 | P19: 230640405003 | Q19: 三河一色 | R19: 150 | X19: をプラス
C20: 0 | D20: 230640101040 | E20: 米津NMS | F20: 950 | P20: 230640405004 | Q20: 西尾東部 | R20: 750 | X20: 0
C21: 0 | D21: 230640101050 | E21: 三河一色NAMS | F21: 3900 | P21: 230640405005 | Q21: 幡豆 | R21: 200 | X21: *1岡崎市1,350枚含む
C22: 0 | D22: 230640101060 | E22: 吉良吉田NAM | F22: 1150 | X22: 幸田町50枚含む
C23: 0 | D23: 230640101070 | E23: 吉良白浜NAM | F23: 1050 | X23: 0
C24: 0 | D24: 230640101080 | E24: 上横須賀NM | F24: 1700 | X24: 0
C25: 0 | D25: 230640101090 | E25: 西幡豆NAMS | F25: 1300 | X25: 0
X26: 0
E33: =CONCATENATE(FIXED(COUNTA(E17:E32),0,0)," 店") -> 9 店 | F33: =SUM(F17:F32) -> 26400 | G33: =SUM(G17:G32) -> 0 | I33: =CONCATENATE(FIXED(COUNTA(I17:I32),0,0)," 店") -> 3 店 | J33: =SUM(J17:J32) -> 1950 | K33: =SUM(K17:K32) -> 0 | M33: =CONCATENATE(FIXED(COUNTA(M17:M32),0,0)," 店") -> 0 店 | N33: =SUM(N17:N32) -> 0 | O33: =SUM(O17:O32) -> 0 | Q33: =CONCATENATE(FIXED(COUNTA(Q17:Q32),0,0)," 店") -> 5 店 | R33: =SUM(R17:R32) -> 2100 | S33: =SUM(S17:S32) -> 0 | U33: =CONCATENATE(FIXED(COUNTA(U17:U32),0,0)," 店") -> 0 店 | V33: =SUM(V17:V32) -> 0 | W33: =SUM(W17:W32) -> 0 | X33: =SUM(X17:X32) -> 0
A35: 地区 | D35: 中日新聞 | G35: 枚数 | H35: 朝日新聞 | K35: 枚数 | L35: 毎日新聞 | O35: 枚数 | P35: 読売新聞 | S35: 枚数 | X35: 備考
A36: 蒲郡市 | D36: 230740101010 | E36: 蒲郡NMS | F36: 8000 | H36: 230740202010 | I36: 蒲郡 | J36: 1100 | P36: 230740405001 | Q36: 蒲郡東部 | R36: 150 | X36: 蒲郡市全域の場合
A37: =SUM(G48,K48,O48,S48,W48) -> 0 | B37: =SUM(F48,J48,N48,R48,V48) -> 15100 | C37: *1 | D37: 230740101030 | E37: 蒲郡西NAMS | F37: 5550 | P37: 230740405002 | Q37: 蒲郡中央 | R37: 200 | X37: 豊川市御津（鈴木）
P38: 230740405003 | Q38: 蒲郡西部 | R38: 100 | X38: 50枚
X39: 豊川市御津（小林）
X40: 850枚をプラス
X42: 0
X43: *1西尾市1,000枚
X44: 幸田町50枚含む
X45: 0
X46: 0
X47: 0
E48: =CONCATENATE(FIXED(COUNTA(E36:E47),0,0)," 店") -> 2 店 | F48: =SUM(F36:F47) -> 13550 | G48: =SUM(G36:G47) -> 0 | I48: =CONCATENATE(FIXED(COUNTA(I36:I47),0,0)," 店") -> 1 店 | J48: =SUM(J36:J47) -> 1100 | K48: =SUM(K36:K47) -> 0 | M48: =CONCATENATE(FIXED(COUNTA(M36:M47),0,0)," 店") -> 0 店 | N48: =SUM(N36:N47) -> 0 | O48: =SUM(O36:O47) -> 0 | Q48: =CONCATENATE(FIXED(COUNTA(Q36:Q47),0,0)," 店") -> 3 店 | R48: =SUM(R36:R47) -> 450 | S48: =SUM(S36:S47) -> 0 | U48: =CONCATENATE(FIXED(COUNTA(U36:U47),0,0)," 店") -> 0 店 | V48: =SUM(V36:V47) -> 0 | W48: =SUM(W36:W47) -> 0 | X48: =SUM(X36:X47) -> 0
A49: 2025年後期（8月1日以降） | X49: ㈱中日総合サービス

Sheet 豊川市
A1: 折込日 | F1: 広告主 | Q1: サイズ | V1: 取次店
F2: チラシ銘柄 | Q2: 部数 | R2: =A6 -> 0
A4: 地区 | D4: 中日新聞 | G4: 枚数 | H4: 朝日新聞 | K4: 枚数 | L4: 毎日新聞 | O4: 枚数 | P4: 読売新聞 | S4: 枚数 | X4: 備考
A5: 豊川市 | C5: 0 | D5: 230720101010 | E5: 豊川（西本）NMS | F5: 4900 | H5: 230720202020 | I5: 豊川南 | J5: 150 | P5: 230720405001 | Q5: 豊川東部 | R5: 300 | X5: 0
A6: =SUM(G48,K48,O48,S48,W48) -> 0 | B6: =SUM(F48,J48,N48,R48,V48) -> 35400 | C6: 0 | D6: 230720101020 | E6: 豊川中条NMS | F6: 900 | H6: 230720202030 | I6: 豊川西 | J6: 350 | P6: 230720405002 | Q6: 豊川中央 | R6: 350 | X6: 0
C7: 0 | D7: 230720101030 | E7: 豊川諏訪NMS | F7: 2450 | H7: 230720202040 | I7: 豊川東 | J7: 1350 | P7: 230720405003 | Q7: 豊川西部 | R7: 150 | X7: 0
C8: 0 | D8: 230720101040 | E8: 牛久保(中村)NMS | F8: 850 | H8: 230720202050 | I8: 三河国府 | J8: 600 | P8: 230720405004 | Q8: 小坂井 | R8: 200 | X8: 0
C9: 0 | D9: 230720101050 | E9: 牛久保(大万)NM | F9: 1100 | H9: 230720202060 | I9: 御油 | J9: 100 | X9: 0
C10: 0 | D10: 230720101060 | E10: 牛久保(中部大万)NMS | F10: 1700 | H10: 230720202080 | I10: 小坂井 | J10: 200 | X10: 0
C11: 0 | D11: 230720101070 | E11: 豊川蔵子NMS | F11: 1350 | X11: 0
C12: 0 | D12: 230720101080 | E12: 豊川国府NMS | F12: 3050 | X12: 0
C13: 0 | D13: 230720101090 | E13: 豊川八南NM | F13: 1750 | X13: 0
C14: 0 | D14: 230720101100 | E14: 御油NMS | F14: 1400 | X14: 0
C15: *1 | D15: 230720101140 | E15: 三河一宮NAMS | F15: 3350 | X15: *1豊橋市500枚含む
C16: *2 | D16: 230720101150 | E16: 御津（鈴木）NMS | F16: 1250 | X16: *2蒲郡市50枚含む
C17: *3 | D17: 230720101160 | E17: 御津（小林）NMS | F17: 1800 | X17: *3蒲郡市850枚含む
C18: 0 | D18: 230720101120 | E18: 豊川音羽NAMS | F18: 1650 | X18: 0
C19: *4 | D19: 230720101170 | E19: 西小坂井NMS | F19: 1700 | X19: *4豊橋市650枚含む
C20: 0 | D20: 230720101180 | E20: 小坂井駅前NMS | F20: 1350 | X20: 0
C21: 0 | D21: 230720101190 | E21: 豊川美園NM | F21: 1100 | X21: 0
X22: 0
E48: =CONCATENATE(FIXED(COUNTA(E5:E47),0,0)," 店") -> 17 店 | F48: =SUM(F5:F47) -> 31650 | G48: =SUM(G5:G47) -> 0 | I48: =CONCATENATE(FIXED(COUNTA(I5:I47),0,0)," 店") -> 6 店 | J48: =SUM(J5:J47) -> 2750 | K48: =SUM(K5:K47) -> 0 | M48: =CONCATENATE(FIXED(COUNTA(M5:M47),0,0)," 店") -> 0 店 | N48: =SUM(N5:N47) -> 0 | O48: =SUM(O5:O47) -> 0 | Q48: =CONCATENATE(FIXED(COUNTA(Q5:Q47),0,0)," 店") -> 4 店 | R48: =SUM(R5:R47) -> 1000 | S48: =SUM(S5:S47) -> 0 | U48: =CONCATENATE(FIXED(COUNTA(U5:U47),0,0)," 店") -> 0 店 | V48: =SUM(V5:V47) -> 0 | W48: =SUM(W5:W47) -> 0 | X48: =SUM(X5:X47) -> 0
A49: 2025年後期（8月1日以降） | X49: ㈱中日総合サービス

Sheet 新城市・北設楽郡
A1: 折込日 | F1: 広告主 | Q1: サイズ | V1: 取次店
F2: チラシ銘柄 | Q2: 部数 | R2: =A6+A30 -> 0
A4: 地区 | D4: 中日新聞 | G4: 枚数 | H4: 朝日新聞 | K4: 枚数 | L4: 毎日新聞 | O4: 枚数 | P4: 読売新聞 | S4: 枚数 | X4: 備考
A5: 新城市 | C5: 0 | D5: 230730101010 | E5: 新城西NAMYS | F5: 3750 | X5: △折込日が休刊日翌日
A6: =SUM(G26,K26,O26,S26,W26) -> 0 | B6: =SUM(F26,J26,N26,R26,V26) -> 9750 | C6: 0 | D6: 230730101020 | E6: 新城東NAMYS | F6: 2350 | X6: の場合、先送り地区
C7: △ | D7: 230760101010 | E7: 三河大海NAMY | F7: 450
C8: △ | D8: 230760101060 | E8: 新城北NAM | F8: 200
C9: △ | D9: 230760101020 | E9: 作手NAMY | F9: 550
C10: △ | D10: 230760101030 | E10: 長篠NAMYS | F10: 1100 | X10: 0
C11: △ | D11: 230760101040 | E11: 三河大野NAMY | F11: 800 | X11: 0
C12: △ | D12: 230760101050 | E12: 海老NAMYS | F12: 550 | X12: 0
X13: 0
X14: 0
X15: 0
X16: 0
X17: 0
X18: 0
X19: 0
X20: 0
X21: 0
X22: 0
X23: 0
X24: 0
X25: 0
E26: =CONCATENATE(FIXED(COUNTA(E5:E25),0,0)," 店") -> 8 店 | F26: =SUM(F5:F25) -> 9750 | G26: =SUM(G5:G25) -> 0 | I26: =CONCATENATE(FIXED(COUNTA(I5:I25),0,0)," 店") -> 0 店 | J26: =SUM(J5:J25) -> 0 | K26: =SUM(K5:K25) -> 0 | M26: =CONCATENATE(FIXED(COUNTA(M5:M25),0,0)," 店") -> 0 店 | N26: =SUM(N5:N25) -> 0 | O26: =SUM(O5:O25) -> 0 | Q26: =CONCATENATE(FIXED(COUNTA(Q5:Q25),0,0)," 店") -> 0 店 | R26: =SUM(R5:R25) -> 0 | S26: =SUM(S5:S25) -> 0 | U26: =CONCATENATE(FIXED(COUNTA(U5:U25),0,0)," 店") -> 0 店 | V26: =SUM(V5:V25) -> 0 | W26: =SUM(W5:W25) -> 0 | X26: =SUM(X5:X25) -> 0
A28: 地区 | D28: 中日新聞 | G28: 枚数 | H28: 朝日新聞 | K28: 枚数 | L28: 毎日新聞 | O28: 枚数 | P28: 読売新聞 | S28: 枚数 | X28: 備考
A29: △北設楽郡 | C29: △ | D29: 230770101030 | E29: 田口NAM | F29: 750 | P29: 230770405001 | Q29: 設楽 | R29: 200 | X29: △折込日が休刊日翌日
A30: =SUM(G48,K48,O48,S48,W48) -> 0 | B30: =SUM(F48,J48,N48,R48,V48) -> 2650 | C30: △ | D30: 230770101040 | E30: 名倉NAM | F30: 250 | X30: の場合、先送り地区
C31: △ | D31: 230770101050 | E31: 津具NAMS | F31: 350
C32: △ | D32: 230770101020 | E32: 三河本郷NAMYS | F32: 800 | X32: 0
C33: △ | D33: 230770101080 | E33: 大嵐富山A | F33: 50
C34: △ | D34: 230770101090 | E34: 豊根AM | F34: 250
X35: 0
X36: 0
X37: 0
X38: 0
X39: 0
X40: 0
X41: 0
X42: 0
X43: 0
X44: 0
X45: 0
X46: 0
X47: 0
E48: =CONCATENATE(FIXED(COUNTA(E29:E47),0,0)," 店") -> 6 店 | F48: =SUM(F29:F47) -> 2450 | G48: =SUM(G29:G47) -> 0 | I48: =CONCATENATE(FIXED(COUNTA(I29:I47),0,0)," 店") -> 0 店 | J48: =SUM(J29:J47) -> 0 | K48: =SUM(K29:K47) -> 0 | M48: =CONCATENATE(FIXED(COUNTA(M29:M47),0,0)," 店") -> 0 店 | N48: =SUM(N29:N47) -> 0 | O48: =SUM(O29:O47) -> 0 | Q48: =CONCATENATE(FIXED(COUNTA(Q29:Q47),0,0)," 店") -> 1 店 | R48: =SUM(R29:R47) -> 200 | S48: =SUM(S29:S47) -> 0 | U48: =CONCATENATE(FIXED(COUNTA(U29:U47),0,0)," 店") -> 0 店 | V48: =SUM(V29:V47) -> 0 | W48: =SUM(W29:W47) -> 0 | X48: =SUM(X29:X47) -> 0
A49: 2025年後期（8月1日以降） | X49: ㈱中日総合サービス

Sheet 豊橋市
A1: 折込日 | F1: 広告主 | Q1: サイズ | V1: 取次店
F2: チラシ銘柄 | Q2: 部数 | R2: =A6 -> 0
A4: 地区 | D4: 中日新聞 | G4: 枚数 | H4: 朝日新聞 | K4: 枚数 | L4: 毎日新聞 | O4: 枚数 | P4: 読売新聞 | S4: 枚数 | X4: 備考
A5: 豊橋市 | C5: 0 | D5: 230710101010 | E5: 豊橋中央（佐久間）NMS | F5: 7400 | H5: 230710202010 | I5: 豊橋中央 | J5: 1550 | P5: 230710405001 | Q5: 豊橋 | R5: 2150 | X5: 豊橋市全域の場合
A6: =SUM(G48,K48,O48,S48,W48) -> 0 | B6: =SUM(F48,J48,N48,R48,V48) -> 65000 | C6: 0 | D6: 230710101020 | E6: 豊橋東部NMS | F6: 3350 | H6: 230710202080 | I6: 豊岡 | J6: 550 | X6: 豊川市三河一宮500枚
C7: 0 | D7: 230710101030 | E7: 豊橋南部NMS | F7: 2000 | H7: 230710202040 | I7: 豊橋南 | J7: 450 | X7: 豊川市西小坂井650枚
C8: 0 | D8: 230710101040 | E8: 豊橋西部NM | F8: 3350 | H8: 230710202090 | I8: 高師台 | J8: 450 | X8: をプラス
C9: 0 | D9: 230710101050 | E9: 豊橋上地NMS | F9: 1200 | H9: 230710202050 | I9: 豊橋西部 | J9: 1000 | X9: 0
C10: 0 | D10: 230710101330 | E10: 豊橋鷹丘NM | F10: 1750 | H10: 230710202070 | I10: 二川Y | J10: 700 | X10: 0
C11: 0 | D11: 230710101070 | E11: 豊橋飯村NMS | F11: 2950 | H11: 230710202020 | I11: 豊橋東 | J11: 450 | X11: 0
C12: 0 | D12: 230710101080 | E12: 豊橋花田NM | F12: 1700 | H12: 230710202100 | I12: 豊橋南西 | J12: 1000
C13: 0 | D13: 230710101090 | E13: 豊橋向ケ丘NM | F13: 1850
C14: 0 | D14: 230710101100 | E14: 豊橋北部NM | F14: 1450
C15: 0 | D15: 230710101110 | E15: 豊橋玉川NAM | F15: 1150
C16: 0 | D16: 230710101120 | E16: 豊橋牛川NM | F16: 1550
C17: 0 | D17: 230710101130 | E17: 豊橋吉田方NMS | F17: 2500
C18: 0 | D18: 230710101140 | E18: 豊橋北山NMS | F18: 1950
C19: 0 | D19: 230710101160 | E19: 豊橋二川南NMS | F19: 3350
C20: 0 | D20: 230710101170 | E20: 豊橋向山NMS | F20: 1100
C21: 0 | D21: 230710101190 | E21: 豊橋栄NM | F21: 1450
C22: 0 | D22: 230710101200 | E22: 豊橋上野NM | F22: 2550
C23: 0 | D23: 230710101220 | E23: 豊橋東岩田NMS | F23: 1850
C24: 0 | D24: 230710101230 | E24: 豊橋西口NM | F24: 1000
C25: 0 | D25: 230710101240 | E25: 豊橋大村NM | F25: 1200
C26: 0 | D26: 230710101250 | E26: 豊橋磯辺NM | F26: 1400
C27: 0 | D27: 230710101270 | E27: 豊橋南栄NM | F27: 1350
C28: 0 | D28: 230710101290 | E28: 老津NAM | F28: 2450
C29: 0 | D29: 230710101300 | E29: 豊橋佐藤町NMS | F29: 1500
C30: 0 | D30: 230710101310 | E30: 豊橋曙NM | F30: 1250
C31: 0 | D31: 230710101320 | E31: 豊橋野依NMS | F31: 1850
C32: 0 | D32: 230710101340 | E32: 豊橋下条NMS | F32: 250
E48: =CONCATENATE(FIXED(COUNTA(E5:E47),0,0)," 店") -> 28 店 | F48: =SUM(F5:F47) -> 56700 | G48: =SUM(G5:G47) -> 0 | I48: =CONCATENATE(FIXED(COUNTA(I5:I47),0,0)," 店") -> 8 店 | J48: =SUM(J5:J47) -> 6150 | K48: =SUM(K5:K47) -> 0 | M48: =CONCATENATE(FIXED(COUNTA(M5:M47),0,0)," 店") -> 0 店 | N48: =SUM(N5:N47) -> 0 | O48: =SUM(O5:O47) -> 0 | Q48: =CONCATENATE(FIXED(COUNTA(Q5:Q47),0,0)," 店") -> 1 店 | R48: =SUM(R5:R47) -> 2150 | S48: =SUM(S5:S47) -> 0 | U48: =CONCATENATE(FIXED(COUNTA(U5:U47),0,0)," 店") -> 0 店 | V48: =SUM(V5:V47) -> 0 | W48: =SUM(W5:W47) -> 0 | X48: =SUM(X5:X47) -> 0
A49: 2025年後期（8月1日以降） | X49: ㈱中日総合サービス

Sheet 田原市
A1: 折込日 | F1: 広告主 | Q1: サイズ | V1: 取次店
F2: チラシ銘柄 | Q2: 部数 | R2: =A6 -> 0
A4: 地区 | D4: 中日新聞 | G4: 枚数 | H4: 朝日新聞 | K4: 枚数 | L4: 毎日新聞 | O4: 枚数 | P4: 読売新聞 | S4: 枚数 | X4: 備考
A5: 田原市 | C5: 0 | D5: 230780101010 | E5: 田原NAMS | F5: 6250 | P5: 230780405001 | Q5: 田原 | R5: 450 | X5: 0
A6: =SUM(G48,K48,O48,S48,W48) -> 0 | B6: =SUM(F48,J48,N48,R48,V48) -> 11100 | C6: 0 | D6: 230785101010 | E6: 赤羽根NAM | F6: 1050 | X6: 0
C7: 0 | D7: 230785101020 | E7: 泉NAMYS | F7: 700 | X7: 0
C8: 0 | D8: 230785101030 | E8: 福江NAMYS | F8: 2650 | X8: 0
E48: =CONCATENATE(FIXED(COUNTA(E5:E47),0,0)," 店") -> 4 店 | F48: =SUM(F5:F47) -> 10650 | G48: =SUM(G5:G47) -> 0 | I48: =CONCATENATE(FIXED(COUNTA(I5:I47),0,0)," 店") -> 0 店 | J48: =SUM(J5:J47) -> 0 | K48: =SUM(K5:K47) -> 0 | M48: =CONCATENATE(FIXED(COUNTA(M5:M47),0,0)," 店") -> 0 店 | N48: =SUM(N5:N47) -> 0 | O48: =SUM(O5:O47) -> 0 | Q48: =CONCATENATE(FIXED(COUNTA(Q5:Q47),0,0)," 店") -> 1 店 | R48: =SUM(R5:R47) -> 450 | S48: =SUM(S5:S47) -> 0 | U48: =CONCATENATE(FIXED(COUNTA(U5:U47),0,0)," 店") -> 0 店 | V48: =SUM(V5:V47) -> 0 | W48: =SUM(W5:W47) -> 0 | X48: =SUM(X5:X47) -> 0
A49: 2025年後期（8月1日以降） | X49: ㈱中日総合サービス
